Ref No,Fund Type,Dept,Cost Centre Description    ,Description    ,Creditor Name    ,GL Code Net Amount,Payment date        ,
2,Revenue,CCHD,Bed Purchasing - South,Permanent Nursing,.,1320.20, 20-Jan-2015,
3,Revenue,CCHD,18-25 Year Olds,Permanent Residential,1 St Georges House,13206.60, 20-Jan-2015,
4,Revenue,CCHD,Breakthrough and Inclusion Work,Other Supplies & Services,121Turnaround Limited,3281.31, 19-Jan-2015,
5,Revenue,CCHD,Supporting People Programme,Grants to Voluntary Bodies,1625 Independent People,16692.50, 02-Jan-2015,
6,Revenue,CCHD,Supporting People Programme,Grants to Voluntary Bodies,1625 Independent People,16692.50, 30-Jan-2015,
7,Revenue,CCHD,Community Support - South,Preventative Assistance,1st Choice Removals & Storage Limited,533.00, 21-Jan-2015,
8,Revenue,CCHD,Home Care - Elderly - South,Day Care / Social Activities,3 Trees Community Support Ltd,196.68, 19-Jan-2015,
9,Revenue,CCHD,Home Care - Elderly - North,Day Care / Social Activities,3 Trees Community Support Ltd,2820.57, 19-Jan-2015,
10,Revenue,CCHD,Home Care - Elderly - North,Other Small Contracts,3 Trees Community Support Ltd,107.28, 19-Jan-2015,
11,Revenue,CCHD,Home Care - Elderly - North,Supported Living,3 Trees Community Support Ltd,8541.88, 19-Jan-2015,
12,Revenue,CCHD,Home Care - Elderly - South,Day Care / Social Activities,3 Trees Community Support Ltd,196.68, 19-Jan-2015,
13,Revenue,CCHD,Home Care - Elderly - North,Day Care / Social Activities,3 Trees Community Support Ltd,2909.97, 19-Jan-2015,
14,Revenue,CCHD,Home Care - Elderly - North,Other Small Contracts,3 Trees Community Support Ltd,286.08, 19-Jan-2015,
15,Revenue,CCHD,Home Care - Elderly - North,Supported Living,3 Trees Community Support Ltd,8411.36, 19-Jan-2015,
16,Revenue,CCHD,Home Care - Elderly - South,Day Care / Social Activities,3 Trees Community Support Ltd,196.68, 19-Jan-2015,
17,Revenue,CCHD,Home Care - Elderly - North,Day Care / Social Activities,3 Trees Community Support Ltd,2811.63, 19-Jan-2015,
18,Revenue,CCHD,Home Care - Elderly - North,Other Small Contracts,3 Trees Community Support Ltd,107.28, 19-Jan-2015,
19,Revenue,CCHD,Home Care - Elderly - North,Supported Living,3 Trees Community Support Ltd,8394.40, 19-Jan-2015,
20,Revenue,CCHD,Home Care - Elderly - South,Day Care / Social Activities,3 Trees Community Support Ltd,107.28, 28-Jan-2015,
21,Revenue,CCHD,Home Care - Elderly - North,Day Care / Social Activities,3 Trees Community Support Ltd,1788.00, 28-Jan-2015,
22,Revenue,CCHD,Home Care - Elderly - North,Other Small Contracts,3 Trees Community Support Ltd,53.64, 28-Jan-2015,
23,Revenue,CCHD,Home Care - Elderly - North,Supported Living,3 Trees Community Support Ltd,7087.84, 28-Jan-2015,
24,Revenue,CCHD,Home Care - Elderly - South,Day Care / Social Activities,3 Trees Community Support Ltd,107.28, 30-Jan-2015,
25,Revenue,CCHD,Home Care - Elderly - North,Day Care / Social Activities,3 Trees Community Support Ltd,2297.58, 30-Jan-2015,
26,Revenue,CCHD,Home Care - Elderly - North,Other Small Contracts,3 Trees Community Support Ltd,58.11, 30-Jan-2015,
27,Revenue,CCHD,Home Care - Elderly - North,Supported Living,3 Trees Community Support Ltd,6380.21, 30-Jan-2015,
28,Revenue,CCHD,Bed Purchasing - South,Permanent Residential,5Th Floor Harlech Court,16062.20, 20-Jan-2015,
29,Revenue,CCHD,18-25 Year Olds,Permanent Residential,5Th Floor Harlech Court,13689.08, 20-Jan-2015,
30,Revenue,CCHD,18-25 Year Olds,Permanent Residential,5Th Floor Harlech Court,13962.28, 20-Jan-2015,
31,Revenue,CCHD,18-25 Year Olds,Permanent Residential,5Th Floor Harlech Court,30780.15, 20-Jan-2015,
32,Revenue,CCHD,Bed Purchasing - North,Permanent Residential,5Th Floor Harlech Court,16589.72, 20-Jan-2015,
33,Revenue,CCHD,18-25 Year Olds,Permanent Residential,5Th Floor Harlech Court,15754.12, 20-Jan-2015,
34,Revenue,CCHD,Bed Purchasing - South,Permanent Residential,5Th Floor Harlech Court,9301.84, 20-Jan-2015,
35,Revenue,CCHD,Bed purchasing - S28A Under 65 - South,Permanent Residential,5Th Floor Harlech Court,10570.16, 20-Jan-2015,
36,Revenue,CCHD,Bed purchasing - S28A Under 65 - South,Permanent Residential,5Th Floor Harlech Court,10717.48, 20-Jan-2015,
37,Revenue,CCHD,Bed Purchasing - South,Permanent Nursing,5Th Floor Harlech Court,10240.88, 20-Jan-2015,
38,Revenue,CCHD,Community Promoting Independence Team,Operational Equipment,A E Horder (Contracting) Limited,837.29, 16-Jan-2015,
39,Revenue,CCHD,Bed Purchasing - North,Permanent Nursing,ABI Development Limited,6970.24, 20-Jan-2015,
40,Revenue,CCHD,Housing Needs,Storage & Removal,Ablemove-Wottons,840.00, 26-Jan-2015,
41,Revenue,CCHD,Housing Needs,Storage & Removal,Ablemove-Wottons,460.00, 22-Jan-2015,
42,Revenue,CCHD,Housing Needs,Storage & Removal,Ablemove-Wottons,556.00, 22-Jan-2015,
43,Revenue,CCHD,Housing Needs,Storage & Removal,Ablemove-Wottons,876.00, 26-Jan-2015,
44,Revenue,CCHD,Housing Needs,Storage & Removal,Ablemove-Wottons,672.00, 26-Jan-2015,
45,Revenue,CCHD,Day Care - South,Day Care / Social Activities,About Me Care and Support Limited,1317.74, 13-Jan-2015,
46,Revenue,CCHD,Day Care - North,Day Care / Social Activities,About Me Care and Support Limited,547.65, 12-Jan-2015,
47,Revenue,CCHD,Day Care - North,Day Care / Social Activities,About Me Care and Support Limited,763.85, 12-Jan-2015,
48,Revenue,CCHD,Day Care - North,Day Care / Social Activities,About Me Care and Support Limited,755.58, 12-Jan-2015,
49,Revenue,CCHD,Day Care - South,Day Care / Social Activities,About Me Care and Support Limited,862.28, 13-Jan-2015,
50,Revenue,CCHD,Day Care - South,Day Care / Social Activities,About Me Care and Support Limited,1382.09, 29-Jan-2015,
51,Revenue,CCHD,Day Care - North,Day Care / Social Activities,About Me Care and Support Limited,531.75, 26-Jan-2015,
52,Revenue,CCHD,Day Care - North,Day Care / Social Activities,About Me Care and Support Limited,806.98, 26-Jan-2015,
53,Revenue,CCHD,Day Care - South,Day Care / Social Activities,About Me Care and Support Limited,713.43, 29-Jan-2015,
54,Revenue,CCHD,Information Systems - Software,Software Support & Maintenance,Abritas Ltd,26238.00, 09-Jan-2015,
55,Revenue,CCHD,Older People's Commissioned Se,Grants to Voluntary Bodies,Action for Blind People,24242.25, 02-Jan-2015,
56,Revenue,CCHD,Research & Conferences,Other Supplies & Services,ADASS,450.00, 20-Jan-2015,
57,Revenue,CCHD,Research & Conferences,Other Supplies & Services,ADASS,450.00, 20-Jan-2015,
58,Revenue,CCHD,Bed Purchasing - North,Permanent Residential,Adiemus Care Ltd,2135.71, 02-Jan-2015,
59,Revenue,CCHD,SLA Grants - Support Serv,Grants to Voluntary Bodies,Age UK South Gloucestershire,5437.75, 02-Jan-2015,
60,Revenue,CCHD,Home Care - Elderly - South,Other Small Contracts,Agincare Chippenham,1466.80, 08-Jan-2015,
61,Revenue,CCHD,Home Care - Elderly - South,Other Small Contracts,Agincare Chippenham,1360.40, 22-Jan-2015,
62,Revenue,CCHD,Home Care - Elderly - South,Other Small Contracts,Agincare Chippenham,1497.20, 14-Jan-2015,
63,Revenue,CCHD,Home Care - Elderly - South,Other Small Contracts,Agincare Chippenham,1501.00, 26-Jan-2015,
64,Revenue,CCHD,Home Care - Elderly - South,Other Small Contracts,Agincare Chippenham,1516.20, 30-Jan-2015,
65,Revenue,CCHD,Home Care - Elderly - North,Other Small Contracts,Agincare UK Nutfield,1934.20, 08-Jan-2015,
66,Revenue,CCHD,Home Care - Elderly - North,Other Small Contracts,Agincare UK Nutfield,995.60, 08-Jan-2015,
67,Revenue,CCHD,Home Care - Elderly - North,Other Small Contracts,Agincare UK Nutfield,1079.20, 14-Jan-2015,
68,Revenue,CCHD,Home Care - Elderly - North,Other Small Contracts,Agincare UK Nutfield,1295.80, 26-Jan-2015,
69,Revenue,CCHD,Home Care - Elderly - North,Other Small Contracts,Agincare UK Nutfield,1371.80, 30-Jan-2015,
70,Revenue,CCHD,Supported Living - South,Private & Voluntary Home Care,Alexandra Homes (Bristol) Limited,16790.00, 29-Jan-2015,
71,Revenue,CCHD,Supported Living - South,Private & Voluntary Home Care,Alexandra Homes (Bristol) Limited,3036.00, 29-Jan-2015,
72,Revenue,CCHD,Home Care - Elderly - South,Other Small Contracts,AliMo Care Ltd,1315.37, 07-Jan-2015,
73,Revenue,CCHD,Home Care - Elderly - North,Other Small Contracts,AliMo Care Ltd,497.63, 07-Jan-2015,
74,Revenue,CCHD,Older People's Commissioned Se,Grants to Voluntary Bodies,Alzheimers Society,8833.00, 02-Jan-2015,
75,Revenue,CCHD,Bed Purchasing - Southmead Hospital,Permanent Nursing,Ambleside Nusing Ho!,1443.84, 20-Jan-2015,
76,Revenue,CCHD,Supporting People Programme,Grants to Voluntary Bodies,Anchor Housing,895.50, 02-Jan-2015,
77,Revenue,CCHD,Supporting People Programme,Grants to Voluntary Bodies,Anchor Housing,895.50, 30-Jan-2015,
78,Revenue,CCHD,Direct Payments - Phys Dis - North,Grants to Voluntary Bodies,Aquarium Card Management Solutions Ltd,570.00, 20-Jan-2015,
79,Revenue,CCHD,Bed Purchasing - North,Permanent Residential,Ark Care Homes Ltd,10314.64, 20-Jan-2015,
80,Revenue,CCHD,S117 Placements PCT,Permanent Residential,Ash View House,6977.40, 20-Jan-2015,
81,Revenue,CCHD,18-25 Year Olds,Permanent Residential,Ash View House,6158.40, 20-Jan-2015,
82,Revenue,CCHD,Section 117 Placements MH Younger,Permanent Residential,Ash View House,6495.60, 20-Jan-2015,
83,Revenue,CCHD,Bed purchasing - Elderly S117 - South,Permanent Residential,Ash View House,19422.86, 20-Jan-2015,
84,Revenue,CCHD,Bed purchasing - Elderly S117 - South,Permanent Residential,Ash View House,6180.00, 20-Jan-2015,
85,Revenue,CCHD,Bed Purchasing - South,Permanent Residential,Ashbourne House,1122.44, 20-Jan-2015,
86,Revenue,CCHD,Home Care - Elderly - South,Other Small Contracts,Ashley Commercial Finance Ltd,480.37, 08-Jan-2015,
87,Revenue,CCHD,Home Care - Elderly - North,Other Small Contracts,Ashley Commercial Finance Ltd,4410.67, 08-Jan-2015,
88,Revenue,CCHD,Home Care - Elderly - South,Other Small Contracts,Ashley Commercial Finance Ltd,464.49, 08-Jan-2015,
89,Revenue,CCHD,Home Care - Elderly - North,Other Small Contracts,Ashley Commercial Finance Ltd,4517.86, 08-Jan-2015,
90,Revenue,CCHD,Home Care - Elderly - South,Other Small Contracts,Ashley Commercial Finance Ltd,472.43, 09-Jan-2015,
91,Revenue,CCHD,Home Care - Elderly - North,Other Small Contracts,Ashley Commercial Finance Ltd,4656.81, 09-Jan-2015,
92,Revenue,CCHD,Home Care - Elderly - South,Other Small Contracts,Ashley Commercial Finance Ltd,484.34, 09-Jan-2015,
93,Revenue,CCHD,Home Care - Elderly - North,Other Small Contracts,Ashley Commercial Finance Ltd,4736.21, 09-Jan-2015,
94,Revenue,CCHD,Home Care - Elderly - South,Other Small Contracts,Ashley Commercial Finance Ltd,500.22, 14-Jan-2015,
95,Revenue,CCHD,Home Care - Elderly - North,Other Small Contracts,Ashley Commercial Finance Ltd,3958.09, 14-Jan-2015,
96,Revenue,CCHD,Home Care - Elderly - South,Other Small Contracts,Ashley Commercial Finance Ltd,531.98, 14-Jan-2015,
97,Revenue,CCHD,Home Care - Elderly - North,Other Small Contracts,Ashley Commercial Finance Ltd,3823.11, 14-Jan-2015,
98,Revenue,CCHD,Home Care - Elderly - South,Other Small Contracts,Ashley Commercial Finance Ltd,512.13, 21-Jan-2015,
99,Revenue,CCHD,Home Care - Elderly - North,Other Small Contracts,Ashley Commercial Finance Ltd,3878.69, 21-Jan-2015,
100,Revenue,CCHD,Bed and Breakfast,Bed & Breakfast,Ashley Guest Houses Limited,420.00, 22-Jan-2015,
101,Revenue,CCHD,Bed and Breakfast,Bed & Breakfast,Ashley Guest Houses Limited,630.00, 22-Jan-2015,
102,Revenue,CCHD,Bed and Breakfast,Bed & Breakfast,Ashley Guest Houses Limited,1050.00, 28-Jan-2015,
103,Revenue,CCHD,Bed Purchasing - North,Permanent Residential,Aspects 2 Limited,6358.44, 20-Jan-2015,
104,Revenue,CCHD,Supporting People Programme,Grants to Voluntary Bodies,Aspects and Milestones Trust,3219.58, 02-Jan-2015,
105,Revenue,CCHD,Supporting People Programme,Grants to Voluntary Bodies,Aspects and Milestones Trust,1614.17, 02-Jan-2015,
106,Revenue,CCHD,Supporting People Programme,Grants to Voluntary Bodies,Aspects and Milestones Trust,2450.08, 02-Jan-2015,
107,Revenue,CCHD,Supporting People Programme,Grants to Voluntary Bodies,Aspects and Milestones Trust,3219.58, 30-Jan-2015,
108,Revenue,CCHD,Supporting People Programme,Grants to Voluntary Bodies,Aspects and Milestones Trust,1614.17, 30-Jan-2015,
109,Revenue,CCHD,Supporting People Programme,Grants to Voluntary Bodies,Aspects and Milestones Trust,2450.08, 30-Jan-2015,
110,Revenue,CCHD,Supported Living - South,Private & Voluntary Home Care,Aspirations Support Bristol Limited,1772.38, 23-Jan-2015,
111,Revenue,CCHD,Purchase of Non-Res Care - North,Day Care / Social Activities,Aspirations Support Bristol Limited,762.70, 23-Jan-2015,
112,Revenue,CCHD,MH Purchasing - Younger,Independent Living,Aspirations Support Bristol Limited,42168.00, 09-Jan-2015,
113,Revenue,CCHD,Purchase of Non-Res Care - South,Day Care / Social Activities,Aspirations Support Bristol Limited,2499.48, 09-Jan-2015,
114,Revenue,CCHD,Purchase of Non-Res Care - South,Day Care / Social Activities,Aspirations Support Bristol Limited,2499.48, 19-Jan-2015,
115,Revenue,CCHD,Supported Living - South,Private & Voluntary Home Care,Aspirations Support Bristol Limited,515.84, 09-Jan-2015,
116,Revenue,CCHD,Supported Living - South,Private & Voluntary Home Care,Aspirations Support Bristol Limited,596.44, 19-Jan-2015,
117,Revenue,CCHD,Bed Purchasing - South,Permanent Residential,Autism Specialised Care Homes,5611.16, 20-Jan-2015,
118,Revenue,CCHD,Younger Adult Mental Health,Health Services (Third Party Payments),Avon & Wiltshire Mental Health,5000.00, 02-Jan-2015,
119,Revenue,CCHD,Purchase of Non-Res Care - North,Day Care / Social Activities,Avon Autistic Foundation Limited,2301.60, 19-Jan-2015,
120,Revenue,CCHD,Purchase of Non-Res Care - North,Day Care / Social Activities,Avon Autistic Foundation Limited,3715.84, 30-Jan-2015,
121,Revenue,CCHD,Purchase of Non-Res Care - North,Day Care / Social Activities,Avon Autistic Foundation Limited,2301.60, 30-Jan-2015,
122,Revenue,CCHD,S75 CCG Interim Beds,Permanent Nursing,Avon Lodge Care Centre,10200.00, 20-Jan-2015,
123,Revenue,CCHD,s256 - Additional Support Funding,Other Supplies & Services,Avon Telecare Ltd,5622.50, 14-Jan-2015,
124,Revenue,CCHD,Day Care - North,Day Care / Social Activities,Avonedge Limited,1200.00, 26-Jan-2015,
125,Revenue,CCHD,Tenancy Start Up Scheme,Other Supplies & Services,B R Property Services,799.10, 13-Jan-2015,
126,Revenue,CCHD,User Involvement,Conference Expenses,Bawa Healthcare & Leisure,2173.33, 20-Jan-2015,
127,Revenue,CCHD,Bed Purchasing - Southmead Hospital,Permanent Nursing,Bayview Nursing & Residential Home,1482.40, 20-Jan-2015,
128,Revenue,CCHD,Bed Purchasing - Elderly S117- North,Permanent Nursing,Beaufort Grange Care Home,4156.44, 20-Jan-2015,
129,Revenue,CCHD,Bed Purchasing - North,Respite Emergency - Residential,Beaufort Grange Care Home,742.22, 20-Jan-2015,
130,Revenue,CCHD,Bed Purchasing - North,Permanent Nursing,Beaufort Grange Care Home,953.20, 20-Jan-2015,
131,Revenue,CCHD,Bed Purchasing - North,Permanent Residential,Beaufort House,1900.32, 20-Jan-2015,
132,Revenue,CCHD,Bed Purchasing - North,Permanent Residential,Beaufort House,1674.72, 20-Jan-2015,
133,Revenue,CCHD,Bed Purchasing - North,Permanent Residential,Beaufort House,1824.20, 20-Jan-2015,
134,Revenue,CCHD,Bed Purchasing - North,Permanent Residential,Beaufort House,1390.40, 20-Jan-2015,
135,Revenue,CCHD,Bed Purchasing - South,Permanent Residential,Beaufort House,1434.24, 20-Jan-2015,
136,Revenue,CCHD,Bed Purchasing - North,Permanent Residential,Beaufort House,1800.08, 20-Jan-2015,
137,Revenue,CCHD,Bed Purchasing - Southmead Hospital,Permanent Residential,Beaufort House,2320.00, 20-Jan-2015,
138,Revenue,CCHD,Bed Purchasing - Southmead Hospital,Permanent Residential,Beaufort House,2320.00, 20-Jan-2015,
139,Revenue,CCHD,Bed Purchasing - North,Permanent Residential,Beaufort House,1357.16, 20-Jan-2015,
140,Revenue,CCHD,Bed Purchasing - North,Permanent Residential,Beaufort House,1860.64, 20-Jan-2015,
141,Revenue,CCHD,Bed Purchasing - North,Permanent Residential,Beaufort House,1755.08, 20-Jan-2015,
142,Revenue,CCHD,Bed Purchasing - North,Permanent Residential,Beaufort House,1706.44, 20-Jan-2015,
143,Revenue,CCHD,Bed Purchasing - South,Permanent Residential,Bedrock Lodge,3151.80, 20-Jan-2015,
144,Revenue,CCHD,Bed Purchasing - South,Permanent Residential,Bedrock Lodge,2949.44, 20-Jan-2015,
145,Revenue,CCHD,Section 117 Placements MH Younger,Permanent Residential,Bedrock Lodge,1864.88, 20-Jan-2015,
146,Revenue,CCHD,Bed Purchasing - North,Permanent Nursing,Beech House,2378.48, 20-Jan-2015,
147,Revenue,CCHD,Bed Purchasing - South,Permanent Residential,Beech House,1260.20, 20-Jan-2015,
148,Revenue,CCHD,Bed Purchasing - North,Permanent Nursing,Beech House,1320.20, 20-Jan-2015,
149,Revenue,CCHD,Bed Purchasing - North,Permanent Nursing,Beech House,1653.80, 20-Jan-2015,
150,Revenue,CCHD,South Glos Users in South Glos Homes,Permanent Nursing,Beech House,966.33, 20-Jan-2015,
151,Revenue,CCHD,Bed Purchasing - North,Permanent Residential,Beech House,1432.20, 20-Jan-2015,
152,Revenue,CCHD,Swift Dump Code,Permanent Residential,Beech House,1056.90, 20-Jan-2015,
153,Revenue,CCHD,Bed Purchasing - North,Permanent Nursing,Beech House,2552.64, 20-Jan-2015,
154,Revenue,CCHD,Bed Purchasing - North,Permanent Residential,Beech House,1504.12, 20-Jan-2015,
155,Revenue,CCHD,Bed Purchasing - North,Permanent Residential,Beech House,1034.74, 20-Jan-2015,
156,Revenue,CCHD,Bed Purchasing - North,Permanent Nursing,Beech House,879.56, 20-Jan-2015,
157,Revenue,CCHD,Bed Purchasing - North,Permanent Residential,Beech House,1911.24, 20-Jan-2015,
158,Revenue,CCHD,Bed Purchasing - North,Permanent Nursing,Beech House,2127.20, 20-Jan-2015,
159,Revenue,CCHD,Bed Purchasing - North,Permanent Residential,Beech House,1394.08, 20-Jan-2015,
160,Revenue,CCHD,Bed Purchasing - North,Permanent Nursing,Blossom Field,9174.40, 20-Jan-2015,
161,Revenue,CCHD,Bed Purchasing - North,Permanent Nursing,Blossom Field,1566.36, 20-Jan-2015,
162,Revenue,CCHD,Bed Purchasing - Elderly S117- North,Permanent Nursing,Blossom Field,1992.00, 20-Jan-2015,
163,Revenue,CCHD,Swift Dump Code,Permanent Residential,Blossom Field,2671.28, 20-Jan-2015,
164,Revenue,CCHD,Bed Purchasing - North,Permanent Nursing,Blossom Field,1369.96, 20-Jan-2015,
165,Revenue,CCHD,Bed Purchasing - North,Permanent Nursing,Blossom Field,1935.64, 20-Jan-2015,
166,Revenue,CCHD,Bed Purchasing - North,Permanent Nursing,Blossom Field,2337.00, 20-Jan-2015,
167,Revenue,CCHD,Bed Purchasing - North,Permanent Nursing,Blossom Field,2697.08, 20-Jan-2015,
168,Revenue,CCHD,Bed Purchasing - North,Permanent Nursing,Blossom Field,1425.12, 20-Jan-2015,
169,Revenue,CCHD,Bed Purchasing - South,Permanent Nursing,Blossom Field,1909.84, 20-Jan-2015,
170,Revenue,CCHD,Bed Purchasing - Southmead Hospital,Permanent Nursing,Blossom Field,2545.44, 20-Jan-2015,
171,Revenue,CCHD,Bed Purchasing - North,Permanent Nursing,Blossom Fields,2588.96, 15-Jan-2015,
172,Revenue,CCHD,Bed Purchasing - Southmead Hospital,Permanent Nursing,Blossom Fields,2093.16, 15-Jan-2015,
173,Revenue,CCHD,Bed Purchasing - North,Permanent Nursing,Blossom Fields,2588.96, 15-Jan-2015,
174,Revenue,CCHD,Bed Purchasing - North,Permanent Nursing,Blossom Fields,6227.05, 15-Jan-2015,
175,Revenue,CCHD,Training - Adult Services,Training Expenses,Individual,1500.00, 05-Jan-2015,
176,Revenue,CCHD,Training - Adult Services,Training Expenses,Individual,1250.00, 19-Jan-2015,
177,Revenue,CCHD,Sexual Health,Other Small Contracts,Boots UK Ltd,2502.93, 27-Jan-2015,
178,Revenue,CCHD,18-25 Year Olds,Permanent Residential,Bradbury House,8760.16, 20-Jan-2015,
179,Revenue,CCHD,Bed Purchasing - North,Permanent Residential,Bradley House,1533.80, 20-Jan-2015,
180,Revenue,CCHD,Home Care - Elderly - North,Other Small Contracts,Bradley House Home Care Services,721.63, 02-Jan-2015,
181,Revenue,CCHD,Day Care - North,Day Care / Social Activities,Bradley House Home Care Services,93.94, 02-Jan-2015,
182,Revenue,CCHD,Home Care - Elderly - North,Other Small Contracts,Bradley House Home Care Services,734.44, 02-Jan-2015,
183,Revenue,CCHD,Day Care - North,Day Care / Social Activities,Bradley House Home Care Services,102.48, 02-Jan-2015,
184,Revenue,CCHD,Home Care - Elderly - North,Other Small Contracts,Bradley House Home Care Services,700.28, 02-Jan-2015,
185,Revenue,CCHD,Day Care - North,Day Care / Social Activities,Bradley House Home Care Services,89.67, 02-Jan-2015,
186,Revenue,CCHD,Home Care - Elderly - North,Other Small Contracts,Bradley House Home Care Services,657.58, 02-Jan-2015,
187,Revenue,CCHD,Day Care - North,Day Care / Social Activities,Bradley House Home Care Services,102.48, 02-Jan-2015,
188,Revenue,CCHD,Home Care - Elderly - North,Other Small Contracts,Bradley House Home Care Services,666.12, 02-Jan-2015,
189,Revenue,CCHD,Day Care - North,Day Care / Social Activities,Bradley House Home Care Services,102.48, 02-Jan-2015,
190,Revenue,CCHD,Home Care - Elderly - North,Other Small Contracts,Bradley House Home Care Services,520.94, 19-Jan-2015,
191,Revenue,CCHD,Day Care - North,Day Care / Social Activities,Bradley House Home Care Services,102.48, 19-Jan-2015,
192,Revenue,CCHD,Home Care - Elderly - North,Other Small Contracts,Bradley House Home Care Services,478.24, 19-Jan-2015,
193,Revenue,CCHD,Day Care - North,Day Care / Social Activities,Bradley House Home Care Services,102.48, 19-Jan-2015,
194,Revenue,CCHD,Home Care - Elderly - North,Other Small Contracts,Bradley House Home Care Services,700.28, 19-Jan-2015,
195,Revenue,CCHD,Day Care - North,Day Care / Social Activities,Bradley House Home Care Services,102.48, 19-Jan-2015,
196,Revenue,CCHD,Home Care - Elderly - North,Other Small Contracts,Bradley House Home Care Services,640.50, 28-Jan-2015,
197,Revenue,CCHD,Day Care - North,Day Care / Social Activities,Bradley House Home Care Services,102.48, 28-Jan-2015,
198,Revenue,CCHD,Home Care - Elderly - North,Other Small Contracts,Bradley House Home Care Services,678.93, 30-Jan-2015,
199,Revenue,CCHD,Day Care - North,Day Care / Social Activities,Bradley House Home Care Services,102.48, 30-Jan-2015,
200,Revenue,CCHD,Alexandra Way,"Provisions (Food, etc)",Brake Bros,585.30, 09-Jan-2015,
201,Revenue,CCHD,Woodleaze,"Provisions (Food, etc)",Brake Bros,619.55, 09-Jan-2015,
202,Revenue,CCHD,Bed Purchasing - South,Permanent Nursing,Brandon Trust,5036.84, 20-Jan-2015,
203,Revenue,CCHD,Bed Purchasing - S28A - Over 65- North,Permanent Residential,Brandon Trust,3097.08, 20-Jan-2015,
204,Revenue,CCHD,Bed Purchasing - South,Permanent Residential,Brandon Trust,10268.44, 20-Jan-2015,
205,Revenue,CCHD,Bed Purchasing - South,Permanent Residential,Brandon Trust,4036.12, 20-Jan-2015,
206,Revenue,CCHD,Bed Purchasing - South,Permanent Residential,Brandon Trust,3459.92, 20-Jan-2015,
207,Revenue,CCHD,Bed Purchasing - LD S28A- Over 65- South,Permanent Nursing,Brandon Trust,4860.44, 20-Jan-2015,
208,Revenue,CCHD,Bed Purchasing - South,Permanent Nursing,Brandon Trust,5036.84, 20-Jan-2015,
209,Revenue,CCHD,Bed purchasing - S28A Under 65 - South,Permanent Nursing,Brandon Trust,5359.12, 20-Jan-2015,
210,Revenue,CCHD,Bed purchasing - S28A Under 65 - South,Permanent Residential,Brandon Trust,4901.16, 20-Jan-2015,
211,Revenue,CCHD,Bed Purchasing - LD S28A- Over 65- South,Permanent Nursing,Brandon Trust,5182.72, 20-Jan-2015,
212,Revenue,CCHD,Bed Purchasing - LD S28A- Over 65- South,Permanent Nursing,Brandon Trust,4849.76, 20-Jan-2015,
213,Revenue,CCHD,Bed Purchasing - South,Permanent Residential,Brandon Trust,3273.48, 20-Jan-2015,
214,Revenue,CCHD,Bed purchasing - S28A Under 65 - South,Permanent Residential,Brandon Trust,5202.76, 20-Jan-2015,
215,Revenue,CCHD,Bed purchasing - S28A Under 65 - South,Permanent Residential,Brandon Trust,5258.44, 20-Jan-2015,
216,Revenue,CCHD,Bed purchasing - S28A Under 65 - South,Permanent Nursing,Brandon Trust,5399.12, 20-Jan-2015,
217,Revenue,CCHD,Bed purchasing - S28A Under 65 - South,Permanent Nursing,Brandon Trust,5359.12, 20-Jan-2015,
218,Revenue,CCHD,Bed purchasing -S28A  Under 65 - North,Permanent Nursing,Brandon Trust,4783.16, 20-Jan-2015,
219,Revenue,CCHD,Bed purchasing - S28A Under 65 - South,Permanent Residential,Brandon Trust,5258.44, 20-Jan-2015,
220,Revenue,CCHD,Bed Purchasing - LD S28A- Over 65- South,Permanent Residential,Brandon Trust,4748.20, 20-Jan-2015,
221,Revenue,CCHD,Day Care - North,Day Care / Social Activities,Bridge House (Residential Home) Ltd,1652.00, 26-Jan-2015,
222,Revenue,CCHD,Bed Purchasing - North,Permanent Residential,Bridge House Care Home,1513.00, 20-Jan-2015,
223,Revenue,CCHD,Bed Purchasing - North,Permanent Residential,Bridge House Care Home,1167.32, 20-Jan-2015,
224,Revenue,CCHD,Bed Purchasing - South,Permanent Residential,Bridge House Care Home,1444.60, 20-Jan-2015,
225,Revenue,CCHD,Bed Purchasing - North,Respite Planned - Residential,Bridge House Care Home,1491.43, 20-Jan-2015,
226,Revenue,CCHD,Bed Purchasing - North,Respite Planned - Residential,Bridge House Care Home,828.57, 20-Jan-2015,
227,Revenue,CCHD,Training - Adult Services,Training Expenses,Individual,750.00, 09-Jan-2015,
228,Revenue,CCHD,Bed Purchasing - South,Permanent Residential,Brightbow,2095.28, 20-Jan-2015,
229,Revenue,CCHD,MH Purchasing - Younger,Permanent Residential,Brightbow,1493.96, 20-Jan-2015,
230,Revenue,CCHD,SLA Grants - Support Serv,Grants to Voluntary Bodies,Bristol & Avon Chinese Womens Group,500.00, 02-Jan-2015,
231,Revenue,CCHD,Older People's Commissioned Se,Grants to Voluntary Bodies,Bristol Area Stroke Foundation,5000.00, 02-Jan-2015,
232,Revenue,CCHD,Supported Living - North,Private & Voluntary Home Care,Bristol Houses UK Limited,1056.60, 07-Jan-2015,
233,Revenue,CCHD,Supported Living - North,Private & Voluntary Home Care,Bristol Houses UK Limited,953.82, 07-Jan-2015,
234,Revenue,CCHD,Day Care - North,Day Care / Social Activities,Bristol Houses UK Limited,605.60, 07-Jan-2015,
235,Revenue,CCHD,Bed and Breakfast,Bed & Breakfast,Bristol Housing & Support Limited,1120.00, 20-Jan-2015,
236,Revenue,CCHD,Bed and Breakfast,Bed & Breakfast,Bristol Housing & Support Limited,1120.00, 22-Jan-2015,
237,Revenue,CCHD,Bed and Breakfast,Bed & Breakfast,Bristol Housing & Support Limited,1300.00, 22-Jan-2015,
238,Revenue,CCHD,Bed and Breakfast,Bed & Breakfast,Bristol Housing & Support Limited,910.00, 22-Jan-2015,
239,Revenue,CCHD,Bed and Breakfast,Bed & Breakfast,Bristol Housing & Support Limited,1060.00, 22-Jan-2015,
240,Revenue,CCHD,Bed and Breakfast,Bed & Breakfast,Bristol Housing & Support Limited,1500.00, 22-Jan-2015,
241,Revenue,CCHD,Bed and Breakfast,Bed & Breakfast,Bristol Housing & Support Limited,1500.00, 22-Jan-2015,
242,Revenue,CCHD,Bed and Breakfast,Bed & Breakfast,Bristol Housing & Support Limited,1890.00, 22-Jan-2015,
243,Revenue,CCHD,Bed and Breakfast,Bed & Breakfast,Bristol Housing & Support Limited,2130.00, 22-Jan-2015,
244,Revenue,CCHD,Bed and Breakfast,Bed & Breakfast,Bristol Housing & Support Limited,2240.00, 22-Jan-2015,
245,Revenue,CCHD,Bed and Breakfast,Bed & Breakfast,Bristol Housing & Support Limited,2240.00, 26-Jan-2015,
246,Revenue,CCHD,Training - Adult Services,Training Expenses,Bristol MIND,1320.00, 02-Jan-2015,
247,Revenue,CCHD,Supporting People Programme,Grants to Voluntary Bodies,Bristol Missing Link,1990.92, 02-Jan-2015,
248,Revenue,CCHD,Supporting People Programme,Grants to Voluntary Bodies,Bristol Missing Link,1449.17, 02-Jan-2015,
249,Revenue,CCHD,Supporting People Programme,Grants to Voluntary Bodies,Bristol Missing Link,1990.92, 30-Jan-2015,
250,Revenue,CCHD,Supporting People Programme,Grants to Voluntary Bodies,Bristol Missing Link,1449.17, 30-Jan-2015,
251,Revenue,CCHD,Woodleaze,Water Charges,Bristol Wessex Billing Services Limited,3293.85, 15-Jan-2015,
252,Revenue,CCHD,Intermediate Care Accommodation,Water Charges,Bristol Wessex Billing Services Limited,520.44, 22-Jan-2015,
253,Revenue,CCHD,Home Care - Elderly - North,Day Care / Social Activities,Britannia House,914.88, 20-Jan-2015,
254,Revenue,CCHD,Home Care - Elderly - South,Day Care / Social Activities,Britannia House,914.88, 20-Jan-2015,
255,Revenue,CCHD,Home Care - Elderly - North,Day Care / Social Activities,Britannia House,686.16, 20-Jan-2015,
256,Revenue,CCHD,Home Care - Elderly - North,Day Care / Social Activities,Britannia House,914.88, 20-Jan-2015,
257,Revenue,CCHD,Home Care - Elderly - South,Day Care / Social Activities,Britannia House,686.16, 20-Jan-2015,
258,Revenue,CCHD,Home Care - Elderly - North,Day Care / Social Activities,Britannia House,914.88, 20-Jan-2015,
259,Revenue,CCHD,Home Care - Elderly - South,Day Care / Social Activities,Britannia House,571.80, 20-Jan-2015,
260,Revenue,CCHD,Home Care - Elderly - South,Day Care / Social Activities,Britannia House,1143.60, 20-Jan-2015,
261,Revenue,CCHD,Home Care - Elderly - South,Day Care / Social Activities,Britannia House,686.16, 20-Jan-2015,
262,Revenue,CCHD,Home Care - Elderly - South,Day Care / Social Activities,Britannia House,686.16, 20-Jan-2015,
263,Revenue,CCHD,Home Care - Elderly - South,Day Care / Social Activities,Britannia House,686.16, 20-Jan-2015,
264,Revenue,CCHD,Bed Purchasing - North,Permanent Residential,Broadgate House,17214.29, 20-Jan-2015,
265,Revenue,CCHD,Supporting People Programme,Grants to Voluntary Bodies,Bromford Housing Group,14050.25, 02-Jan-2015,
266,Revenue,CCHD,Supporting People Programme,Grants to Voluntary Bodies,Bromford Housing Group,14050.25, 30-Jan-2015,
267,Revenue,CCHD,Sexual Health,Other Small Contracts,Brook Advisory Centre (Avon),17955.00, 08-Jan-2015,
268,Revenue,CCHD,Sexual Health,Other Small Contracts,Brook Advisory Centre (Avon),11382.00, 08-Jan-2015,
269,Revenue,CCHD,Minor Adaptations Service,Operational Equipment,Brown and Partners Ltd,728.65, 19-Jan-2015,
270,Revenue,CCHD,Bed Purchasing - North,Permanent Nursing,Brunel Care  Saffron Gardens,631.52, 20-Jan-2015,
271,Revenue,CCHD,Bed Purchasing - Southmead Hospital,Permanent Nursing,Brunel Care  Saffron Gardens,2861.18, 20-Jan-2015,
272,Revenue,CCHD,Bed Purchasing - Southmead Hospital,Permanent Nursing,Brunel Care  Saffron Gardens,1634.96, 20-Jan-2015,
273,Revenue,CCHD,Bed Purchasing - South,Respite Emergency - Residential,Brunel Care  Saffron Gardens,1874.71, 20-Jan-2015,
274,Revenue,CCHD,Bed Purchasing - South,Respite Emergency - Nursing,Brunel Care  Saffron Gardens,1874.71, 20-Jan-2015,
275,Revenue,CCHD,Bed Purchasing - Southmead Hospital,Permanent Nursing,Brunel Care  Saffron Gardens,876.08, 20-Jan-2015,
276,Revenue,CCHD,Bed Purchasing - Southmead Hospital,Permanent Nursing,Brunel Care  Saffron Gardens,2052.32, 20-Jan-2015,
277,Revenue,CCHD,Bed Purchasing - North,Permanent Nursing,Brunel Care  Saffron Gardens,1839.00, 20-Jan-2015,
278,Revenue,CCHD,Bed Purchasing - North,Permanent Nursing,Brunel Care  Saffron Gardens,853.82, 20-Jan-2015,
279,Revenue,CCHD,Bed Purchasing - Southmead Hospital,Permanent Residential,Brunel Care  Saffron Gardens,1270.68, 20-Jan-2015,
280,Revenue,CCHD,Bed Purchasing - South,Permanent Nursing,Brunel Care  Saffron Gardens,2072.32, 20-Jan-2015,
281,Revenue,CCHD,Bed Purchasing - Southmead Hospital,Permanent Nursing,Brunel Care  Saffron Gardens,1391.72, 20-Jan-2015,
282,Revenue,CCHD,Bed Purchasing - North,Respite Planned - Nursing,Brunel Care  Saffron Gardens,596.50, 20-Jan-2015,
283,Revenue,CCHD,Bed Purchasing - South,Permanent Residential,Brunel Care  Saffron Gardens,1296.84, 20-Jan-2015,
284,Revenue,CCHD,Home Care - Elderly - North,Private & Voluntary Home Care,Brunelcare,23160.00, 05-Jan-2015,
285,Revenue,CCHD,Home Care - Elderly - North,Private & Voluntary Home Care,Brunelcare,23160.00, 12-Jan-2015,
286,Revenue,CCHD,Home Care - Elderly - North,Private & Voluntary Home Care,Brunelcare,23160.00, 19-Jan-2015,
287,Revenue,CCHD,Home Care - Elderly - North,Private & Voluntary Home Care,Brunelcare,23160.00, 26-Jan-2015,
288,Revenue,CCHD,S75 CCG Interim Beds,Permanent Nursing,Brunelcare,54600.00, 27-Jan-2015,
289,Revenue,CCHD,Day Care - South,Day Care / Social Activities,Brunelcare,520.00, 09-Jan-2015,
290,Revenue,CCHD,S75 CCG Interim Beds,Permanent Nursing,Brunelcare,15200.00, 20-Jan-2015,
291,Revenue,CCHD,Home Care - Elderly - South,Other Small Contracts,Brunelcare,2758.08, 02-Jan-2015,
292,Revenue,CCHD,Home Care - Elderly - North,Other Small Contracts,Brunelcare,3215.04, 02-Jan-2015,
293,Revenue,CCHD,Day Care - South,Day Care / Social Activities,Brunelcare,36.72, 02-Jan-2015,
294,Revenue,CCHD,Day Care - North,Day Care / Social Activities,Brunelcare,48.96, 02-Jan-2015,
295,Revenue,CCHD,Home Care - Elderly - South,Other Small Contracts,Brunelcare,2598.96, 02-Jan-2015,
296,Revenue,CCHD,Home Care - Elderly - North,Other Small Contracts,Brunelcare,3264.00, 02-Jan-2015,
297,Revenue,CCHD,Day Care - South,Day Care / Social Activities,Brunelcare,24.48, 02-Jan-2015,
298,Revenue,CCHD,Day Care - North,Day Care / Social Activities,Brunelcare,57.12, 02-Jan-2015,
299,Revenue,CCHD,Home Care - Elderly - South,Other Small Contracts,Brunelcare,2684.64, 02-Jan-2015,
300,Revenue,CCHD,Home Care - Elderly - North,Other Small Contracts,Brunelcare,3182.40, 02-Jan-2015,
301,Revenue,CCHD,Day Care - South,Day Care / Social Activities,Brunelcare,24.48, 02-Jan-2015,
302,Revenue,CCHD,Day Care - North,Day Care / Social Activities,Brunelcare,48.96, 02-Jan-2015,
303,Revenue,CCHD,Home Care - Elderly - South,Other Small Contracts,Brunelcare,2721.36, 02-Jan-2015,
304,Revenue,CCHD,Home Care - Elderly - North,Other Small Contracts,Brunelcare,3292.56, 02-Jan-2015,
305,Revenue,CCHD,Day Care - South,Day Care / Social Activities,Brunelcare,32.64, 02-Jan-2015,
306,Revenue,CCHD,Day Care - North,Day Care / Social Activities,Brunelcare,53.04, 02-Jan-2015,
307,Revenue,CCHD,Home Care - Elderly - South,Other Small Contracts,Brunelcare,2594.88, 02-Jan-2015,
308,Revenue,CCHD,Home Care - Elderly - North,Other Small Contracts,Brunelcare,3395.36, 02-Jan-2015,
309,Revenue,CCHD,Day Care - South,Day Care / Social Activities,Brunelcare,28.56, 02-Jan-2015,
310,Revenue,CCHD,Day Care - North,Day Care / Social Activities,Brunelcare,48.96, 02-Jan-2015,
311,Revenue,CCHD,Home Care - Elderly - South,Other Small Contracts,Brunelcare,2986.56, 02-Jan-2015,
312,Revenue,CCHD,Home Care - Elderly - North,Other Small Contracts,Brunelcare,3183.20, 02-Jan-2015,
313,Revenue,CCHD,Day Care - South,Day Care / Social Activities,Brunelcare,32.64, 02-Jan-2015,
314,Revenue,CCHD,Day Care - North,Day Care / Social Activities,Brunelcare,53.04, 02-Jan-2015,
315,Revenue,CCHD,Home Care - Elderly - South,Other Small Contracts,Brunelcare,2843.76, 02-Jan-2015,
316,Revenue,CCHD,Home Care - Elderly - North,Other Small Contracts,Brunelcare,2958.00, 02-Jan-2015,
317,Revenue,CCHD,Day Care - South,Day Care / Social Activities,Brunelcare,24.48, 02-Jan-2015,
318,Revenue,CCHD,Day Care - North,Day Care / Social Activities,Brunelcare,53.04, 02-Jan-2015,
319,Revenue,CCHD,Home Care - Elderly - South,Other Small Contracts,Brunelcare,2660.16, 02-Jan-2015,
320,Revenue,CCHD,Home Care - Elderly - North,Other Small Contracts,Brunelcare,3190.56, 02-Jan-2015,
321,Revenue,CCHD,Day Care - South,Day Care / Social Activities,Brunelcare,28.56, 02-Jan-2015,
322,Revenue,CCHD,Home Care - Elderly - South,Other Small Contracts,Brunelcare,2403.12, 02-Jan-2015,
323,Revenue,CCHD,Home Care - Elderly - North,Other Small Contracts,Brunelcare,2770.32, 02-Jan-2015,
324,Revenue,CCHD,Day Care - South,Day Care / Social Activities,Brunelcare,28.56, 02-Jan-2015,
325,Revenue,CCHD,Home Care - Elderly - South,Other Small Contracts,Brunelcare,2680.56, 30-Jan-2015,
326,Revenue,CCHD,Home Care - Elderly - North,Other Small Contracts,Brunelcare,2643.84, 30-Jan-2015,
327,Revenue,CCHD,Day Care - South,Day Care / Social Activities,Brunelcare,28.56, 30-Jan-2015,
328,Revenue,CCHD,Home Care - Elderly - South,Other Small Contracts,Brunelcare,2427.60, 30-Jan-2015,
329,Revenue,CCHD,Home Care - Elderly - North,Other Small Contracts,Brunelcare,2223.60, 30-Jan-2015,
330,Revenue,CCHD,Day Care - South,Day Care / Social Activities,Brunelcare,32.64, 30-Jan-2015,
331,Revenue,CCHD,Home Care - Elderly - South,Other Small Contracts,Brunelcare,2509.20, 30-Jan-2015,
332,Revenue,CCHD,Home Care - Elderly - North,Other Small Contracts,Brunelcare,2419.44, 30-Jan-2015,
333,Revenue,CCHD,Day Care - South,Day Care / Social Activities,Brunelcare,24.48, 30-Jan-2015,
334,Revenue,CCHD,Home Care - Elderly - South,Other Small Contracts,Brunelcare,2802.96, 30-Jan-2015,
335,Revenue,CCHD,Home Care - Elderly - North,Other Small Contracts,Brunelcare,2709.12, 30-Jan-2015,
336,Revenue,CCHD,Day Care - South,Day Care / Social Activities,Brunelcare,28.56, 30-Jan-2015,
337,Revenue,CCHD,Home Care - Elderly - South,Other Small Contracts,Brunelcare,2729.52, 30-Jan-2015,
338,Revenue,CCHD,Home Care - Elderly - North,Other Small Contracts,Brunelcare,2688.72, 30-Jan-2015,
339,Revenue,CCHD,Day Care - South,Day Care / Social Activities,Brunelcare,24.48, 30-Jan-2015,
340,Revenue,CCHD,Woodleaze,Agency Staff (Admin/Support Staff) Pay,BS Project Services Limited,789.04, 15-Jan-2015,
341,Revenue,CCHD,Woodleaze,Agency Staff (Admin/Support Staff) Pay,BS Project Services Limited,601.94, 22-Jan-2015,
342,Revenue,CCHD,Woodleaze,Agency Staff (Admin/Support Staff) Pay,BS Project Services Limited,551.57, 21-Jan-2015,
343,Revenue,CCHD,Woodleaze,Agency Staff (Admin/Support Staff) Pay,BS Project Services Limited,736.13, 27-Jan-2015,
344,Revenue,CCHD,Information Systems - Software,Computer Equipment - Purchase,BT Global Services Solutions,984.77, 27-Jan-2015,
345,Revenue,CCHD,Bed Purchasing - Southmead Hospital,Permanent Nursing,Bupa Care Services  Bridge House,1902.40, 20-Jan-2015,
346,Revenue,CCHD,Bed Purchasing - Southmead Hospital,Permanent Nursing,Bupa Care Services  Bridge House,1674.48, 20-Jan-2015,
347,Revenue,CCHD,Bed Purchasing - North,Permanent Nursing,Bupa Care Services  Bridge House,5938.28, 20-Jan-2015,
348,Revenue,CCHD,South Glos Users in all other LA Homes,Permanent Nursing,Bupa Care Services  Bridge House,610.44, 20-Jan-2015,
349,Revenue,CCHD,Bed Purchasing - North,Permanent Residential,Bupa Care Services  Bridge House,1987.24, 20-Jan-2015,
350,Revenue,CCHD,Minor Adaptations Service,Prop.Serv. General Repairs,C A P Security Limited,1357.43, 14-Jan-2015,
351,Revenue,CCHD,Supported Living - North,Private & Voluntary Home Care,Camphill Communities Thornbury Limited,599.04, 02-Jan-2015,
352,Revenue,CCHD,Supported Living - North,Private & Voluntary Home Care,Camphill Communities Thornbury Limited,1223.04, 02-Jan-2015,
353,Revenue,CCHD,Supported Living - North,Private & Voluntary Home Care,Camphill Communities Thornbury Limited,549.12, 02-Jan-2015,
354,Revenue,CCHD,Supported Living - North,Private & Voluntary Home Care,Camphill Communities Thornbury Limited,998.40, 19-Jan-2015,
355,Revenue,CCHD,Supported Living - North,Private & Voluntary Home Care,Camphill Communities Thornbury Limited,599.04, 07-Jan-2015,
356,Revenue,CCHD,Supported Living - North,Private & Voluntary Home Care,Camphill Communities Thornbury Limited,599.04, 07-Jan-2015,
357,Revenue,CCHD,Supported Living - North,Private & Voluntary Home Care,Camphill Communities Thornbury Limited,773.76, 16-Jan-2015,
358,Revenue,CCHD,Supported Living - North,Private & Voluntary Home Care,Camphill Communities Thornbury Limited,1223.04, 07-Jan-2015,
359,Revenue,CCHD,Supported Living - North,Private & Voluntary Home Care,Camphill Communities Thornbury Limited,698.88, 07-Jan-2015,
360,Revenue,CCHD,Supported Living - North,Private & Voluntary Home Care,Camphill Communities Thornbury Limited,549.12, 07-Jan-2015,
361,Revenue,CCHD,Supported Living - North,Private & Voluntary Home Care,Camphill Communities Thornbury Limited,1148.16, 07-Jan-2015,
362,Revenue,CCHD,Bed Purchasing - Elderly S117- North,Permanent Residential,Canjayor,2334.04, 20-Jan-2015,
363,Revenue,CCHD,Performance Management Support,Training Expenses,Capita Business Services Ltd,1200.00, 21-Jan-2015,
364,Revenue,CCHD,Home Care - Elderly - South,Other Small Contracts,Care 1st Homecare,3477.16, 14-Jan-2015,
365,Revenue,CCHD,Home Care - Elderly - North,Other Small Contracts,Care 1st Homecare,3654.00, 14-Jan-2015,
366,Revenue,CCHD,Home care - Elderly MH - North,Other Small Contracts,Care 1st Homecare,16.80, 14-Jan-2015,
367,Revenue,CCHD,Home Care - Elderly - South,Other Small Contracts,Care 1st Homecare,3410.40, 14-Jan-2015,
368,Revenue,CCHD,Home Care - Elderly - North,Other Small Contracts,Care 1st Homecare,3620.40, 14-Jan-2015,
369,Revenue,CCHD,Home care - Elderly MH - North,Other Small Contracts,Care 1st Homecare,16.80, 14-Jan-2015,
370,Revenue,CCHD,Home Care - Elderly - South,Other Small Contracts,Care 1st Homecare,3482.69, 14-Jan-2015,
371,Revenue,CCHD,Home Care - Elderly - North,Other Small Contracts,Care 1st Homecare,3733.80, 14-Jan-2015,
372,Revenue,CCHD,Home care - Elderly MH - North,Other Small Contracts,Care 1st Homecare,16.80, 14-Jan-2015,
373,Revenue,CCHD,Home Care - Elderly - South,Other Small Contracts,Care 1st Homecare,3566.69, 14-Jan-2015,
374,Revenue,CCHD,Home Care - Elderly - North,Other Small Contracts,Care 1st Homecare,3721.20, 14-Jan-2015,
375,Revenue,CCHD,Home care - Elderly MH - North,Other Small Contracts,Care 1st Homecare,16.80, 14-Jan-2015,
376,Revenue,CCHD,Home Care - Elderly - South,Other Small Contracts,Care 1st Homecare,3590.56, 14-Jan-2015,
377,Revenue,CCHD,Home Care - Elderly - North,Other Small Contracts,Care 1st Homecare,3859.80, 14-Jan-2015,
378,Revenue,CCHD,Home care - Elderly MH - North,Other Small Contracts,Care 1st Homecare,12.60, 14-Jan-2015,
379,Revenue,CCHD,Home Care - Elderly - South,Other Small Contracts,Care 1st Homecare,3505.67, 14-Jan-2015,
380,Revenue,CCHD,Home Care - Elderly - North,Other Small Contracts,Care 1st Homecare,3822.00, 14-Jan-2015,
381,Revenue,CCHD,Home care - Elderly MH - North,Other Small Contracts,Care 1st Homecare,16.80, 14-Jan-2015,
382,Revenue,CCHD,Bed Purchasing - Elderly S117- North,Permanent Residential,Care Community Ltd,7647.92, 20-Jan-2015,
383,Revenue,CCHD,Older People's Commissioned Se,Grants to Voluntary Bodies,Care for the Elderly : Easter Compton,744.00, 08-Jan-2015,
384,Revenue,CCHD,Purchase of Non-Res Care - South,Day Care / Social Activities,Care Futures,2073.92, 16-Jan-2015,
385,Revenue,CCHD,Supported Living - North,Private & Voluntary Home Care,Care Horizons Limited,5453.31, 30-Jan-2015,
386,Revenue,CCHD,Purchase of Non-Res Care - North,Day Care / Social Activities,Care Horizons Limited,1178.57, 30-Jan-2015,
387,Revenue,CCHD,Purchase of Non-Res Care - North,Day Care / Social Activities,Care Horizons Limited,1459.94, 12-Jan-2015,
388,Revenue,CCHD,Supported Living - North,Private & Voluntary Home Care,Care Horizons Limited,5453.31, 09-Jan-2015,
389,Revenue,CCHD,Supported Living - North,Private & Voluntary Home Care,Care Horizons Limited,5544.55, 13-Jan-2015,
390,Revenue,CCHD,Supported Living - South,Private & Voluntary Home Care,Care Horizons Limited,1750.65, 13-Jan-2015,
391,Revenue,CCHD,Purchase of Non-Res Care - North,Day Care / Social Activities,Care Horizons Limited,1477.06, 13-Jan-2015,
392,Revenue,CCHD,Purchase of Non-Res Care - North,Day Care / Social Activities,Care Horizons Limited,788.69, 13-Jan-2015,
393,Revenue,CCHD,Purchase of Non-Res Care - North,Day Care / Social Activities,Care Horizons Limited,1458.63, 12-Jan-2015,
394,Revenue,CCHD,Supported Living - North,Private & Voluntary Home Care,Care Horizons Limited,5453.31, 12-Jan-2015,
395,Revenue,CCHD,Supported Living - North,Private & Voluntary Home Care,Care Horizons Limited,5886.97, 30-Jan-2015,
396,Revenue,CCHD,Supported Living - South,Private & Voluntary Home Care,Care Horizons Limited,1763.90, 19-Jan-2015,
397,Revenue,CCHD,Purchase of Non-Res Care - North,Day Care / Social Activities,Care Horizons Limited,1676.90, 30-Jan-2015,
398,Revenue,CCHD,Purchase of Non-Res Care - North,Day Care / Social Activities,Care Horizons Limited,804.37, 30-Jan-2015,
399,Revenue,CCHD,Home Care - Elderly - South,Other Small Contracts,Care UK,5166.56, 08-Jan-2015,
400,Revenue,CCHD,Home Care - Elderly - North,Day Care / Social Activities,Care UK,152.88, 08-Jan-2015,
401,Revenue,CCHD,Home Care - Elderly - North,Other Small Contracts,Care UK,1203.44, 08-Jan-2015,
402,Revenue,CCHD,Day Care - North,Day Care / Social Activities,Care UK,250.88, 08-Jan-2015,
403,Revenue,CCHD,Home care - Elderly MH - North,Other Small Contracts,Care UK,493.92, 08-Jan-2015,
404,Revenue,CCHD,Elderly MH Day Care North,Day Care / Social Activities,Care UK,141.12, 08-Jan-2015,
405,Revenue,CCHD,Home Care - Elderly - South,Other Small Contracts,Care UK,5017.60, 08-Jan-2015,
406,Revenue,CCHD,Home Care - Elderly - North,Day Care / Social Activities,Care UK,125.44, 08-Jan-2015,
407,Revenue,CCHD,Home Care - Elderly - North,Other Small Contracts,Care UK,1176.00, 08-Jan-2015,
408,Revenue,CCHD,Day Care - North,Day Care / Social Activities,Care UK,250.88, 08-Jan-2015,
409,Revenue,CCHD,Home care - Elderly MH - North,Other Small Contracts,Care UK,509.60, 08-Jan-2015,
410,Revenue,CCHD,Elderly MH Day Care North,Day Care / Social Activities,Care UK,137.20, 08-Jan-2015,
411,Revenue,CCHD,Home Care - Elderly - South,Other Small Contracts,Care UK,5272.40, 21-Jan-2015,
412,Revenue,CCHD,Home Care - Elderly - North,Day Care / Social Activities,Care UK,125.44, 21-Jan-2015,
413,Revenue,CCHD,Home Care - Elderly - North,Other Small Contracts,Care UK,1215.20, 21-Jan-2015,
414,Revenue,CCHD,Day Care - North,Day Care / Social Activities,Care UK,250.88, 21-Jan-2015,
415,Revenue,CCHD,Home care - Elderly MH - North,Other Small Contracts,Care UK,493.92, 21-Jan-2015,
416,Revenue,CCHD,Elderly MH Day Care North,Day Care / Social Activities,Care UK,141.12, 21-Jan-2015,
417,Revenue,CCHD,Home Care - Elderly - South,Other Small Contracts,Care UK,4704.00, 21-Jan-2015,
418,Revenue,CCHD,Home Care - Elderly - North,Day Care / Social Activities,Care UK,62.72, 21-Jan-2015,
419,Revenue,CCHD,Home Care - Elderly - North,Other Small Contracts,Care UK,1007.44, 21-Jan-2015,
420,Revenue,CCHD,Day Care - North,Day Care / Social Activities,Care UK,66.64, 21-Jan-2015,
421,Revenue,CCHD,Home care - Elderly MH - North,Other Small Contracts,Care UK,486.08, 21-Jan-2015,
422,Revenue,CCHD,Elderly MH Day Care North,Day Care / Social Activities,Care UK,94.08, 21-Jan-2015,
423,Revenue,CCHD,Home Care - Elderly - South,Other Small Contracts,Care UK,4743.20, 26-Jan-2015,
424,Revenue,CCHD,Home Care - Elderly - North,Other Small Contracts,Care UK,1121.12, 26-Jan-2015,
425,Revenue,CCHD,Day Care - North,Day Care / Social Activities,Care UK,70.56, 26-Jan-2015,
426,Revenue,CCHD,Home care - Elderly MH - North,Other Small Contracts,Care UK,505.68, 26-Jan-2015,
427,Revenue,CCHD,Elderly MH Day Care North,Day Care / Social Activities,Care UK,145.04, 26-Jan-2015,
428,Revenue,CCHD,Home Care - Elderly - South,Other Small Contracts,Care UK,4692.24, 26-Jan-2015,
429,Revenue,CCHD,Home Care - Elderly - North,Day Care / Social Activities,Care UK,125.44, 26-Jan-2015,
430,Revenue,CCHD,Home Care - Elderly - North,Other Small Contracts,Care UK,1191.68, 26-Jan-2015,
431,Revenue,CCHD,Day Care - North,Day Care / Social Activities,Care UK,250.88, 26-Jan-2015,
432,Revenue,CCHD,Home care - Elderly MH - North,Other Small Contracts,Care UK,501.76, 26-Jan-2015,
433,Revenue,CCHD,Elderly MH Day Care North,Day Care / Social Activities,Care UK,145.04, 26-Jan-2015,
434,Revenue,CCHD,Home Care - Elderly - South,Other Small Contracts,Care UK,4719.68, 30-Jan-2015,
435,Revenue,CCHD,Home Care - Elderly - North,Day Care / Social Activities,Care UK,125.44, 30-Jan-2015,
436,Revenue,CCHD,Home Care - Elderly - North,Other Small Contracts,Care UK,1238.72, 30-Jan-2015,
437,Revenue,CCHD,Day Care - North,Day Care / Social Activities,Care UK,254.80, 30-Jan-2015,
438,Revenue,CCHD,Home care - Elderly MH - North,Other Small Contracts,Care UK,482.16, 30-Jan-2015,
439,Revenue,CCHD,Elderly MH Day Care North,Day Care / Social Activities,Care UK,141.12, 30-Jan-2015,
440,Revenue,CCHD,Home Care - Elderly - South,Other Small Contracts,Carers R Us (Bristol) Limited,227.43, 15-Jan-2015,
441,Revenue,CCHD,Home Care - Elderly - North,Other Small Contracts,Carers R Us (Bristol) Limited,418.95, 15-Jan-2015,
442,Revenue,CCHD,SLA Grants - Support Serv,Grants to Voluntary Bodies,Carers Support Centre,500.00, 02-Jan-2015,
443,Revenue,CCHD,SLA Grants - Support Serv,Grants to Voluntary Bodies,Carers Support Centre,500.00, 02-Jan-2015,
444,Revenue,CCHD,SLA Grants - Support Serv,Grants to Voluntary Bodies,Carers Support Centre,500.00, 02-Jan-2015,
445,Revenue,CCHD,SLA Grants - Support Serv,Grants to Voluntary Bodies,Carers Support Centre,500.00, 02-Jan-2015,
446,Revenue,CCHD,Learning Difficulties Development Fund,Other Supplies & Services,Carers Support Centre,5393.00, 13-Jan-2015,
447,Revenue,CCHD,Social Lettings Agency,Fees - General,Individual,10.10, 02-Jan-2015,
448,Revenue,CCHD,Social Lettings Agency,Fees & Charges Income - General,Individual,570.66, 02-Jan-2015,
449,Revenue,CCHD,Social Lettings Agency,Fees - General,Individual,10.10, 30-Jan-2015,
450,Revenue,CCHD,Social Lettings Agency,Fees & Charges Income - General,Individual,570.66, 30-Jan-2015,
451,Revenue,CCHD,Bed Purchasing - North,Permanent Residential,Charlton House Residential Home,1071.28, 20-Jan-2015,
452,Revenue,CCHD,Bed Purchasing - North,Respite Planned - Residential,Charlton House Residential Home,2508.57, 20-Jan-2015,
453,Revenue,CCHD,Bed Purchasing - North,Respite Planned - Residential,Charlton House Residential Home,627.14, 20-Jan-2015,
454,Revenue,CCHD,Home Care - Elderly - South,Other Small Contracts,Cherish Able Care Limited,6092.37, 02-Jan-2015,
455,Revenue,CCHD,Home Care - Elderly - North,Other Small Contracts,Cherish Able Care Limited,849.49, 02-Jan-2015,
456,Revenue,CCHD,Home Care - Elderly - South,Other Small Contracts,Cherish Able Care Limited,6134.07, 07-Jan-2015,
457,Revenue,CCHD,Home Care - Elderly - North,Other Small Contracts,Cherish Able Care Limited,849.49, 07-Jan-2015,
458,Revenue,CCHD,Home Care - Elderly - South,Other Small Contracts,Cherish Able Care Limited,5421.00, 14-Jan-2015,
459,Revenue,CCHD,Home Care - Elderly - North,Other Small Contracts,Cherish Able Care Limited,849.49, 14-Jan-2015,
460,Revenue,CCHD,Home Care - Elderly - South,Other Small Contracts,Cherish Able Care Limited,6280.02, 22-Jan-2015,
461,Revenue,CCHD,Home Care - Elderly - North,Other Small Contracts,Cherish Able Care Limited,841.15, 22-Jan-2015,
462,Revenue,CCHD,Home Care - Elderly - South,Other Small Contracts,Cherish Able Care Limited,5450.19, 29-Jan-2015,
463,Revenue,CCHD,Home Care - Elderly - North,Other Small Contracts,Cherish Able Care Limited,849.49, 29-Jan-2015,
464,Revenue,CCHD,Bed purchasing -S28A  Under 65 - North,Permanent Residential,Chescombe Lodge,8697.00, 20-Jan-2015,
465,Revenue,CCHD,Bed Purchasing - Southmead Hospital,Permanent Nursing,Cholwell House Nursing Home Ltd,1972.64, 20-Jan-2015,
466,Revenue,CCHD,Section 117 Placements MH Younger,Permanent Residential,Church House,7567.32, 20-Jan-2015,
467,Revenue,CCHD,Section 117 Placements MH Younger,Permanent Residential,Church House,7307.08, 20-Jan-2015,
468,Revenue,CCHD,18-25 Year Olds,Permanent Residential,Citibase Watford,7012.00, 20-Jan-2015,
469,Revenue,CCHD,Bed Purchasing - Elderly S117- North,Permanent Residential,Citibase Watford,8932.12, 20-Jan-2015,
470,Revenue,CCHD,18-25 Year Olds,Permanent Residential,Citibase Watford,5454.64, 20-Jan-2015,
471,Revenue,CCHD,Home Care - Elderly - South,Other Small Contracts,Cleeve Care Group,1004.50, 20-Jan-2015,
472,Revenue,CCHD,Home Care - Elderly - North,Other Small Contracts,Cleeve Care Group,871.50, 20-Jan-2015,
473,Revenue,CCHD,Home Care - Elderly - South,Other Small Contracts,Cleeve Care Group,941.50, 02-Jan-2015,
474,Revenue,CCHD,Home Care - Elderly - North,Other Small Contracts,Cleeve Care Group,787.50, 02-Jan-2015,
475,Revenue,CCHD,Home Care - Elderly - South,Other Small Contracts,Cleeve Care Group,742.00, 20-Jan-2015,
476,Revenue,CCHD,Home Care - Elderly - North,Other Small Contracts,Cleeve Care Group,549.50, 20-Jan-2015,
477,Revenue,CCHD,Bed Purchasing - Southmead Hospital,Permanent Residential,Cleeve Lodge,1457.16, 20-Jan-2015,
478,Revenue,CCHD,Bed Purchasing - North,Permanent Nursing,Cleeve Lodge,1874.24, 20-Jan-2015,
479,Revenue,CCHD,Bed Purchasing - South,Respite Planned - Residential,Cleeve Lodge,1714.29, 20-Jan-2015,
480,Revenue,CCHD,Bed Purchasing - South,Permanent Residential,Cleeve Lodge,1801.44, 20-Jan-2015,
481,Revenue,CCHD,Bed Purchasing - South,Respite Planned - Residential,Cleeve Lodge,2196.43, 20-Jan-2015,
482,Revenue,CCHD,Bed Purchasing - South,Permanent Residential,Cleeve Lodge,2291.88, 20-Jan-2015,
483,Revenue,CCHD,Bed Purchasing - North,Permanent Residential,Cleeve Lodge,1393.60, 20-Jan-2015,
484,Revenue,CCHD,Bed Purchasing - South,Permanent Residential,Cleeve Lodge,1806.32, 20-Jan-2015,
485,Revenue,CCHD,Bed Purchasing - South,Permanent Residential,Collingwood Residential Home,1427.48, 20-Jan-2015,
486,Revenue,CCHD,Bed Purchasing - South,Permanent Residential,Collingwood Residential Home,1504.20, 20-Jan-2015,
487,Revenue,CCHD,Bed Purchasing - South,Permanent Residential,Collingwood Residential Home,1448.60, 20-Jan-2015,
488,Revenue,CCHD,Bed Purchasing - South,Permanent Residential,Collingwood Residential Home,1072.80, 20-Jan-2015,
489,Revenue,CCHD,Bed Purchasing - South,Permanent Residential,Collingwood Residential Home,1323.04, 20-Jan-2015,
490,Revenue,CCHD,Bed Purchasing - South,Permanent Residential,Collingwood Residential Home,1280.20, 20-Jan-2015,
491,Revenue,CCHD,Training - Adult Services,Training Expenses,ComputerWorld Training Limited,2985.00, 20-Jan-2015,
492,Revenue,CCHD,Learning Difficulties Development Fund,Other Supplies & Services,Coniston Community Association,1250.00, 13-Jan-2015,
493,Revenue,CCHD,Bed and Breakfast,Bed & Breakfast,Connolly & Callaghan Limited,459.90, 21-Jan-2015,
494,Revenue,CCHD,Bed and Breakfast,Bed & Breakfast,Connolly & Callaghan Limited,636.90, 21-Jan-2015,
495,Revenue,CCHD,Bed and Breakfast,Bed & Breakfast,Connolly & Callaghan Limited,421.20, 21-Jan-2015,
496,Revenue,CCHD,Bed and Breakfast,Bed & Breakfast,Connolly & Callaghan Limited,554.40, 21-Jan-2015,
497,Revenue,CCHD,Bed and Breakfast,Bed & Breakfast,Connolly & Callaghan Limited,525.00, 21-Jan-2015,
498,Revenue,CCHD,Bed and Breakfast,Bed & Breakfast,Connolly & Callaghan Limited,585.90, 21-Jan-2015,
499,Revenue,CCHD,Bed and Breakfast,Bed & Breakfast,Connolly & Callaghan Limited,585.90, 21-Jan-2015,
500,Revenue,CCHD,Bed and Breakfast,Bed & Breakfast,Connolly & Callaghan Limited,522.90, 21-Jan-2015,
501,Revenue,CCHD,Bed and Breakfast,Bed & Breakfast,Connolly & Callaghan Limited,448.00, 21-Jan-2015,
502,Revenue,CCHD,Bed and Breakfast,Bed & Breakfast,Connolly & Callaghan Limited,522.90, 21-Jan-2015,
503,Revenue,CCHD,Bed and Breakfast,Bed & Breakfast,Connolly & Callaghan Limited,617.40, 21-Jan-2015,
504,Revenue,CCHD,Bed and Breakfast,Bed & Breakfast,Connolly & Callaghan Limited,490.00, 22-Jan-2015,
505,Revenue,CCHD,Bed and Breakfast,Bed & Breakfast,Connolly & Callaghan Limited,459.90, 21-Jan-2015,
506,Revenue,CCHD,Bed and Breakfast,Bed & Breakfast,Connolly & Callaghan Limited,491.40, 21-Jan-2015,
507,Revenue,CCHD,Bed and Breakfast,Bed & Breakfast,Connolly & Callaghan Limited,554.40, 21-Jan-2015,
508,Revenue,CCHD,Bed and Breakfast,Bed & Breakfast,Connolly & Callaghan Limited,502.20, 21-Jan-2015,
509,Revenue,CCHD,Bed and Breakfast,Bed & Breakfast,Connolly & Callaghan Limited,585.90, 21-Jan-2015,
510,Revenue,CCHD,Bed and Breakfast,Bed & Breakfast,Connolly & Callaghan Limited,585.90, 21-Jan-2015,
511,Revenue,CCHD,Bed and Breakfast,Bed & Breakfast,Connolly & Callaghan Limited,522.90, 21-Jan-2015,
512,Revenue,CCHD,Bed and Breakfast,Bed & Breakfast,Connolly & Callaghan Limited,448.00, 21-Jan-2015,
513,Revenue,CCHD,Bed and Breakfast,Bed & Breakfast,Connolly & Callaghan Limited,522.90, 21-Jan-2015,
514,Revenue,CCHD,Bed and Breakfast,Bed & Breakfast,Connolly & Callaghan Limited,617.40, 21-Jan-2015,
515,Revenue,CCHD,Bed and Breakfast,Bed & Breakfast,Connolly & Callaghan Limited,490.00, 21-Jan-2015,
516,Revenue,CCHD,Bed and Breakfast,Bed & Breakfast,Connolly & Callaghan Limited,630.00, 21-Jan-2015,
517,Revenue,CCHD,Bed and Breakfast,Bed & Breakfast,Connolly & Callaghan Limited,459.90, 22-Jan-2015,
518,Revenue,CCHD,Bed and Breakfast,Bed & Breakfast,Connolly & Callaghan Limited,491.40, 21-Jan-2015,
519,Revenue,CCHD,Bed and Breakfast,Bed & Breakfast,Connolly & Callaghan Limited,554.40, 21-Jan-2015,
520,Revenue,CCHD,Bed and Breakfast,Bed & Breakfast,Connolly & Callaghan Limited,680.40, 21-Jan-2015,
521,Revenue,CCHD,Bed and Breakfast,Bed & Breakfast,Connolly & Callaghan Limited,525.00, 21-Jan-2015,
522,Revenue,CCHD,Bed and Breakfast,Bed & Breakfast,Connolly & Callaghan Limited,585.90, 21-Jan-2015,
523,Revenue,CCHD,Bed and Breakfast,Bed & Breakfast,Connolly & Callaghan Limited,585.90, 29-Jan-2015,
524,Revenue,CCHD,Bed and Breakfast,Bed & Breakfast,Connolly & Callaghan Limited,585.90, 21-Jan-2015,
525,Revenue,CCHD,Bed and Breakfast,Bed & Breakfast,Connolly & Callaghan Limited,522.90, 21-Jan-2015,
526,Revenue,CCHD,Bed and Breakfast,Bed & Breakfast,Connolly & Callaghan Limited,448.00, 21-Jan-2015,
527,Revenue,CCHD,Bed and Breakfast,Bed & Breakfast,Connolly & Callaghan Limited,522.90, 21-Jan-2015,
528,Revenue,CCHD,Bed and Breakfast,Bed & Breakfast,Connolly & Callaghan Limited,522.90, 21-Jan-2015,
529,Revenue,CCHD,Bed and Breakfast,Bed & Breakfast,Connolly & Callaghan Limited,617.40, 21-Jan-2015,
530,Revenue,CCHD,Bed and Breakfast,Bed & Breakfast,Connolly & Callaghan Limited,490.00, 21-Jan-2015,
531,Revenue,CCHD,Bed and Breakfast,Bed & Breakfast,Connolly & Callaghan Limited,630.00, 21-Jan-2015,
532,Revenue,CCHD,Bed and Breakfast,Bed & Breakfast,Connolly & Callaghan Limited,459.90, 21-Jan-2015,
533,Revenue,CCHD,Bed and Breakfast,Bed & Breakfast,Connolly & Callaghan Limited,459.90, 29-Jan-2015,
534,Revenue,CCHD,Bed and Breakfast,Bed & Breakfast,Connolly & Callaghan Limited,491.40, 29-Jan-2015,
535,Revenue,CCHD,Bed and Breakfast,Bed & Breakfast,Connolly & Callaghan Limited,554.40, 29-Jan-2015,
536,Revenue,CCHD,Bed and Breakfast,Bed & Breakfast,Connolly & Callaghan Limited,680.40, 29-Jan-2015,
537,Revenue,CCHD,Bed and Breakfast,Bed & Breakfast,Connolly & Callaghan Limited,525.00, 29-Jan-2015,
538,Revenue,CCHD,Bed and Breakfast,Bed & Breakfast,Connolly & Callaghan Limited,585.90, 29-Jan-2015,
539,Revenue,CCHD,Bed and Breakfast,Bed & Breakfast,Connolly & Callaghan Limited,585.90, 29-Jan-2015,
540,Revenue,CCHD,Bed and Breakfast,Bed & Breakfast,Connolly & Callaghan Limited,585.90, 29-Jan-2015,
541,Revenue,CCHD,Bed and Breakfast,Bed & Breakfast,Connolly & Callaghan Limited,522.90, 29-Jan-2015,
542,Revenue,CCHD,Bed and Breakfast,Bed & Breakfast,Connolly & Callaghan Limited,448.00, 29-Jan-2015,
543,Revenue,CCHD,Bed and Breakfast,Bed & Breakfast,Connolly & Callaghan Limited,522.90, 29-Jan-2015,
544,Revenue,CCHD,Bed and Breakfast,Bed & Breakfast,Connolly & Callaghan Limited,459.90, 29-Jan-2015,
545,Revenue,CCHD,Bed and Breakfast,Bed & Breakfast,Connolly & Callaghan Limited,522.90, 29-Jan-2015,
546,Revenue,CCHD,Bed and Breakfast,Bed & Breakfast,Connolly & Callaghan Limited,617.40, 29-Jan-2015,
547,Revenue,CCHD,Bed and Breakfast,Bed & Breakfast,Connolly & Callaghan Limited,490.00, 29-Jan-2015,
548,Revenue,CCHD,Bed and Breakfast,Bed & Breakfast,Connolly & Callaghan Limited,630.00, 29-Jan-2015,
549,Revenue,CCHD,Bed and Breakfast,Bed & Breakfast,Connolly & Callaghan Limited,459.90, 29-Jan-2015,
550,Revenue,CCHD,Bed and Breakfast,Bed & Breakfast,Connolly & Callaghan Limited,459.90, 29-Jan-2015,
551,Revenue,CCHD,Bed and Breakfast,Bed & Breakfast,Connolly & Callaghan Limited,491.40, 29-Jan-2015,
552,Revenue,CCHD,Bed and Breakfast,Bed & Breakfast,Connolly & Callaghan Limited,554.40, 29-Jan-2015,
553,Revenue,CCHD,Bed and Breakfast,Bed & Breakfast,Connolly & Callaghan Limited,680.40, 29-Jan-2015,
554,Revenue,CCHD,Bed and Breakfast,Bed & Breakfast,Connolly & Callaghan Limited,525.00, 29-Jan-2015,
555,Revenue,CCHD,Bed and Breakfast,Bed & Breakfast,Connolly & Callaghan Limited,418.50, 29-Jan-2015,
556,Revenue,CCHD,Bed and Breakfast,Bed & Breakfast,Connolly & Callaghan Limited,585.90, 29-Jan-2015,
557,Revenue,CCHD,Bed and Breakfast,Bed & Breakfast,Connolly & Callaghan Limited,522.90, 29-Jan-2015,
558,Revenue,CCHD,Bed and Breakfast,Bed & Breakfast,Connolly & Callaghan Limited,448.00, 29-Jan-2015,
559,Revenue,CCHD,Bed and Breakfast,Bed & Breakfast,Connolly & Callaghan Limited,522.90, 29-Jan-2015,
560,Revenue,CCHD,Bed and Breakfast,Bed & Breakfast,Connolly & Callaghan Limited,459.90, 29-Jan-2015,
561,Revenue,CCHD,Bed and Breakfast,Bed & Breakfast,Connolly & Callaghan Limited,522.90, 29-Jan-2015,
562,Revenue,CCHD,Bed and Breakfast,Bed & Breakfast,Connolly & Callaghan Limited,617.40, 29-Jan-2015,
563,Revenue,CCHD,Bed and Breakfast,Bed & Breakfast,Connolly & Callaghan Limited,490.00, 29-Jan-2015,
564,Revenue,CCHD,Bed and Breakfast,Bed & Breakfast,Connolly & Callaghan Limited,630.00, 29-Jan-2015,
565,Revenue,CCHD,Bed and Breakfast,Bed & Breakfast,Connolly & Callaghan Limited,459.90, 29-Jan-2015,
566,Revenue,CCHD,Bed and Breakfast,Bed & Breakfast,Connolly & Callaghan Limited,428.40, 05-Jan-2015,
567,Revenue,CCHD,Bed and Breakfast,Bed & Breakfast,Connolly & Callaghan Limited,491.40, 15-Jan-2015,
568,Revenue,CCHD,Bed and Breakfast,Recovery of Expenditure,Connolly & Callaghan Limited,554.40, 15-Jan-2015,
569,Revenue,CCHD,Bed and Breakfast,Recovery of Expenditure,Connolly & Callaghan Limited,525.00, 15-Jan-2015,
570,Revenue,CCHD,Bed and Breakfast,Recovery of Expenditure,Connolly & Callaghan Limited,498.00, 15-Jan-2015,
571,Revenue,CCHD,Bed and Breakfast,Recovery of Expenditure,Connolly & Callaghan Limited,648.90, 15-Jan-2015,
572,Revenue,CCHD,Bed and Breakfast,Recovery of Expenditure,Connolly & Callaghan Limited,491.40, 15-Jan-2015,
573,Revenue,CCHD,Bed and Breakfast,Recovery of Expenditure,Connolly & Callaghan Limited,554.40, 15-Jan-2015,
574,Revenue,CCHD,Bed and Breakfast,Recovery of Expenditure,Connolly & Callaghan Limited,522.90, 15-Jan-2015,
575,Revenue,CCHD,Bed and Breakfast,Recovery of Expenditure,Connolly & Callaghan Limited,651.00, 15-Jan-2015,
576,Revenue,CCHD,Bed and Breakfast,Recovery of Expenditure,Connolly & Callaghan Limited,459.90, 15-Jan-2015,
577,Revenue,CCHD,Bed and Breakfast,Recovery of Expenditure,Connolly & Callaghan Limited,522.90, 15-Jan-2015,
578,Revenue,CCHD,Bed and Breakfast,Recovery of Expenditure,Connolly & Callaghan Limited,522.90, 15-Jan-2015,
579,Revenue,CCHD,Bed and Breakfast,Recovery of Expenditure,Connolly & Callaghan Limited,546.00, 15-Jan-2015,
580,Revenue,CCHD,Bed and Breakfast,Bed & Breakfast,Connolly & Callaghan Limited,617.40, 13-Jan-2015,
581,Revenue,CCHD,Bed and Breakfast,Recovery of Expenditure,Connolly & Callaghan Limited,522.90, 15-Jan-2015,
582,Revenue,CCHD,Bed and Breakfast,Recovery of Expenditure,Connolly & Callaghan Limited,490.00, 15-Jan-2015,
583,Revenue,CCHD,Bed and Breakfast,Recovery of Expenditure,Connolly & Callaghan Limited,630.00, 15-Jan-2015,
584,Revenue,CCHD,Bed and Breakfast,Recovery of Expenditure,Connolly & Callaghan Limited,459.90, 15-Jan-2015,
585,Revenue,CCHD,Bed and Breakfast,Bed & Breakfast,Connolly & Callaghan Limited,491.40, 21-Jan-2015,
586,Revenue,CCHD,Bed and Breakfast,Bed & Breakfast,Connolly & Callaghan Limited,554.40, 21-Jan-2015,
587,Revenue,CCHD,Bed and Breakfast,Bed & Breakfast,Connolly & Callaghan Limited,525.00, 21-Jan-2015,
588,Revenue,CCHD,Bed and Breakfast,Bed & Breakfast,Connolly & Callaghan Limited,648.90, 21-Jan-2015,
589,Revenue,CCHD,Bed and Breakfast,Bed & Breakfast,Connolly & Callaghan Limited,491.40, 21-Jan-2015,
590,Revenue,CCHD,Bed and Breakfast,Bed & Breakfast,Connolly & Callaghan Limited,554.40, 21-Jan-2015,
591,Revenue,CCHD,Bed and Breakfast,Bed & Breakfast,Connolly & Callaghan Limited,522.90, 22-Jan-2015,
592,Revenue,CCHD,Bed and Breakfast,Bed & Breakfast,Connolly & Callaghan Limited,651.00, 21-Jan-2015,
593,Revenue,CCHD,Bed and Breakfast,Bed & Breakfast,Connolly & Callaghan Limited,522.90, 21-Jan-2015,
594,Revenue,CCHD,Bed and Breakfast,Bed & Breakfast,Connolly & Callaghan Limited,522.90, 21-Jan-2015,
595,Revenue,CCHD,Bed and Breakfast,Bed & Breakfast,Connolly & Callaghan Limited,546.00, 21-Jan-2015,
596,Revenue,CCHD,Bed and Breakfast,Bed & Breakfast,Connolly & Callaghan Limited,617.40, 21-Jan-2015,
597,Revenue,CCHD,Bed and Breakfast,Bed & Breakfast,Connolly & Callaghan Limited,522.90, 21-Jan-2015,
598,Revenue,CCHD,Bed and Breakfast,Bed & Breakfast,Connolly & Callaghan Limited,532.00, 21-Jan-2015,
599,Revenue,CCHD,Bed and Breakfast,Bed & Breakfast,Connolly & Callaghan Limited,490.00, 21-Jan-2015,
600,Revenue,CCHD,Bed and Breakfast,Bed & Breakfast,Connolly & Callaghan Limited,630.00, 21-Jan-2015,
601,Revenue,CCHD,Bed and Breakfast,Bed & Breakfast,Connolly & Callaghan Limited,459.90, 21-Jan-2015,
602,Revenue,CCHD,Bed and Breakfast,Bed & Breakfast,Connolly & Callaghan Limited,491.40, 29-Jan-2015,
603,Revenue,CCHD,Bed and Breakfast,Bed & Breakfast,Connolly & Callaghan Limited,554.40, 29-Jan-2015,
604,Revenue,CCHD,Bed and Breakfast,Bed & Breakfast,Connolly & Callaghan Limited,525.00, 29-Jan-2015,
605,Revenue,CCHD,Bed and Breakfast,Bed & Breakfast,Connolly & Callaghan Limited,581.00, 29-Jan-2015,
606,Revenue,CCHD,Bed and Breakfast,Bed & Breakfast,Connolly & Callaghan Limited,648.90, 29-Jan-2015,
607,Revenue,CCHD,Bed and Breakfast,Bed & Breakfast,Connolly & Callaghan Limited,491.40, 29-Jan-2015,
608,Revenue,CCHD,Bed and Breakfast,Bed & Breakfast,Connolly & Callaghan Limited,554.40, 29-Jan-2015,
609,Revenue,CCHD,Bed and Breakfast,Bed & Breakfast,Connolly & Callaghan Limited,651.00, 29-Jan-2015,
610,Revenue,CCHD,Bed and Breakfast,Bed & Breakfast,Connolly & Callaghan Limited,522.90, 29-Jan-2015,
611,Revenue,CCHD,Bed and Breakfast,Bed & Breakfast,Connolly & Callaghan Limited,617.40, 29-Jan-2015,
612,Revenue,CCHD,Bed and Breakfast,Bed & Breakfast,Connolly & Callaghan Limited,468.00, 29-Jan-2015,
613,Revenue,CCHD,Bed and Breakfast,Bed & Breakfast,Connolly & Callaghan Limited,522.90, 29-Jan-2015,
614,Revenue,CCHD,Bed and Breakfast,Bed & Breakfast,Connolly & Callaghan Limited,490.00, 29-Jan-2015,
615,Revenue,CCHD,Bed and Breakfast,Bed & Breakfast,Connolly & Callaghan Limited,630.00, 29-Jan-2015,
616,Revenue,CCHD,Bed and Breakfast,Bed & Breakfast,Connolly & Callaghan Limited,560.00, 29-Jan-2015,
617,Revenue,CCHD,Bed and Breakfast,Bed & Breakfast,Connolly & Callaghan Limited,459.90, 29-Jan-2015,
618,Revenue,CCHD,Bed and Breakfast,Other Supplies & Services,Connolly & Callaghan Limited,491.40, 29-Jan-2015,
619,Revenue,CCHD,Bed and Breakfast,Other Supplies & Services,Connolly & Callaghan Limited,525.00, 29-Jan-2015,
620,Revenue,CCHD,Bed and Breakfast,Other Supplies & Services,Connolly & Callaghan Limited,581.00, 29-Jan-2015,
621,Revenue,CCHD,Bed and Breakfast,Other Supplies & Services,Connolly & Callaghan Limited,648.90, 29-Jan-2015,
622,Revenue,CCHD,Bed and Breakfast,Other Supplies & Services,Connolly & Callaghan Limited,491.40, 29-Jan-2015,
623,Revenue,CCHD,Bed and Breakfast,Other Supplies & Services,Connolly & Callaghan Limited,522.90, 29-Jan-2015,
624,Revenue,CCHD,Bed and Breakfast,Other Supplies & Services,Connolly & Callaghan Limited,651.00, 29-Jan-2015,
625,Revenue,CCHD,Bed and Breakfast,Other Supplies & Services,Connolly & Callaghan Limited,522.90, 29-Jan-2015,
626,Revenue,CCHD,Bed and Breakfast,Other Supplies & Services,Connolly & Callaghan Limited,522.90, 29-Jan-2015,
627,Revenue,CCHD,Bed and Breakfast,Other Supplies & Services,Connolly & Callaghan Limited,546.00, 29-Jan-2015,
628,Revenue,CCHD,Bed and Breakfast,Other Supplies & Services,Connolly & Callaghan Limited,617.40, 29-Jan-2015,
629,Revenue,CCHD,Bed and Breakfast,Other Supplies & Services,Connolly & Callaghan Limited,522.90, 29-Jan-2015,
630,Revenue,CCHD,Bed and Breakfast,Other Supplies & Services,Connolly & Callaghan Limited,490.00, 29-Jan-2015,
631,Revenue,CCHD,Bed and Breakfast,Other Supplies & Services,Connolly & Callaghan Limited,630.00, 29-Jan-2015,
632,Revenue,CCHD,Bed and Breakfast,Other Supplies & Services,Connolly & Callaghan Limited,459.90, 29-Jan-2015,
633,Revenue,CCHD,Bed Purchasing - Southmead Hospital,Permanent Residential,Coombs Wood House,965.00, 20-Jan-2015,
634,Revenue,CCHD,Bed Purchasing - S28A - Over 65- North,Permanent Residential,Cream Ii Ltd  Longrun House,8039.76, 20-Jan-2015,
635,Revenue,CCHD,Bed Purchasing - South,Permanent Residential,Cream Ii Ltd  Longrun House,5628.52, 20-Jan-2015,
636,Revenue,CCHD,Bed purchasing -S28A  Under 65 - North,Permanent Residential,Creedy Court,9294.40, 20-Jan-2015,
637,Revenue,CCHD,Bed Purchasing - S28A - Over 65- North,Permanent Residential,Creedy Court,7726.88, 20-Jan-2015,
638,Revenue,CCHD,Bed Purchasing - North,Permanent Residential,Creedy Court,12580.08, 16-Jan-2015,
639,Revenue,CCHD,NHS Health Checks & Tobacco Control,Printing & Stationery,Curious Road,650.00, 02-Jan-2015,
640,Revenue,CCHD,Brokerage and Information Service,Grants to Voluntary Bodies,D H I,13961.00, 02-Jan-2015,
641,Revenue,CCHD,Purchase of Non-Res Care - South,Day Care / Social Activities,Daneswood,1472.68, 23-Jan-2015,
642,Revenue,CCHD,Bed Purchasing - South,Permanent Residential,Daneswood,11009.48, 20-Jan-2015,
643,Revenue,CCHD,Bed Purchasing - North,Permanent Residential,Daneswood,9114.88, 20-Jan-2015,
644,Revenue,CCHD,Bed Purchasing - Elderly S117- North,Permanent Nursing,Danshell Healthcare Group,11529.00, 20-Jan-2015,
645,Revenue,CCHD,Learning Difficulties PSL,Other Supplies & Services,Individual,2016.44, 22-Jan-2015,
646,Revenue,CCHD,SLA Grants - Support Serv,Grants to Voluntary Bodies,Individual,500.00, 08-Jan-2015,
647,Revenue,CCHD,Purchase of Non-Res Care - North,Day Care / Social Activities,Design 4 Life Ltd,1049.76, 22-Jan-2015,
648,Revenue,CCHD,Purchase of Non-Res Care - North,Day Care / Social Activities,Design 4 Life Ltd,1705.86, 23-Jan-2015,
649,Revenue,CCHD,Bed Purchasing - South,Permanent Residential,Devon & Cornwall Autistic Community Trus,8796.92, 20-Jan-2015,
650,Revenue,CCHD,Home Care - Elderly - South,Other Small Contracts,Dhek Bhal,667.92, 02-Jan-2015,
651,Revenue,CCHD,Home Care - Elderly - North,Other Small Contracts,Dhek Bhal,193.60, 02-Jan-2015,
652,Revenue,CCHD,Home Care - Elderly - South,Other Small Contracts,Dhek Bhal,493.68, 08-Jan-2015,
653,Revenue,CCHD,Home Care - Elderly - North,Other Small Contracts,Dhek Bhal,116.16, 08-Jan-2015,
654,Revenue,CCHD,Home Care - Elderly - South,Other Small Contracts,Dhek Bhal,464.64, 19-Jan-2015,
655,Revenue,CCHD,Home Care - Elderly - North,Other Small Contracts,Dhek Bhal,116.16, 19-Jan-2015,
656,Revenue,CCHD,Home Care - Elderly - South,Other Small Contracts,Dhek Bhal,464.64, 19-Jan-2015,
657,Revenue,CCHD,Home Care - Elderly - North,Other Small Contracts,Dhek Bhal,154.88, 19-Jan-2015,
658,Revenue,CCHD,Home Care - Elderly - South,Other Small Contracts,Dhek Bhal,464.64, 28-Jan-2015,
659,Revenue,CCHD,Home Care - Elderly - North,Other Small Contracts,Dhek Bhal,193.60, 28-Jan-2015,
660,Revenue,CCHD,SLA Grants - Support Serv,Grants to Voluntary Bodies,Dhek Bhal,500.00, 02-Jan-2015,
661,Revenue,CCHD,Supported Living - South,Private & Voluntary Home Care,Dimensions (UK) Ltd,8006.68, 29-Jan-2015,
662,Revenue,CCHD,Bed Purchasing - South,Permanent Residential,Dimensions(Uk) Ltd,9760.00, 20-Jan-2015,
663,Revenue,CCHD,Home Care - Elderly - South,Other Small Contracts,DoCare Ltd,2968.76, 19-Jan-2015,
664,Revenue,CCHD,Home Care - Elderly - North,Day Care / Social Activities,DoCare Ltd,38.00, 19-Jan-2015,
665,Revenue,CCHD,Home Care - Elderly - North,Other Small Contracts,DoCare Ltd,7771.00, 19-Jan-2015,
666,Revenue,CCHD,Home Care - Elderly - South,Day Care / Social Activities,DoCare Ltd,42.75, 30-Jan-2015,
667,Revenue,CCHD,Home Care - Elderly - South,Other Small Contracts,DoCare Ltd,2935.51, 30-Jan-2015,
668,Revenue,CCHD,Home Care - Elderly - North,Other Small Contracts,DoCare Ltd,7348.25, 30-Jan-2015,
669,Revenue,CCHD,Home Care - Elderly - South,Day Care / Social Activities,DoCare Ltd,38.00, 30-Jan-2015,
670,Revenue,CCHD,Home Care - Elderly - South,Other Small Contracts,DoCare Ltd,2593.50, 30-Jan-2015,
671,Revenue,CCHD,Home Care - Elderly - North,Other Small Contracts,DoCare Ltd,7220.00, 30-Jan-2015,
672,Revenue,CCHD,Cambrian Green Day Service,"Provisions (Food, etc)",Douglas Liddell,535.00, 08-Jan-2015,
673,Revenue,CCHD,Cambrian Green Day Service,"Provisions (Food, etc)",Douglas Liddell,600.00, 08-Jan-2015,
674,Revenue,CCHD,Sexual Health,Other Supplies & Services,Dr Annie Egginton,1370.00, 08-Jan-2015,
675,Revenue,CCHD,MH Purchasing - Younger,Permanent Residential,Dunraven House,1854.32, 20-Jan-2015,
676,Revenue,CCHD,Bed and Breakfast,Bed & Breakfast,E J Bartlett,651.00, 09-Jan-2015,
677,Revenue,CCHD,Bed and Breakfast,Bed & Breakfast,E J Bartlett,420.00, 09-Jan-2015,
678,Revenue,CCHD,Tenancy Start Up Scheme,Other Supplies & Services,Individual,651.00, 09-Jan-2015,
679,Revenue,CCHD,Tenancy Start Up Scheme,Other Supplies & Services,Individual,420.00, 09-Jan-2015,
680,Revenue,CCHD,Bed and Breakfast,Recovery of Expenditure,E J Bartlett,651.00, 16-Jan-2015,
681,Revenue,CCHD,Bed and Breakfast,Recovery of Expenditure,E J Bartlett,420.00, 16-Jan-2015,
682,Revenue,CCHD,Bed and Breakfast,Bed & Breakfast,E J Bartlett,651.00, 29-Jan-2015,
683,Revenue,CCHD,Bed and Breakfast,Bed & Breakfast,E J Bartlett,420.00, 29-Jan-2015,
684,Revenue,CCHD,Bed and Breakfast,Bed & Breakfast,E J Bartlett,651.00, 29-Jan-2015,
685,Revenue,CCHD,Bed and Breakfast,Bed & Breakfast,E J Bartlett,620.00, 29-Jan-2015,
686,Revenue,CCHD,Bed and Breakfast,Bed & Breakfast,E J Bartlett,420.00, 29-Jan-2015,
687,Revenue,CCHD,Bed Purchasing - North,Permanent Residential,East Court,2213.44, 20-Jan-2015,
688,Revenue,CCHD,Minor Adaptations Service,Operational Equipment,Eastman & Co (Timber) Limited,584.64, 16-Jan-2015,
689,Revenue,CCHD,Home Care - Elderly - South,Day Care / Social Activities,Easton Community Centre,520.56, 20-Jan-2015,
690,Revenue,CCHD,Home Care - Elderly - South,Day Care / Social Activities,Easton Community Centre,520.56, 20-Jan-2015,
691,Revenue,CCHD,Home Care - Elderly - North,Day Care / Social Activities,Easton Community Centre,520.56, 20-Jan-2015,
692,Revenue,CCHD,Home Care - Elderly - North,Day Care / Social Activities,Easton Community Centre,520.56, 20-Jan-2015,
693,Revenue,CCHD,Home Care - Elderly - South,Supported Living,Eclipse Office Park,3592.96, 20-Jan-2015,
694,Revenue,CCHD,Home Care - Elderly - North,Supported Living,Eclipse Office Park,4293.72, 20-Jan-2015,
695,Revenue,CCHD,Home Care - Elderly - South,Supported Living,Eclipse Office Park,3592.96, 20-Jan-2015,
696,Revenue,CCHD,Supported Living (S28a) North,Private & Voluntary Home Care,Eclipse Office Park,4032.80, 20-Jan-2015,
697,Revenue,CCHD,Home Care - Elderly - South,Supported Living,Eclipse Office Park,3604.68, 20-Jan-2015,
698,Revenue,CCHD,Home Care - Elderly - South,Supported Living,Eclipse Office Park,2292.92, 20-Jan-2015,
699,Revenue,CCHD,Supported Living (S28a) North,Private & Voluntary Home Care,Eclipse Office Park,4002.44, 20-Jan-2015,
700,Revenue,CCHD,Supported Living (S28a) North,Private & Voluntary Home Care,Eclipse Office Park,4002.44, 20-Jan-2015,
701,Revenue,CCHD,Supported Living (S28a) North,Private & Voluntary Home Care,Eclipse Office Park,4032.80, 20-Jan-2015,
702,Revenue,CCHD,Supported Living (S28a) South,Supported Living,Eclipse Office Park,3839.88, 20-Jan-2015,
703,Revenue,CCHD,Supported Living (S28a) North,Private & Voluntary Home Care,Eclipse Office Park,3564.60, 20-Jan-2015,
704,Revenue,CCHD,Supported Living (S28a) North,Private & Voluntary Home Care,Eclipse Office Park,3564.60, 20-Jan-2015,
705,Revenue,CCHD,Home Care - Elderly - South,Supported Living,Eclipse Office Park,2949.92, 20-Jan-2015,
706,Revenue,CCHD,Supported Living (S28a) South,Supported Living,Eclipse Office Park,5447.00, 20-Jan-2015,
707,Revenue,CCHD,Home Care - Elderly - South,Supported Living,Eclipse Office Park,2208.68, 20-Jan-2015,
708,Revenue,CCHD,Supported Living (S28a) South,Supported Living,Eclipse Office Park,2208.68, 20-Jan-2015,
709,Revenue,CCHD,Supported Living (S28a) North,Private & Voluntary Home Care,Eclipse Office Park,4303.72, 20-Jan-2015,
710,Revenue,CCHD,Supported Living (S28a) North,Private & Voluntary Home Care,Eclipse Office Park,3576.60, 20-Jan-2015,
711,Revenue,CCHD,Supported Living (S28a) South,Supported Living,Eclipse Office Park,2088.68, 20-Jan-2015,
712,Revenue,CCHD,Supported Living (S28a) South,Supported Living,Eclipse Office Park,2208.68, 20-Jan-2015,
713,Revenue,CCHD,Supported Living (S28a) South,Supported Living,Eclipse Office Park,2949.92, 20-Jan-2015,
714,Revenue,CCHD,Home Care - Elderly - South,Day Care / Social Activities,Eclipse Office Park,735.12, 20-Jan-2015,
715,Revenue,CCHD,Home Care - Elderly - North,Day Care / Social Activities,Eclipse Office Park,980.16, 20-Jan-2015,
716,Revenue,CCHD,Home Care - Elderly - South,Day Care / Social Activities,Eclipse Office Park,612.60, 20-Jan-2015,
717,Revenue,CCHD,Home Care - Elderly - South,Day Care / Social Activities,Eclipse Office Park,857.64, 20-Jan-2015,
718,Revenue,CCHD,Home Care - Elderly - South,Day Care / Social Activities,Eclipse Office Park,735.12, 20-Jan-2015,
719,Revenue,CCHD,Home Care - Elderly - South,Day Care / Social Activities,Eclipse Office Park,857.64, 20-Jan-2015,
720,Revenue,CCHD,Home Care - Elderly - South,Day Care / Social Activities,Eclipse Office Park,1225.20, 20-Jan-2015,
721,Revenue,CCHD,Home Care - Elderly - South,Day Care / Social Activities,Eclipse Office Park,735.12, 20-Jan-2015,
722,Revenue,CCHD,Home Care - Elderly - South,Day Care / Social Activities,Eclipse Office Park,857.64, 20-Jan-2015,
723,Revenue,CCHD,Home Care - Elderly - South,Day Care / Social Activities,Eclipse Office Park,980.16, 20-Jan-2015,
724,Revenue,CCHD,Bed Purchasing - North,Permanent Residential,Eclipse Office Park,2653.24, 20-Jan-2015,
725,Revenue,CCHD,Bed Purchasing - South,Permanent Residential,Eclipse Office Park,1429.36, 20-Jan-2015,
726,Revenue,CCHD,Bed Purchasing - North,Permanent Residential,Eclipse Office Park,3435.28, 20-Jan-2015,
727,Revenue,CCHD,Bed Purchasing - South,Permanent Residential,Eclipse Office Park,4867.92, 20-Jan-2015,
728,Revenue,CCHD,Bed Purchasing - South,Permanent Residential,Eclipse Office Park,5442.48, 20-Jan-2015,
729,Revenue,CCHD,Bed Purchasing - South,Permanent Nursing,Eclipse Office Park,2740.16, 20-Jan-2015,
730,Revenue,CCHD,Bed Purchasing - South,Permanent Nursing,Eclipse Office Park,1281.68, 20-Jan-2015,
731,Revenue,CCHD,Bed Purchasing - South,Permanent Residential,Eclipse Office Park,3605.96, 20-Jan-2015,
732,Revenue,CCHD,Bed purchasing - Elderly S117 - South,Permanent Nursing,Eclipse Office Park,1992.00, 20-Jan-2015,
733,Revenue,CCHD,Section 117 Placements MH Younger,Permanent Residential,Eclipse Office Park,1356.00, 20-Jan-2015,
734,Revenue,CCHD,Bed purchasing - Elderly S117 - South,Permanent Nursing,Eclipse Office Park,1992.00, 20-Jan-2015,
735,Revenue,CCHD,Bed Purchasing - South,Permanent Nursing,Eclipse Office Park,926.60, 20-Jan-2015,
736,Revenue,CCHD,Bed Purchasing - North,Permanent Nursing,Eclipse Office Park,1421.72, 20-Jan-2015,
737,Revenue,CCHD,Bed Purchasing - South,Permanent Residential,Eclipse Office Park,4125.12, 20-Jan-2015,
738,Revenue,CCHD,Bed purchasing -S28A  Under 65 - North,Permanent Nursing,Eclipse Office Park,5411.96, 20-Jan-2015,
739,Revenue,CCHD,Bed purchasing -S28A  Under 65 - North,Permanent Residential,Eclipse Office Park,5334.12, 20-Jan-2015,
740,Revenue,CCHD,Bed purchasing - S28A Under 65 - South,Permanent Residential,Eclipse Office Park,5527.88, 20-Jan-2015,
741,Revenue,CCHD,Bed Purchasing - South,Permanent Residential,Eclipse Office Park,1302.92, 20-Jan-2015,
742,Revenue,CCHD,Bed Purchasing - South,Permanent Residential,Eclipse Office Park,5018.48, 20-Jan-2015,
743,Revenue,CCHD,Bed Purchasing - South,Permanent Residential,Eclipse Office Park,5534.96, 20-Jan-2015,
744,Revenue,CCHD,Bed purchasing - S28A Under 65 - South,Permanent Nursing,Eclipse Office Park,7294.32, 20-Jan-2015,
745,Revenue,CCHD,MH Purchasing - Younger,Permanent Residential,Eclipse Office Park,860.20, 20-Jan-2015,
746,Revenue,CCHD,Bed Purchasing - South,Permanent Residential,Eclipse Office Park,5124.60, 20-Jan-2015,
747,Revenue,CCHD,Bed Purchasing - South,Permanent Residential,Eclipse Office Park,745.57, 20-Jan-2015,
748,Revenue,CCHD,Bed Purchasing - North,Permanent Residential,Eclipse Office Park,4023.56, 20-Jan-2015,
749,Revenue,CCHD,Bed purchasing -S28A  Under 65 - North,Permanent Residential,Eclipse Office Park,5258.04, 20-Jan-2015,
750,Revenue,CCHD,Bed Purchasing - North,Permanent Residential,Eclipse Office Park,4634.84, 20-Jan-2015,
751,Revenue,CCHD,Bed purchasing -S28A  Under 65 - North,Permanent Residential,Eclipse Office Park,7058.72, 20-Jan-2015,
752,Revenue,CCHD,Bed purchasing -S28A  Under 65 - North,Permanent Nursing,Eclipse Office Park,5801.32, 20-Jan-2015,
753,Revenue,CCHD,Bed Purchasing - South,Permanent Residential,Eclipse Office Park,4515.52, 20-Jan-2015,
754,Revenue,CCHD,Bed Purchasing - South,Permanent Residential,Eclipse Office Park,3210.16, 20-Jan-2015,
755,Revenue,CCHD,Bed purchasing -S28A  Under 65 - North,Permanent Residential,Eclipse Office Park,6755.12, 20-Jan-2015,
756,Revenue,CCHD,Bed purchasing - S28A Under 65 - South,Permanent Residential,Eclipse Office Park,4525.88, 20-Jan-2015,
757,Revenue,CCHD,Bed Purchasing - S28A - Over 65- North,Permanent Residential,Eclipse Office Park,6604.52, 20-Jan-2015,
758,Revenue,CCHD,Bed purchasing -S28A  Under 65 - North,Permanent Residential,Eclipse Office Park,7114.72, 20-Jan-2015,
759,Revenue,CCHD,Bed purchasing -S28A  Under 65 - North,Permanent Residential,Eclipse Office Park,7058.72, 20-Jan-2015,
760,Revenue,CCHD,Bed Purchasing - LD S28A- Over 65- South,Permanent Residential,Eclipse Office Park,4098.32, 20-Jan-2015,
761,Revenue,CCHD,Bed purchasing - S28A Under 65 - South,Permanent Residential,Eclipse Office Park,4867.92, 20-Jan-2015,
762,Revenue,CCHD,Bed purchasing - S28A Under 65 - South,Permanent Residential,Eclipse Office Park,4761.36, 20-Jan-2015,
763,Revenue,CCHD,Bed purchasing - S28A Under 65 - South,Permanent Residential,Eclipse Office Park,3663.96, 20-Jan-2015,
764,Revenue,CCHD,Bed Purchasing - LD S28A- Over 65- South,Permanent Residential,Eclipse Office Park,5091.12, 20-Jan-2015,
765,Revenue,CCHD,Bed Purchasing - LD S28A- Over 65- South,Permanent Residential,Eclipse Office Park,4919.32, 20-Jan-2015,
766,Revenue,CCHD,Bed Purchasing - LD S28A- Over 65- South,Permanent Residential,Eclipse Office Park,5075.32, 20-Jan-2015,
767,Revenue,CCHD,Bed Purchasing - LD S28A- Over 65- South,Permanent Residential,Eclipse Office Park,4353.28, 20-Jan-2015,
768,Revenue,CCHD,Bed Purchasing - LD S28A- Over 65- South,Permanent Residential,Eclipse Office Park,5170.20, 20-Jan-2015,
769,Revenue,CCHD,Bed Purchasing - S28A - Over 65- North,Permanent Residential,Eclipse Office Park,2875.08, 20-Jan-2015,
770,Revenue,CCHD,Section 117 Placements MH Younger,Permanent Residential,Eclipse Office Park,1356.00, 20-Jan-2015,
771,Revenue,CCHD,Bed Purchasing - South,Permanent Residential,Eclipse Office Park,860.20, 20-Jan-2015,
772,Revenue,CCHD,Bed purchasing - S28A Under 65 - South,Permanent Residential,Eclipse Office Park,5415.92, 20-Jan-2015,
773,Revenue,CCHD,Bed Purchasing - North,Permanent Residential,Eclipse Office Park,4307.44, 20-Jan-2015,
774,Revenue,CCHD,Bed Purchasing - North,Permanent Nursing,Eclipse Office Park,6842.60, 20-Jan-2015,
775,Revenue,CCHD,Bed Purchasing - North,Permanent Nursing,Eclipse Office Park,1104.48, 20-Jan-2015,
776,Revenue,CCHD,Bed Purchasing - South,Permanent Residential,Eclipse Office Park,4271.52, 20-Jan-2015,
777,Revenue,CCHD,Bed purchasing -S28A  Under 65 - North,Permanent Residential,Eclipse Office Park,5675.56, 20-Jan-2015,
778,Revenue,CCHD,Bed Purchasing - S28A - Over 65- North,Permanent Residential,Eclipse Office Park,3599.08, 20-Jan-2015,
779,Revenue,CCHD,Bed Purchasing - Elderly S117- North,Permanent Residential,Eclipse Office Park,1756.00, 20-Jan-2015,
780,Revenue,CCHD,MH Purchasing - Younger,Permanent Residential,Eclipse Office Park,1036.60, 20-Jan-2015,
781,Revenue,CCHD,Bed Purchasing - S28A - Over 65- North,Permanent Residential,Eclipse Office Park,3214.56, 20-Jan-2015,
782,Revenue,CCHD,Bed Purchasing - LD S28A- Over 65- South,Permanent Residential,Eclipse Office Park,3882.08, 20-Jan-2015,
783,Revenue,CCHD,Bed purchasing - S28A Under 65 - South,Permanent Residential,Eclipse Office Park,5471.56, 20-Jan-2015,
784,Revenue,CCHD,Bed purchasing - S28A Under 65 - South,Permanent Nursing,Eclipse Office Park,5364.24, 20-Jan-2015,
785,Revenue,CCHD,Bed Purchasing - LD S28A- Over 65- South,Permanent Nursing,Eclipse Office Park,5225.52, 20-Jan-2015,
786,Revenue,CCHD,Bed Purchasing - LD S28A- Over 65- South,Permanent Residential,Eclipse Office Park,4802.88, 20-Jan-2015,
787,Revenue,CCHD,Bed Purchasing - LD S28A- Over 65- South,Permanent Residential,Eclipse Office Park,4524.76, 20-Jan-2015,
788,Revenue,CCHD,Bed Purchasing - LD S28A- Over 65- South,Permanent Residential,Eclipse Office Park,4599.84, 20-Jan-2015,
789,Revenue,CCHD,Bed purchasing - S28A Under 65 - South,Permanent Residential,Eclipse Office Park,6053.44, 20-Jan-2015,
790,Revenue,CCHD,Bed Purchasing - LD S28A- Over 65- South,Permanent Residential,Eclipse Office Park,4667.16, 20-Jan-2015,
791,Revenue,CCHD,Bed Purchasing - S28A - Over 65- North,Permanent Residential,Eclipse Office Park,4750.44, 20-Jan-2015,
792,Revenue,CCHD,Bed Purchasing - South,Permanent Nursing,Eclipse Office Park,3284.32, 20-Jan-2015,
793,Revenue,CCHD,Bed Purchasing - S28A - Over 65- North,Permanent Residential,Eclipse Office Park,4588.52, 20-Jan-2015,
794,Revenue,CCHD,Bed Purchasing - S28A - Over 65- North,Permanent Residential,Eclipse Office Park,4759.28, 20-Jan-2015,
795,Revenue,CCHD,Bed purchasing - S28A Under 65 - South,Permanent Residential,Eclipse Office Park,4756.28, 20-Jan-2015,
796,Revenue,CCHD,Bed Purchasing - S28A - Over 65- North,Permanent Residential,Eclipse Office Park,4503.16, 20-Jan-2015,
797,Revenue,CCHD,Bed purchasing -S28A  Under 65 - North,Permanent Residential,Eclipse Office Park,7058.72, 20-Jan-2015,
798,Revenue,CCHD,Bed purchasing -S28A  Under 65 - North,Permanent Residential,Eclipse Office Park,3304.04, 20-Jan-2015,
799,Revenue,CCHD,Bed Purchasing - S28A - Over 65- North,Permanent Residential,Eclipse Office Park,3133.72, 20-Jan-2015,
800,Revenue,CCHD,Bed Purchasing - S28A - Over 65- North,Permanent Residential,Eclipse Office Park,3431.24, 20-Jan-2015,
801,Revenue,CCHD,Bed Purchasing - LD S28A- Over 65- South,Permanent Residential,Eclipse Office Park,3086.04, 20-Jan-2015,
802,Revenue,CCHD,Bed Purchasing - North,Permanent Residential,Eclipse Office Park,6773.16, 20-Jan-2015,
803,Revenue,CCHD,Bed Purchasing - South,Permanent Residential,Eclipse Office Park,1318.68, 20-Jan-2015,
804,Revenue,CCHD,MH Purchasing - Younger,Permanent Nursing,Eclipse Office Park,937.80, 20-Jan-2015,
805,Revenue,CCHD,MH Purchasing - Younger,Permanent Nursing,Eclipse Office Park,952.20, 20-Jan-2015,
806,Revenue,CCHD,Bed Purchasing - South,Permanent Residential,Eclipse Office Park,3254.24, 20-Jan-2015,
807,Revenue,CCHD,Bed purchasing - S28A Under 65 - South,Permanent Residential,Eclipse Office Park,5919.12, 20-Jan-2015,
808,Revenue,CCHD,Bed purchasing - S28A Under 65 - South,Permanent Residential,Eclipse Office Park,6010.16, 20-Jan-2015,
809,Revenue,CCHD,Bed Purchasing - LD S28A- Over 65- South,Permanent Residential,Eclipse Office Park,4353.28, 20-Jan-2015,
810,Revenue,CCHD,Bed Purchasing - South,Permanent Residential,Eclipse Office Park,5919.52, 20-Jan-2015,
811,Revenue,CCHD,Bed Purchasing - LD S28A- Over 65- South,Permanent Nursing,Eclipse Office Park,4528.36, 20-Jan-2015,
812,Revenue,CCHD,Bed Purchasing - LD S28A- Over 65- South,Permanent Nursing,Eclipse Office Park,5225.52, 20-Jan-2015,
813,Revenue,CCHD,Bed Purchasing - LD S28A- Over 65- South,Permanent Residential,Eclipse Office Park,3540.96, 20-Jan-2015,
814,Revenue,CCHD,Bed Purchasing - LD S28A- Over 65- South,Permanent Residential,Eclipse Office Park,4343.36, 20-Jan-2015,
815,Revenue,CCHD,Bed Purchasing - LD S28A- Over 65- South,Permanent Residential,Eclipse Office Park,4832.92, 20-Jan-2015,
816,Revenue,CCHD,Bed Purchasing - South,Permanent Residential,Eclipse Office Park,1224.16, 20-Jan-2015,
817,Revenue,CCHD,Bed purchasing -S28A  Under 65 - North,Permanent Nursing,Eclipse Office Park,7675.92, 20-Jan-2015,
818,Revenue,CCHD,Bed Purchasing - Southmead Hospital,Permanent Nursing,Eclipse Office Park,1348.48, 20-Jan-2015,
819,Revenue,CCHD,Bed Purchasing - South,Permanent Residential,Eclipse Office Park,5257.00, 20-Jan-2015,
820,Revenue,CCHD,Bed Purchasing - Elderly S117- North,Permanent Nursing,Eclipse Office Park,1992.00, 20-Jan-2015,
821,Revenue,CCHD,Bed Purchasing - North,Permanent Nursing,Eclipse Office Park,836.44, 20-Jan-2015,
822,Revenue,CCHD,Section 117 Placements MH Younger,Permanent Residential,Eclipse Office Park,1356.00, 20-Jan-2015,
823,Revenue,CCHD,Bed Purchasing - South,Permanent Nursing,Eclipse Office Park,3389.36, 20-Jan-2015,
824,Revenue,CCHD,Bed Purchasing - South,Permanent Residential,Eclipse Office Park,3389.48, 20-Jan-2015,
825,Revenue,CCHD,Bed Purchasing - LD S28A- Over 65- South,Permanent Nursing,Eclipse Office Park,2981.68, 20-Jan-2015,
826,Revenue,CCHD,Bed Purchasing - LD S28A- Over 65- South,Permanent Nursing,Eclipse Office Park,2767.44, 20-Jan-2015,
827,Revenue,CCHD,Bed Purchasing - S28A - Over 65- North,Permanent Nursing,Eclipse Office Park,3692.72, 20-Jan-2015,
828,Revenue,CCHD,Bed Purchasing - S28A - Over 65- North,Permanent Nursing,Eclipse Office Park,3684.72, 20-Jan-2015,
829,Revenue,CCHD,MH Purchasing - Younger,Respite Planned - Residential,Eclipse Office Park,3734.48, 20-Jan-2015,
830,Revenue,CCHD,Bed Purchasing - South,Respite Planned - Residential,Edgecumbe Lodge,2100.00, 20-Jan-2015,
831,Revenue,CCHD,Bed Purchasing - Southmead Hospital,Permanent Residential,Edgecumbe Lodge,1260.20, 20-Jan-2015,
832,Revenue,CCHD,Bed Purchasing - South,Permanent Residential,Edgecumbe Lodge,1056.36, 20-Jan-2015,
833,Revenue,CCHD,Bed Purchasing - Southmead Hospital,Permanent Residential,Edgecumbe Lodge,2367.56, 20-Jan-2015,
834,Revenue,CCHD,Bed Purchasing - Southmead Hospital,Permanent Residential,Edgecumbe Lodge,1604.20, 20-Jan-2015,
835,Revenue,CCHD,Bed Purchasing - South,Permanent Residential,Edgecumbe Lodge,1427.00, 20-Jan-2015,
836,Revenue,CCHD,Bed Purchasing - Southmead Hospital,Permanent Residential,Edgecumbe Lodge,1533.80, 20-Jan-2015,
837,Revenue,CCHD,Bed Purchasing - South,Permanent Residential,Edgecumbe Lodge,1141.04, 20-Jan-2015,
838,Revenue,CCHD,Bed Purchasing - North,Permanent Residential,Edgecumbe Lodge,1372.64, 20-Jan-2015,
839,Revenue,CCHD,Bed Purchasing - South,Permanent Residential,Edgemont House Ltd,1472.92, 20-Jan-2015,
840,Revenue,CCHD,Bed Purchasing - South,Permanent Residential,Edgemont House Ltd,1260.20, 20-Jan-2015,
841,Revenue,CCHD,Bed Purchasing - South,Permanent Residential,Edgemont House Ltd,1430.32, 20-Jan-2015,
842,Revenue,CCHD,Bed Purchasing - South,Permanent Residential,Edgemont House Ltd,1293.48, 20-Jan-2015,
843,Revenue,CCHD,Bed Purchasing - North,Permanent Nursing,Edgemont View Nursing Home,1217.24, 20-Jan-2015,
844,Revenue,CCHD,Bed Purchasing - South,Permanent Nursing,Edgemont View Nursing Home,1445.88, 20-Jan-2015,
845,Revenue,CCHD,Bed Purchasing - Southmead Hospital,Permanent Nursing,Edgemont View Nursing Home,1275.80, 20-Jan-2015,
846,Revenue,CCHD,Bed Purchasing - South,Permanent Nursing,Edgemont View Nursing Home,1320.36, 20-Jan-2015,
847,Revenue,CCHD,Bed Purchasing - South,Permanent Nursing,Edgemont View Nursing Home,1634.80, 20-Jan-2015,
848,Revenue,CCHD,Bed Purchasing - South,Permanent Nursing,Edgemont View Nursing Home,1196.68, 20-Jan-2015,
849,Revenue,CCHD,Supporting People Programme,Grants to Voluntary Bodies,Elim Housing Association Limited,5018.50, 02-Jan-2015,
850,Revenue,CCHD,Supporting People Programme,Grants to Voluntary Bodies,Elim Housing Association Limited,5018.50, 30-Jan-2015,
851,Revenue,CCHD,Home Care - Elderly - South,Day Care / Social Activities,Elite Home Care Ltd,144.21, 08-Jan-2015,
852,Revenue,CCHD,Home Care - Elderly - South,Other Small Contracts,Elite Home Care Ltd,3622.73, 08-Jan-2015,
853,Revenue,CCHD,Home Care - Elderly - North,Other Small Contracts,Elite Home Care Ltd,323.38, 08-Jan-2015,
854,Revenue,CCHD,Home Care - Elderly - South,Other Small Contracts,Elite Home Care Ltd,3640.21, 15-Jan-2015,
855,Revenue,CCHD,Home Care - Elderly - North,Other Small Contracts,Elite Home Care Ltd,244.72, 15-Jan-2015,
856,Revenue,CCHD,Home Care - Elderly - South,Day Care / Social Activities,Elite Home Care Ltd,209.76, 15-Jan-2015,
857,Revenue,CCHD,Home Care - Elderly - South,Other Small Contracts,Elite Home Care Ltd,4557.91, 15-Jan-2015,
858,Revenue,CCHD,Home Care - Elderly - North,Other Small Contracts,Elite Home Care Ltd,332.12, 15-Jan-2015,
859,Revenue,CCHD,Home Care - Elderly - South,Day Care / Social Activities,Elite Home Care Ltd,139.84, 28-Jan-2015,
860,Revenue,CCHD,Home Care - Elderly - South,Other Small Contracts,Elite Home Care Ltd,4820.11, 28-Jan-2015,
861,Revenue,CCHD,Home Care - Elderly - North,Other Small Contracts,Elite Home Care Ltd,332.12, 28-Jan-2015,
862,Revenue,CCHD,Home Care - Elderly - South,Day Care / Social Activities,Elite Home Care Ltd,139.84, 30-Jan-2015,
863,Revenue,CCHD,Home Care - Elderly - South,Other Small Contracts,Elite Home Care Ltd,5270.22, 30-Jan-2015,
864,Revenue,CCHD,Home Care - Elderly - North,Other Small Contracts,Elite Home Care Ltd,340.86, 30-Jan-2015,
865,Revenue,CCHD,Community Support - South,Preventative Assistance,Embrace,2108.22, 14-Jan-2015,
866,Revenue,CCHD,Day Care - South,Day Care / Social Activities,Enham,638.72, 22-Jan-2015,
867,Revenue,CCHD,Bed Purchasing - North,Permanent Residential,Epworth House,4504.52, 20-Jan-2015,
868,Revenue,CCHD,Home Care - Elderly - South,Other Small Contracts,Everycare (Bristol) Ltd,3731.50, 02-Jan-2015,
869,Revenue,CCHD,Home Care - Elderly - North,Other Small Contracts,Everycare (Bristol) Ltd,3214.31, 02-Jan-2015,
870,Revenue,CCHD,Under 65s -MH  Home Care Purch,Other Small Contracts,Everycare (Bristol) Ltd,51.00, 02-Jan-2015,
871,Revenue,CCHD,Home Care - Elderly - South,Other Small Contracts,Everycare (Bristol) Ltd,3816.50, 02-Jan-2015,
872,Revenue,CCHD,Home Care - Elderly - North,Day Care / Social Activities,Everycare (Bristol) Ltd,114.75, 02-Jan-2015,
873,Revenue,CCHD,Home Care - Elderly - North,Other Small Contracts,Everycare (Bristol) Ltd,3251.25, 02-Jan-2015,
874,Revenue,CCHD,Under 65s -MH  Home Care Purch,Other Small Contracts,Everycare (Bristol) Ltd,51.00, 02-Jan-2015,
875,Revenue,CCHD,Home Care - Elderly - South,Other Small Contracts,Everycare (Bristol) Ltd,3659.25, 02-Jan-2015,
876,Revenue,CCHD,Home Care - Elderly - North,Day Care / Social Activities,Everycare (Bristol) Ltd,144.50, 02-Jan-2015,
877,Revenue,CCHD,Home Care - Elderly - North,Other Small Contracts,Everycare (Bristol) Ltd,3098.25, 02-Jan-2015,
878,Revenue,CCHD,Under 65s -MH  Home Care Purch,Other Small Contracts,Everycare (Bristol) Ltd,51.00, 02-Jan-2015,
879,Revenue,CCHD,Home Care - Elderly - South,Other Small Contracts,Everycare (Bristol) Ltd,3757.00, 09-Jan-2015,
880,Revenue,CCHD,Home Care - Elderly - North,Day Care / Social Activities,Everycare (Bristol) Ltd,136.00, 09-Jan-2015,
881,Revenue,CCHD,Home Care - Elderly - North,Other Small Contracts,Everycare (Bristol) Ltd,3336.25, 09-Jan-2015,
882,Revenue,CCHD,Under 65s -MH  Home Care Purch,Other Small Contracts,Everycare (Bristol) Ltd,51.00, 09-Jan-2015,
883,Revenue,CCHD,Home Care - Elderly - South,Other Small Contracts,Everycare (Bristol) Ltd,3251.25, 28-Jan-2015,
884,Revenue,CCHD,Home Care - Elderly - North,Day Care / Social Activities,Everycare (Bristol) Ltd,68.00, 28-Jan-2015,
885,Revenue,CCHD,Home Care - Elderly - North,Other Small Contracts,Everycare (Bristol) Ltd,2858.73, 28-Jan-2015,
886,Revenue,CCHD,Under 65s -MH  Home Care Purch,Other Small Contracts,Everycare (Bristol) Ltd,46.75, 28-Jan-2015,
887,Revenue,CCHD,Home Care - Elderly - South,Other Small Contracts,Everycare (Bristol) Ltd,3540.25, 28-Jan-2015,
888,Revenue,CCHD,Home Care - Elderly - North,Day Care / Social Activities,Everycare (Bristol) Ltd,34.00, 28-Jan-2015,
889,Revenue,CCHD,Home Care - Elderly - North,Other Small Contracts,Everycare (Bristol) Ltd,3038.75, 28-Jan-2015,
890,Revenue,CCHD,Under 65s -MH  Home Care Purch,Other Small Contracts,Everycare (Bristol) Ltd,51.00, 28-Jan-2015,
891,Revenue,CCHD,Home Care - Elderly - South,Other Small Contracts,Everycare (Bristol) Ltd,3646.50, 28-Jan-2015,
892,Revenue,CCHD,Home Care - Elderly - North,Day Care / Social Activities,Everycare (Bristol) Ltd,148.75, 28-Jan-2015,
893,Revenue,CCHD,Home Care - Elderly - North,Other Small Contracts,Everycare (Bristol) Ltd,3149.25, 28-Jan-2015,
894,Revenue,CCHD,Under 65s -MH  Home Care Purch,Other Small Contracts,Everycare (Bristol) Ltd,55.25, 28-Jan-2015,
895,Revenue,CCHD,Bed Purchasing - South,Permanent Nursing,Fairview Court,1880.16, 20-Jan-2015,
896,Revenue,CCHD,Bed Purchasing - Southmead Hospital,Permanent Nursing,Fairview Court,1879.96, 20-Jan-2015,
897,Revenue,CCHD,Bed Purchasing - Southmead Hospital,Permanent Nursing,Fairview Court,2359.76, 20-Jan-2015,
898,Revenue,CCHD,Bed Purchasing - South,Permanent Nursing,Fairview Court,1646.60, 20-Jan-2015,
899,Revenue,CCHD,Bed Purchasing - South,Permanent Nursing,Fairview Court,1774.64, 20-Jan-2015,
900,Revenue,CCHD,Bed Purchasing - South,Permanent Nursing,Fairview Court,2560.84, 20-Jan-2015,
901,Revenue,CCHD,Bed Purchasing - South,Permanent Nursing,Fairview Court,2001.48, 20-Jan-2015,
902,Revenue,CCHD,Bed Purchasing - South,Permanent Nursing,Fairview Court,1858.80, 20-Jan-2015,
903,Revenue,CCHD,Bed Purchasing - South,Permanent Nursing,Fairview Court,1864.16, 20-Jan-2015,
904,Revenue,CCHD,Bed Purchasing - South,Permanent Nursing,Fairview Court,1951.44, 20-Jan-2015,
905,Revenue,CCHD,Bed Purchasing - South,Permanent Nursing,Fairview Court,1713.92, 20-Jan-2015,
906,Revenue,CCHD,Bed Purchasing - South,Permanent Nursing,Fairview Court Care Home,1163.96, 08-Jan-2015,
907,Revenue,CCHD,Bed Purchasing - South,Permanent Nursing,Fairview Court Care Home,1018.00, 08-Jan-2015,
908,Revenue,CCHD,Bed Purchasing - South,Permanent Nursing,Fairview Court Care Home,2057.43, 08-Jan-2015,
909,Revenue,CCHD,Bed Purchasing - South,Permanent Nursing,Fairview Court Care Home,2063.67, 08-Jan-2015,
910,Revenue,CCHD,Bed Purchasing - Southmead Hospital,Permanent Nursing,Fairview Court Care Home,1532.24, 08-Jan-2015,
911,Revenue,CCHD,Bed purchasing - Elderly S117 - South,Permanent Nursing,Fairview Court Care Home,2612.59, 08-Jan-2015,
912,Revenue,CCHD,Bed purchasing - Elderly S117 - South,Permanent Residential,Fairview House,1916.84, 20-Jan-2015,
913,Revenue,CCHD,Bed Purchasing - Southmead Hospital,Permanent Residential,Fairview House,1023.16, 20-Jan-2015,
914,Revenue,CCHD,Bed Purchasing - South,Permanent Residential,Fairview House,865.24, 20-Jan-2015,
915,Revenue,CCHD,Bed Purchasing - South,Permanent Residential,Fairview House,1260.20, 20-Jan-2015,
916,Revenue,CCHD,Bed Purchasing - North,Respite Emergency - Residential,Fairview House,2714.29, 20-Jan-2015,
917,Revenue,CCHD,Bed Purchasing - North,Permanent Residential,Fairview House,1218.04, 20-Jan-2015,
918,Revenue,CCHD,Bed Purchasing - South,Permanent Residential,Fairview House,1192.92, 20-Jan-2015,
919,Revenue,CCHD,Bed Purchasing - South,Permanent Residential,Fairview House,1117.92, 20-Jan-2015,
920,Revenue,CCHD,Bed Purchasing - Southmead Hospital,Permanent Residential,Fairview House,1260.20, 20-Jan-2015,
921,Revenue,CCHD,Bed Purchasing - Southmead Hospital,Permanent Residential,Fairview House,1077.32, 20-Jan-2015,
922,Revenue,CCHD,Bed Purchasing - South,Permanent Residential,Fairview House,1039.60, 20-Jan-2015,
923,Revenue,CCHD,Bed Purchasing - South,Permanent Residential,Fairview House,1437.40, 20-Jan-2015,
924,Revenue,CCHD,Bed Purchasing - Southmead Hospital,Permanent Residential,Faith House,1223.28, 20-Jan-2015,
925,Revenue,CCHD,Bed Purchasing - North,Permanent Residential,Fernbank,7706.00, 20-Jan-2015,
926,Revenue,CCHD,Bed Purchasing - North,Respite Planned - Residential,Field House Care Home,870.00, 20-Jan-2015,
927,Revenue,CCHD,Home Care - Elderly - South,Other Small Contracts,Firstpoint Homecare Ltd,1367.04, 09-Jan-2015,
928,Revenue,CCHD,Home Care - Elderly - North,Other Small Contracts,Firstpoint Homecare Ltd,1647.36, 09-Jan-2015,
929,Revenue,CCHD,Under 65s -MH  Home Care Purch,Other Small Contracts,Firstpoint Homecare Ltd,46.08, 09-Jan-2015,
930,Revenue,CCHD,Home care - Elderly MH - North,Other Small Contracts,Firstpoint Homecare Ltd,46.08, 09-Jan-2015,
931,Revenue,CCHD,Home Care - Elderly - South,Day Care / Social Activities,Firstpoint Homecare Ltd,92.16, 09-Jan-2015,
932,Revenue,CCHD,Home Care - Elderly - South,Other Small Contracts,Firstpoint Homecare Ltd,1244.16, 09-Jan-2015,
933,Revenue,CCHD,Home Care - Elderly - North,Other Small Contracts,Firstpoint Homecare Ltd,1501.44, 09-Jan-2015,
934,Revenue,CCHD,Under 65s -MH  Home Care Purch,Other Small Contracts,Firstpoint Homecare Ltd,46.08, 09-Jan-2015,
935,Revenue,CCHD,Home care - Elderly MH - North,Day Care / Social Activities,Firstpoint Homecare Ltd,46.08, 09-Jan-2015,
936,Revenue,CCHD,Home Care - Elderly - South,Day Care / Social Activities,Firstpoint Homecare Ltd,57.60, 09-Jan-2015,
937,Revenue,CCHD,Home Care - Elderly - South,Other Small Contracts,Firstpoint Homecare Ltd,1286.40, 09-Jan-2015,
938,Revenue,CCHD,Home Care - Elderly - North,Other Small Contracts,Firstpoint Homecare Ltd,1416.96, 09-Jan-2015,
939,Revenue,CCHD,Under 65s -MH  Home Care Purch,Other Small Contracts,Firstpoint Homecare Ltd,46.08, 09-Jan-2015,
940,Revenue,CCHD,Home care - Elderly MH - North,Day Care / Social Activities,Firstpoint Homecare Ltd,46.08, 09-Jan-2015,
941,Revenue,CCHD,Home Care - Elderly - South,Day Care / Social Activities,Firstpoint Homecare Ltd,92.16, 14-Jan-2015,
942,Revenue,CCHD,Home Care - Elderly - South,Other Small Contracts,Firstpoint Homecare Ltd,1251.84, 14-Jan-2015,
943,Revenue,CCHD,Home Care - Elderly - North,Other Small Contracts,Firstpoint Homecare Ltd,1364.38, 14-Jan-2015,
944,Revenue,CCHD,Under 65s -MH  Home Care Purch,Other Small Contracts,Firstpoint Homecare Ltd,46.08, 14-Jan-2015,
945,Revenue,CCHD,Home Care - Elderly - South,Other Small Contracts,Firstpoint Homecare Ltd,1286.40, 14-Jan-2015,
946,Revenue,CCHD,Home Care - Elderly - North,Other Small Contracts,Firstpoint Homecare Ltd,1313.28, 14-Jan-2015,
947,Revenue,CCHD,Under 65s -MH  Home Care Purch,Other Small Contracts,Firstpoint Homecare Ltd,19.20, 14-Jan-2015,
948,Revenue,CCHD,Home care - Elderly MH - North,Day Care / Social Activities,Firstpoint Homecare Ltd,46.08, 14-Jan-2015,
949,Revenue,CCHD,Learning Difficulties Development Fund,Other Supplies & Services,Forest of Avon Trust,2500.00, 13-Jan-2015,
950,Revenue,CCHD,Bed Purchasing - South,Permanent Nursing,Four Seasons Health Care,1196.88, 20-Jan-2015,
951,Revenue,CCHD,Bed Purchasing - Elderly S117- North,Permanent Residential,Four Seasons Health Care,2060.40, 20-Jan-2015,
952,Revenue,CCHD,Bed Purchasing - Southmead Hospital,Permanent Residential,Four Seasons Health Care,1550.64, 20-Jan-2015,
953,Revenue,CCHD,SLA Grants - Support Serv,Grants to Voluntary Bodies,Frampton Cotterell Carers Group,500.00, 02-Jan-2015,
954,Revenue,CCHD,Supporting People Programme,Grants to Voluntary Bodies,Freeways Trust Limited,7967.00, 02-Jan-2015,
955,Revenue,CCHD,Supporting People Programme,Grants to Voluntary Bodies,Freeways Trust Limited,7967.00, 30-Jan-2015,
956,Revenue,CCHD,Freeways,Permanent Residential,Freeways Trust Limited,3611.80, 15-Jan-2015,
957,Revenue,CCHD,Freeways,Permanent Residential,Freeways Trust Limited,2269.08, 15-Jan-2015,
958,Revenue,CCHD,Freeways,Permanent Residential,Freeways Trust Limited,2346.88, 15-Jan-2015,
959,Revenue,CCHD,Freeways,Permanent Residential,Freeways Trust Limited,2993.72, 15-Jan-2015,
960,Revenue,CCHD,Freeways,Permanent Residential,Freeways Trust Limited,2346.88, 15-Jan-2015,
961,Revenue,CCHD,Freeways,Permanent Residential,Freeways Trust Limited,3357.44, 15-Jan-2015,
962,Revenue,CCHD,Freeways,Permanent Residential,Freeways Trust Limited,3522.28, 15-Jan-2015,
963,Revenue,CCHD,Freeways,Permanent Residential,Freeways Trust Limited,3023.20, 15-Jan-2015,
964,Revenue,CCHD,Freeways,Permanent Residential,Freeways Trust Limited,2870.20, 15-Jan-2015,
965,Revenue,CCHD,Freeways,Permanent Residential,Freeways Trust Limited,3211.48, 15-Jan-2015,
966,Revenue,CCHD,Freeways,Permanent Residential,Freeways Trust Limited,3077.36, 15-Jan-2015,
967,Revenue,CCHD,Freeways,Permanent Residential,Freeways Trust Limited,3573.72, 15-Jan-2015,
968,Revenue,CCHD,Freeways,Permanent Residential,Freeways Trust Limited,2440.84, 15-Jan-2015,
969,Revenue,CCHD,Freeways,Permanent Residential,Freeways Trust Limited,2425.52, 15-Jan-2015,
970,Revenue,CCHD,Freeways,Permanent Residential,Freeways Trust Limited,2425.52, 15-Jan-2015,
971,Revenue,CCHD,Freeways,Permanent Residential,Freeways Trust Limited,3242.64, 15-Jan-2015,
972,Revenue,CCHD,Supported Living - South,Private & Voluntary Home Care,Freeways Trust Limited,637.88, 09-Jan-2015,
973,Revenue,CCHD,Supported Living - South,Private & Voluntary Home Care,Freeways Trust Limited,999.92, 09-Jan-2015,
974,Revenue,CCHD,Supported Living - South,Private & Voluntary Home Care,Freeways Trust Limited,1267.14, 09-Jan-2015,
975,Revenue,CCHD,Supported Living - South,Private & Voluntary Home Care,Freeways Trust Limited,1008.54, 26-Jan-2015,
976,Revenue,CCHD,Purchase of Non-Res Care - North,Day Care / Social Activities,Freeways Trust Limited,1546.38, 29-Jan-2015,
977,Revenue,CCHD,Bed Purchasing - North,Permanent Residential,Freeways Trust Ltd,2860.04, 20-Jan-2015,
978,Revenue,CCHD,Bed purchasing - S28A Under 65 - South,Permanent Residential,Freeways Trust Ltd,2924.48, 20-Jan-2015,
979,Revenue,CCHD,Bed Purchasing - North,Permanent Residential,Freeways Trust Ltd,3129.84, 20-Jan-2015,
980,Revenue,CCHD,Bed Purchasing - North,Permanent Residential,Freeways Trust Ltd,2286.96, 20-Jan-2015,
981,Revenue,CCHD,Bed Purchasing - North,Permanent Residential,Freeways Trust Ltd,2731.36, 20-Jan-2015,
982,Revenue,CCHD,Bed Purchasing - South,Permanent Residential,Freeways Trust Ltd,3338.76, 20-Jan-2015,
983,Revenue,CCHD,Bed Purchasing - North,Permanent Residential,Freeways Trust Ltd,2266.40, 20-Jan-2015,
984,Revenue,CCHD,Bed Purchasing - South,Permanent Residential,Freeways Trust Ltd,2397.48, 20-Jan-2015,
985,Revenue,CCHD,Bed Purchasing - North,Permanent Residential,Freeways Trust Ltd,2731.36, 20-Jan-2015,
986,Revenue,CCHD,Bed Purchasing - North,Permanent Residential,Freeways Trust Ltd,3155.72, 20-Jan-2015,
987,Revenue,CCHD,18-25 Year Olds,Permanent Residential,Freeways Trust Ltd,3373.20, 20-Jan-2015,
988,Revenue,CCHD,Bed Purchasing - North,Permanent Residential,Freeways Trust Ltd,3823.88, 20-Jan-2015,
989,Revenue,CCHD,Bed Purchasing - South,Permanent Residential,Freeways Trust Ltd,7906.56, 20-Jan-2015,
990,Revenue,CCHD,Bed Purchasing - Southmead Hospital,Permanent Nursing,Frenchay Park Nursing Home,1010.00, 20-Jan-2015,
991,Revenue,CCHD,Bed Purchasing - South,Permanent Nursing,Fshc  1St Floor,896.16, 20-Jan-2015,
992,Revenue,CCHD,Bed Purchasing - Southmead Hospital,Permanent Residential,Fshc  1St Floor,894.12, 20-Jan-2015,
993,Revenue,CCHD,Bed Purchasing - South,Permanent Nursing,Fshc  1St Floor,953.52, 20-Jan-2015,
994,Revenue,CCHD,Bed Purchasing - South,Permanent Nursing,Fshc  1St Floor,1388.20, 20-Jan-2015,
995,Revenue,CCHD,Bed Purchasing - South,Permanent Residential,Fshc  1St Floor,1530.25, 20-Jan-2015,
996,Revenue,CCHD,Bed Purchasing - South,Permanent Residential,Fshc  1St Floor,1260.20, 20-Jan-2015,
997,Revenue,CCHD,Bed Purchasing - Southmead Hospital,Permanent Nursing,Fshc  1St Floor,1352.20, 20-Jan-2015,
998,Revenue,CCHD,Bed Purchasing - Southmead Hospital,Permanent Nursing,Fshc  1St Floor,1388.20, 20-Jan-2015,
999,Revenue,CCHD,Bed Purchasing - Southmead Hospital,Permanent Nursing,Fshc  1St Floor,1267.72, 20-Jan-2015,
1000,Revenue,CCHD,Bed Purchasing - Southmead Hospital,Permanent Nursing,Fshc  1St Floor,1388.20, 20-Jan-2015,
1001,Revenue,CCHD,Bed Purchasing - Southmead Hospital,Permanent Nursing,Fshc  1St Floor,1325.80, 20-Jan-2015,
1002,Revenue,CCHD,Bed Purchasing - Southmead Hospital,Permanent Nursing,Fshc  1St Floor,1050.56, 20-Jan-2015,
1003,Revenue,CCHD,Bed Purchasing - South,Permanent Residential,Fshc  1St Floor,1216.24, 20-Jan-2015,
1004,Revenue,CCHD,Bed Purchasing - Southmead Hospital,Permanent Nursing,Fshc  1St Floor,1198.92, 20-Jan-2015,
1005,Revenue,CCHD,Bed Purchasing - South,Permanent Nursing,Fshc  1St Floor,1012.92, 20-Jan-2015,
1006,Revenue,CCHD,Bed Purchasing - Southmead Hospital,Permanent Nursing,Fshc  1St Floor,1388.20, 20-Jan-2015,
1007,Revenue,CCHD,Bed Purchasing - South,Permanent Nursing,Fshc  1St Floor,1115.96, 20-Jan-2015,
1008,Revenue,CCHD,Bed Purchasing - South,Permanent Nursing,Fshc  1St Floor,1226.68, 20-Jan-2015,
1009,Revenue,CCHD,Bed Purchasing - Southmead Hospital,Permanent Nursing,Fshc  1St Floor,1365.64, 20-Jan-2015,
1010,Revenue,CCHD,Bed Purchasing - South,Permanent Nursing,Fshc  1St Floor,1324.48, 20-Jan-2015,
1011,Revenue,CCHD,Bed Purchasing - Southmead Hospital,Permanent Nursing,Fshc  1St Floor,1388.20, 20-Jan-2015,
1012,Revenue,CCHD,Bed Purchasing - North,Permanent Nursing,Fshc  1St Floor,1388.20, 20-Jan-2015,
1013,Revenue,CCHD,Bed Purchasing - Southmead Hospital,Permanent Nursing,Fshc  1St Floor,1884.00, 20-Jan-2015,
1014,Revenue,CCHD,Bed Purchasing - North,Permanent Nursing,Fshc  1St Floor,1884.00, 20-Jan-2015,
1015,Revenue,CCHD,Bed Purchasing - Southmead Hospital,Permanent Nursing,Fshc  1St Floor,1204.12, 20-Jan-2015,
1016,Revenue,CCHD,Bed Purchasing - South,Permanent Nursing,Fshc  1St Floor,1388.20, 20-Jan-2015,
1017,Revenue,CCHD,Bed Purchasing - Southmead Hospital,Permanent Nursing,Fshc  1St Floor,1388.20, 20-Jan-2015,
1018,Revenue,CCHD,Bed Purchasing - South,Permanent Nursing,Fshc  1St Floor,1337.52, 20-Jan-2015,
1019,Revenue,CCHD,Bed Purchasing - South,Permanent Nursing,Fshc  1St Floor,1372.20, 20-Jan-2015,
1020,Revenue,CCHD,Bed Purchasing - South,Permanent Nursing,Fshc  1St Floor,1352.20, 20-Jan-2015,
1021,Revenue,CCHD,Bed Purchasing - South,Permanent Nursing,Fshc  1St Floor,1229.44, 20-Jan-2015,
1022,Revenue,CCHD,Bed Purchasing - North,Permanent Nursing,Fshc  1St Floor,781.44, 20-Jan-2015,
1023,Revenue,CCHD,Bed Purchasing - South,Permanent Nursing,Fshc  1St Floor,993.48, 20-Jan-2015,
1024,Revenue,CCHD,Bed Purchasing - North,Permanent Residential,Fshc  1St Floor,1260.20, 20-Jan-2015,
1025,Revenue,CCHD,Bed Purchasing - Southmead Hospital,Permanent Nursing,Fshc  1St Floor,944.48, 20-Jan-2015,
1026,Revenue,CCHD,Bed Purchasing - North,Permanent Nursing,Fshc  1St Floor,1290.68, 20-Jan-2015,
1027,Revenue,CCHD,Bed Purchasing - Southmead Hospital,Permanent Nursing,Fshc  1St Floor,1602.96, 20-Jan-2015,
1028,Revenue,CCHD,South Glos Users in South Glos Homes,Permanent Nursing,Fshc  1St Floor,4419.76, 20-Jan-2015,
1029,Revenue,CCHD,South Glos Users in South Glos Homes,Permanent Nursing,Fshc  1St Floor,2854.54, 20-Jan-2015,
1030,Revenue,CCHD,Bed Purchasing - Southmead Hospital,Permanent Residential,Fshc  1St Floor,1142.92, 20-Jan-2015,
1031,Revenue,CCHD,Bed Purchasing - North,Permanent Nursing,Fshc  1St Floor,1347.08, 20-Jan-2015,
1032,Revenue,CCHD,Bed Purchasing - North,Permanent Nursing,Fshc  1St Floor,1039.60, 20-Jan-2015,
1033,Revenue,CCHD,Bed Purchasing - North,Permanent Residential,Fshc  1St Floor,1077.00, 20-Jan-2015,
1034,Revenue,CCHD,Bed Purchasing - North,Permanent Residential,Fshc  1St Floor,1367.48, 20-Jan-2015,
1035,Revenue,CCHD,Bed Purchasing - Southmead Hospital,Permanent Nursing,Fshc  1St Floor,1104.08, 20-Jan-2015,
1036,Revenue,CCHD,Bed Purchasing - Southmead Hospital,Permanent Nursing,Fshc  1St Floor,1129.00, 20-Jan-2015,
1037,Revenue,CCHD,Bed Purchasing - Southmead Hospital,Permanent Nursing,Fshc  1St Floor,1289.20, 20-Jan-2015,
1038,Revenue,CCHD,Bed Purchasing - Southmead Hospital,Permanent Nursing,Fshc  1St Floor,1128.80, 20-Jan-2015,
1039,Revenue,CCHD,Bed Purchasing - Southmead Hospital,Permanent Nursing,Fshc  1St Floor,2153.14, 20-Jan-2015,
1040,Revenue,CCHD,Bed Purchasing - Southmead Hospital,Permanent Nursing,Fshc  1St Floor,1884.00, 20-Jan-2015,
1041,Revenue,CCHD,Bed Purchasing - South,Permanent Residential,Fshc  1St Floor,1132.60, 20-Jan-2015,
1042,Revenue,CCHD,Bed Purchasing - Southmead Hospital,Permanent Nursing,Fshc  1St Floor,2060.00, 20-Jan-2015,
1043,Revenue,CCHD,South Glos Users in South Glos Homes,Permanent Nursing,Fshc  1St Floor,4419.76, 20-Jan-2015,
1044,Revenue,CCHD,Bed Purchasing - Southmead Hospital,Permanent Nursing,Fshc  1St Floor,1375.60, 20-Jan-2015,
1045,Revenue,CCHD,South Glos Users in South Glos Homes,Permanent Nursing,Fshc  1St Floor,705.79, 20-Jan-2015,
1046,Revenue,CCHD,Bed Purchasing - Southmead Hospital,Permanent Nursing,Fshc  1St Floor,1388.20, 20-Jan-2015,
1047,Revenue,CCHD,Bed Purchasing - North,Permanent Nursing,Fshc  1St Floor,574.28, 20-Jan-2015,
1048,Revenue,CCHD,Bed Purchasing - North,Permanent Nursing,Fshc  1St Floor,1489.72, 20-Jan-2015,
1049,Revenue,CCHD,Bed Purchasing - North,Permanent Nursing,Fshc  1St Floor,1289.20, 20-Jan-2015,
1050,Revenue,CCHD,Bed Purchasing - Southmead Hospital,Permanent Residential,Fshc  1St Floor,621.36, 20-Jan-2015,
1051,Revenue,CCHD,Bed Purchasing - Southmead Hospital,Permanent Nursing,Fshc  1St Floor,1294.72, 20-Jan-2015,
1052,Revenue,CCHD,Bed Purchasing - Southmead Hospital,Permanent Nursing,Fshc  1St Floor,1372.56, 20-Jan-2015,
1053,Revenue,CCHD,Bed Purchasing - North,Permanent Nursing,Fshc  1St Floor,1312.76, 20-Jan-2015,
1054,Revenue,CCHD,Bed Purchasing - North,Permanent Nursing,Fshc  1St Floor,2334.14, 20-Jan-2015,
1055,Revenue,CCHD,Bed Purchasing - North,Permanent Nursing,Fshc  1St Floor,907.72, 20-Jan-2015,
1056,Revenue,CCHD,Bed Purchasing - Southmead Hospital,Permanent Nursing,Fshc  1St Floor,1475.48, 20-Jan-2015,
1057,Revenue,CCHD,Bed Purchasing - Southmead Hospital,Permanent Nursing,Fshc  1St Floor,1564.20, 20-Jan-2015,
1058,Revenue,CCHD,Bed Purchasing - South,Permanent Nursing,Fshc  1St Floor,1338.84, 20-Jan-2015,
1059,Revenue,CCHD,Bed Purchasing - North,Permanent Nursing,Fshc  1St Floor,1471.32, 20-Jan-2015,
1060,Revenue,CCHD,Bed Purchasing - South,Permanent Nursing,Fshc  1St Floor,2102.58, 20-Jan-2015,
1061,Revenue,CCHD,South Glos Users in South Glos Homes,Permanent Nursing,Fshc  1St Floor,1156.42, 20-Jan-2015,
1062,Revenue,CCHD,Bed Purchasing - North,Permanent Residential,Fshc  1St Floor,1456.20, 20-Jan-2015,
1063,Revenue,CCHD,Bed Purchasing - North,Permanent Nursing,Fshc  1St Floor,1552.64, 20-Jan-2015,
1064,Revenue,CCHD,Bed purchasing - Elderly S117 - South,Permanent Nursing,Fshc  1St Floor,1884.00, 20-Jan-2015,
1065,Revenue,CCHD,Bed Purchasing - North,Permanent Residential,Fshc  1St Floor,1263.96, 20-Jan-2015,
1066,Revenue,CCHD,Bed Purchasing - Southmead Hospital,Permanent Nursing,Fshc  1St Floor,1388.20, 20-Jan-2015,
1067,Revenue,CCHD,Bed Purchasing - Southmead Hospital,Permanent Residential,Fshc  1St Floor,1260.20, 20-Jan-2015,
1068,Revenue,CCHD,Bed Purchasing - North,Permanent Nursing,Fshc  1St Floor,3619.24, 20-Jan-2015,
1069,Revenue,CCHD,Bed Purchasing - North,Permanent Nursing,Fshc  1St Floor,1388.20, 20-Jan-2015,
1070,Revenue,CCHD,South Glos Users in South Glos Homes,Permanent Nursing,Fshc  1St Floor,1156.42, 20-Jan-2015,
1071,Revenue,CCHD,Bed Purchasing - North,Permanent Residential,Fshc  1St Floor,1401.92, 20-Jan-2015,
1072,Revenue,CCHD,Bed Purchasing - North,Permanent Nursing,Fshc  1St Floor,1592.20, 20-Jan-2015,
1073,Revenue,CCHD,Bed Purchasing - Southmead Hospital,Respite Planned - Nursing,Fshc  1St Floor,4508.14, 20-Jan-2015,
1074,Revenue,CCHD,Bed Purchasing - North,Permanent Nursing,Fshc  1St Floor,1738.42, 20-Jan-2015,
1075,Revenue,CCHD,Bed Purchasing - North,Permanent Nursing,Fshc  1St Floor,1388.20, 20-Jan-2015,
1076,Revenue,CCHD,Bed Purchasing - North,Permanent Residential,Fshc  1St Floor,1260.20, 20-Jan-2015,
1077,Revenue,CCHD,Bed Purchasing - North,Permanent Nursing,Fshc  1St Floor,1153.32, 20-Jan-2015,
1078,Revenue,CCHD,Bed Purchasing - Southmead Hospital,Permanent Nursing,Fshc  1St Floor,1192.48, 20-Jan-2015,
1079,Revenue,CCHD,Bed Purchasing - Southmead Hospital,Permanent Residential,Fshc  1St Floor,1260.20, 20-Jan-2015,
1080,Revenue,CCHD,Bed Purchasing - North,Permanent Nursing,Fshc  1St Floor,587.40, 20-Jan-2015,
1081,Revenue,CCHD,Bed Purchasing - Southmead Hospital,Permanent Nursing,Fshc  1St Floor,513.51, 20-Jan-2015,
1082,Revenue,CCHD,Bed Purchasing - North,Permanent Nursing,Fshc  1St Floor,738.40, 20-Jan-2015,
1083,Revenue,CCHD,Bed Purchasing - North,Permanent Nursing,Fshc  1St Floor,1388.20, 20-Jan-2015,
1084,Revenue,CCHD,Bed Purchasing - Southmead Hospital,Permanent Nursing,Fshc  1St Floor,1328.04, 20-Jan-2015,
1085,Revenue,CCHD,Bed Purchasing - North,Permanent Nursing,Fshc  1St Floor,903.52, 20-Jan-2015,
1086,Revenue,CCHD,Bed Purchasing - North,Permanent Nursing,Fshc  1St Floor,1017.20, 20-Jan-2015,
1087,Revenue,CCHD,Bed Purchasing - Southmead Hospital,Permanent Nursing,Fshc  1St Floor,1388.20, 20-Jan-2015,
1088,Revenue,CCHD,Bed Purchasing - Southmead Hospital,Permanent Nursing,Fshc  1St Floor,586.56, 20-Jan-2015,
1089,Revenue,CCHD,Bed Purchasing - Southmead Hospital,Permanent Nursing,Fshc  1St Floor,1388.20, 20-Jan-2015,
1090,Revenue,CCHD,Bed Purchasing - Southmead Hospital,Permanent Nursing,Fshc  1St Floor,873.88, 20-Jan-2015,
1091,Revenue,CCHD,Bed Purchasing - Southmead Hospital,Permanent Nursing,Fshc  1St Floor,1388.20, 20-Jan-2015,
1092,Revenue,CCHD,South Glos Users in South Glos Homes,Permanent Nursing,Fshc  1St Floor,3310.86, 20-Jan-2015,
1093,Revenue,CCHD,Bed Purchasing - Southmead Hospital,Permanent Nursing,Fshc  1St Floor,1312.68, 20-Jan-2015,
1094,Revenue,CCHD,Bed Purchasing - North,Permanent Nursing,Fshc  1St Floor,1270.20, 20-Jan-2015,
1095,Revenue,CCHD,Bed Purchasing - South,Permanent Nursing,Fshc  1St Floor,1337.24, 20-Jan-2015,
1096,Revenue,CCHD,Bed Purchasing - Southmead Hospital,Permanent Nursing,Fshc  1St Floor,1360.32, 20-Jan-2015,
1097,Revenue,CCHD,Bed Purchasing - Southmead Hospital,Permanent Nursing,Fshc  1St Floor,1822.56, 20-Jan-2015,
1098,Revenue,CCHD,Bed Purchasing - North,Permanent Residential,Fshc  1St Floor,3000.64, 20-Jan-2015,
1099,Revenue,CCHD,Bed Purchasing - North,Permanent Nursing,Fshc  1St Floor,1394.04, 20-Jan-2015,
1100,Revenue,CCHD,Bed Purchasing - Southmead Hospital,Permanent Residential,Fshc  1St Floor,1952.00, 20-Jan-2015,
1101,Revenue,CCHD,Bed Purchasing - Southmead Hospital,Permanent Nursing,Fshc  1St Floor,1319.28, 20-Jan-2015,
1102,Revenue,CCHD,Bed Purchasing - South,Permanent Residential,Fshc  1St Floor,1952.00, 20-Jan-2015,
1103,Revenue,CCHD,Bed Purchasing - Southmead Hospital,Permanent Nursing,Fshc  1St Floor,1381.00, 20-Jan-2015,
1104,Revenue,CCHD,Bed Purchasing - Southmead Hospital,Permanent Residential,Fshc  1St Floor,1484.20, 20-Jan-2015,
1105,Revenue,CCHD,Bed Purchasing - North,Respite Emergency - Residential,Fshc  1St Floor,2021.71, 20-Jan-2015,
1106,Revenue,CCHD,Bed Purchasing - North,Permanent Residential,Fshc  1St Floor,1167.12, 20-Jan-2015,
1107,Revenue,CCHD,Bed Purchasing - North,Permanent Nursing,Fshc  1St Floor,1143.32, 20-Jan-2015,
1108,Revenue,CCHD,Bed Purchasing - Southmead Hospital,Permanent Nursing,Fshc  1St Floor,1388.20, 20-Jan-2015,
1109,Revenue,CCHD,Bed Purchasing - Southmead Hospital,Permanent Nursing,Fshc  1St Floor,842.84, 20-Jan-2015,
1110,Revenue,CCHD,Bed Purchasing - South,Permanent Nursing,Fshc  1St Floor,1248.96, 20-Jan-2015,
1111,Revenue,CCHD,Bed Purchasing - South,Permanent Residential,Fshc  1St Floor,1198.88, 20-Jan-2015,
1112,Revenue,CCHD,Bed Purchasing - North,Permanent Nursing,Fshc  1St Floor,1884.00, 20-Jan-2015,
1113,Revenue,CCHD,Bed Purchasing - Southmead Hospital,Permanent Nursing,Fshc  1St Floor,1203.24, 20-Jan-2015,
1114,Revenue,CCHD,Bed Purchasing - Southmead Hospital,Permanent Nursing,Fshc  1St Floor,1384.20, 20-Jan-2015,
1115,Revenue,CCHD,Bed Purchasing - South,Permanent Residential,Fshc  1St Floor,901.60, 20-Jan-2015,
1116,Revenue,CCHD,Bed Purchasing - South,Permanent Nursing,Fshc  1St Floor,1236.24, 20-Jan-2015,
1117,Revenue,CCHD,Bed Purchasing - South,Permanent Residential,Fshc  1St Floor,1260.20, 20-Jan-2015,
1118,Revenue,CCHD,Bed Purchasing - Southmead Hospital,Permanent Nursing,Fshc  1St Floor,1388.20, 20-Jan-2015,
1119,Revenue,CCHD,Bed Purchasing - Southmead Hospital,Permanent Nursing,Fshc  1St Floor,1388.20, 20-Jan-2015,
1120,Revenue,CCHD,Bed Purchasing - Southmead Hospital,Permanent Nursing,Fshc  1St Floor,1308.28, 20-Jan-2015,
1121,Revenue,CCHD,Bed Purchasing - Southmead Hospital,Permanent Nursing,Fshc  1St Floor,997.48, 20-Jan-2015,
1122,Revenue,CCHD,Bed Purchasing - South,Respite Planned - Residential,Fshc  1St Floor,4810.29, 20-Jan-2015,
1123,Revenue,CCHD,Bed Purchasing - South,Respite Planned - Residential,Fshc  1St Floor,1115.43, 20-Jan-2015,
1124,Revenue,CCHD,Bed Purchasing - Southmead Hospital,Permanent Residential,Fshc  1St Floor,1475.64, 20-Jan-2015,
1125,Revenue,CCHD,Bed Purchasing - South,Permanent Nursing,Fshc  1St Floor,1227.24, 20-Jan-2015,
1126,Revenue,CCHD,Bed Purchasing - South,Permanent Nursing,Fshc  1St Floor,816.76, 20-Jan-2015,
1127,Revenue,CCHD,Bed purchasing - Elderly S117 - South,Permanent Nursing,Fshc  1St Floor,1884.00, 20-Jan-2015,
1128,Revenue,CCHD,Bed Purchasing - Southmead Hospital,Permanent Residential,Fshc  1St Floor,1122.08, 20-Jan-2015,
1129,Revenue,CCHD,Bed Purchasing - South,Permanent Nursing,Fshc  1St Floor,1385.40, 20-Jan-2015,
1130,Revenue,CCHD,Bed Purchasing - North,Permanent Nursing,Fshc  1St Floor,1327.84, 20-Jan-2015,
1131,Revenue,CCHD,Bed Purchasing - South,Permanent Residential,Fshc  1St Floor,1371.16, 20-Jan-2015,
1132,Revenue,CCHD,Bed Purchasing - Southmead Hospital,Permanent Nursing,Fshc  1St Floor,777.80, 20-Jan-2015,
1133,Revenue,CCHD,Bed Purchasing - Frenchay Hospital,Respite Planned - Residential,Fshc  1St Floor,7110.86, 20-Jan-2015,
1134,Revenue,CCHD,Bed Purchasing - Southmead Hospital,Respite Planned - Residential,Fshc  1St Floor,1952.00, 20-Jan-2015,
1135,Revenue,CCHD,Bed Purchasing - Southmead Hospital,Respite Planned - Residential,Fshc  1St Floor,7110.86, 20-Jan-2015,
1136,Revenue,CCHD,Bed Purchasing - North,Permanent Residential,Fshc  1St Floor,1216.92, 20-Jan-2015,
1137,Revenue,CCHD,Bed Purchasing - South,Permanent Nursing,Fshc  1St Floor,1193.88, 20-Jan-2015,
1138,Revenue,CCHD,Bed Purchasing - South,Permanent Nursing,Fshc  1St Floor,1304.72, 20-Jan-2015,
1139,Revenue,CCHD,Bed Purchasing - South,Permanent Nursing,Fshc  1St Floor,1668.40, 20-Jan-2015,
1140,Revenue,CCHD,Bed Purchasing - South,Permanent Nursing,Fshc  1St Floor,1132.32, 20-Jan-2015,
1141,Revenue,CCHD,Bed Purchasing - Southmead Hospital,Permanent Nursing,Fshc  1St Floor,1224.08, 20-Jan-2015,
1142,Revenue,CCHD,Bed Purchasing - Southmead Hospital,Permanent Nursing,Fshc  1St Floor,958.64, 20-Jan-2015,
1143,Revenue,CCHD,Bed Purchasing - Southmead Hospital,Permanent Nursing,Fshc  1St Floor,1549.00, 20-Jan-2015,
1144,Revenue,CCHD,Bed Purchasing - Southmead Hospital,Permanent Nursing,Fshc  1St Floor,1364.92, 20-Jan-2015,
1145,Revenue,CCHD,Bed Purchasing - Southmead Hospital,Permanent Nursing,Fshc  1St Floor,1388.20, 20-Jan-2015,
1146,Revenue,CCHD,Bed Purchasing - Southmead Hospital,Permanent Nursing,Fshc  1St Floor,881.80, 20-Jan-2015,
1147,Revenue,CCHD,Bed Purchasing - South,Permanent Nursing,Fshc  1St Floor,1199.48, 20-Jan-2015,
1148,Revenue,CCHD,Bed Purchasing - South,Permanent Residential,Fshc  1St Floor,9521.20, 20-Jan-2015,
1149,Revenue,CCHD,Bed Purchasing - South,Permanent Residential,Fshc  1St Floor,2704.20, 20-Jan-2015,
1150,Revenue,CCHD,Bed Purchasing - North,Permanent Nursing,Fshc  1St Floor,1402.40, 20-Jan-2015,
1151,Revenue,CCHD,Bed Purchasing - Southmead Hospital,Permanent Nursing,Fshc  1St Floor,1402.40, 20-Jan-2015,
1152,Revenue,CCHD,Bed Purchasing - Southmead Hospital,Permanent Nursing,Fshc  1St Floor,1421.93, 20-Jan-2015,
1153,Revenue,CCHD,Bed Purchasing - Southmead Hospital,Permanent Nursing,Fshc  1St Floor,1284.32, 20-Jan-2015,
1154,Revenue,CCHD,Bed Purchasing - North,Permanent Nursing,Fshc  1St Floor,1346.88, 20-Jan-2015,
1155,Revenue,CCHD,Bed Purchasing - North,Permanent Nursing,Fshc  1St Floor,843.72, 20-Jan-2015,
1156,Revenue,CCHD,Bed Purchasing - North,Permanent Nursing,Fshc  1St Floor,1496.20, 20-Jan-2015,
1157,Revenue,CCHD,Bed Purchasing - North,Permanent Nursing,Fshc  1St Floor,1229.36, 20-Jan-2015,
1158,Revenue,CCHD,Bed Purchasing - Southmead Hospital,Permanent Nursing,Fshc  1St Floor,1344.20, 20-Jan-2015,
1159,Revenue,CCHD,Bed Purchasing - South,Permanent Nursing,Fshc  1St Floor,857.04, 20-Jan-2015,
1160,Revenue,CCHD,Bed Purchasing - North,Permanent Nursing,Fshc  1St Floor,1154.04, 20-Jan-2015,
1161,Revenue,CCHD,Bed Purchasing - Southmead Hospital,Permanent Nursing,Fshc  1St Floor,534.80, 20-Jan-2015,
1162,Revenue,CCHD,Bed Purchasing - Southmead Hospital,Permanent Nursing,Fshc  1St Floor,1496.20, 20-Jan-2015,
1163,Revenue,CCHD,Bed Purchasing - North,Permanent Nursing,Fshc  1St Floor,1368.56, 20-Jan-2015,
1164,Revenue,CCHD,Bed Purchasing - Southmead Hospital,Permanent Residential,Fshc  1St Floor,1233.08, 20-Jan-2015,
1165,Revenue,CCHD,Bed Purchasing - Southmead Hospital,Permanent Nursing,Fshc  1St Floor,1263.24, 20-Jan-2015,
1166,Revenue,CCHD,Bed Purchasing - Southmead Hospital,Permanent Nursing,Fshc  1St Floor,1236.88, 20-Jan-2015,
1167,Revenue,CCHD,Bed Purchasing - Southmead Hospital,Permanent Nursing,Fshc  1St Floor,1467.24, 20-Jan-2015,
1168,Revenue,CCHD,Bed purchasing - Elderly S117 - South,Permanent Nursing,Fshc  1St Floor,1992.00, 20-Jan-2015,
1169,Revenue,CCHD,Bed Purchasing - North,Permanent Residential,Fshc  1St Floor,1125.72, 20-Jan-2015,
1170,Revenue,CCHD,Bed Purchasing - Southmead Hospital,Permanent Nursing,Fshc  1St Floor,950.68, 20-Jan-2015,
1171,Revenue,CCHD,Bed Purchasing - Elderly S117- North,Permanent Nursing,Fshc  1St Floor,1992.00, 20-Jan-2015,
1172,Revenue,CCHD,Bed Purchasing - North,Permanent Nursing,Fshc  1St Floor,1165.20, 20-Jan-2015,
1173,Revenue,CCHD,Bed Purchasing - Southmead Hospital,Permanent Nursing,Fshc  1St Floor,1068.72, 20-Jan-2015,
1174,Revenue,CCHD,Bed Purchasing - North,Permanent Residential,Fshc  1St Floor,1432.20, 20-Jan-2015,
1175,Revenue,CCHD,Bed Purchasing - Southmead Hospital,Permanent Nursing,Fshc  1St Floor,1100.44, 20-Jan-2015,
1176,Revenue,CCHD,Bed Purchasing - North,Permanent Residential,Fshc  1St Floor,1043.24, 20-Jan-2015,
1177,Revenue,CCHD,Bed Purchasing - South,Permanent Residential,Fshc  1St Floor,1351.48, 20-Jan-2015,
1178,Revenue,CCHD,Bed Purchasing - Southmead Hospital,Permanent Residential,FSHC 1st Floor,806.60, 20-Jan-2015,
1179,Revenue,CCHD,Bed Purchasing - South,Permanent Residential,Gatchell House,1420.84, 20-Jan-2015,
1180,Revenue,CCHD,CAH Assistant Directors,Agency Staff (Admin/Support Staff) Pay,Gatenby Sanderson Limited,9587.50, 15-Jan-2015,
1181,Revenue,CCHD,Section 117 Placements MH Younger,Permanent Residential,Gladstone House,2762.16, 20-Jan-2015,
1182,Revenue,CCHD,Bed Purchasing - South,Permanent Residential,Glasallt Fawr,4615.60, 20-Jan-2015,
1183,Revenue,CCHD,Bed Purchasing - North,Permanent Residential,Glebe House Nursing Home,2147.60, 20-Jan-2015,
1184,Revenue,CCHD,Bed Purchasing - North,Permanent Nursing,Glebe House Nursing Home,1982.08, 20-Jan-2015,
1185,Revenue,CCHD,Bed Purchasing - Southmead Hospital,Permanent Residential,Glebe House Nursing Home,1346.16, 20-Jan-2015,
1186,Revenue,CCHD,Bed Purchasing - South,Permanent Residential,Glebe House Nursing Home,2044.08, 20-Jan-2015,
1187,Revenue,CCHD,Bed Purchasing - North,Permanent Residential,Glebe House Nursing Home,1869.44, 20-Jan-2015,
1188,Revenue,CCHD,Bed Purchasing - North,Permanent Nursing,Glebe House Nursing Home,1832.52, 20-Jan-2015,
1189,Revenue,CCHD,Bed Purchasing - North,Permanent Nursing,Glebe House Nursing Home,2166.72, 20-Jan-2015,
1190,Revenue,CCHD,Bed Purchasing - North,Permanent Residential,Glebe House Nursing Home,2593.00, 20-Jan-2015,
1191,Revenue,CCHD,Bed Purchasing - South,Permanent Residential,Gordena Care Home,2113.64, 20-Jan-2015,
1192,Revenue,CCHD,Bed Purchasing - South,Permanent Residential,Gordena Care Home,4799.84, 20-Jan-2015,
1193,Revenue,CCHD,Bed Purchasing - South,Permanent Residential,Gordena Care Home,3159.76, 20-Jan-2015,
1194,Revenue,CCHD,Bed Purchasing - South,Permanent Residential,Gordena Care Home,2968.16, 20-Jan-2015,
1195,Revenue,CCHD,Bed Purchasing - South,Permanent Residential,Gordena Care Home,1933.24, 20-Jan-2015,
1196,Revenue,CCHD,Bed Purchasing - South,Permanent Residential,Gordena Care Limited,4217.76, 20-Jan-2015,
1197,Revenue,CCHD,Bed purchasing - S28A Under 65 - South,Permanent Residential,Gordena Care Limited,4116.00, 20-Jan-2015,
1198,Revenue,CCHD,Bed Purchasing - North,Permanent Residential,Gordena Care Limited,4218.96, 20-Jan-2015,
1199,Revenue,CCHD,Bed Purchasing - South,Permanent Nursing,Gracefields Nursing Home,1705.28, 20-Jan-2015,
1200,Revenue,CCHD,Bed purchasing - Elderly S117 - South,Permanent Nursing,Gracefields Nursing Home,2395.80, 20-Jan-2015,
1201,Revenue,CCHD,Bed purchasing - Elderly S117 - South,Permanent Nursing,Gracefields Nursing Home,2356.44, 20-Jan-2015,
1202,Revenue,CCHD,Bed Purchasing - South,Permanent Nursing,Gracefields Nursing Home,2227.80, 20-Jan-2015,
1203,Revenue,CCHD,Bed Purchasing - North,Respite Planned - Nursing,Gracefields Nursing Home,7069.32, 20-Jan-2015,
1204,Revenue,CCHD,Bed Purchasing - Southmead Hospital,Permanent Nursing,Gracefields Nursing Home,1576.80, 20-Jan-2015,
1205,Revenue,CCHD,South Glos Users in South Glos Homes,Permanent Nursing,Gracefields Nursing Home,1093.06, 20-Jan-2015,
1206,Revenue,CCHD,Bed Purchasing - Southmead Hospital,Permanent Nursing,Gracefields Nursing Home,1264.92, 20-Jan-2015,
1207,Revenue,CCHD,Bed Purchasing - Southmead Hospital,Permanent Nursing,Gracefields Nursing Home,2320.44, 20-Jan-2015,
1208,Revenue,CCHD,Bed Purchasing - Southmead Hospital,Permanent Nursing,Gracefields Nursing Home,1530.44, 20-Jan-2015,
1209,Revenue,CCHD,Bed Purchasing - North,Permanent Residential,Greensleeves,1331.92, 20-Jan-2015,
1210,Revenue,CCHD,Bed Purchasing - North,Permanent Residential,Gwendoline House,1138.52, 20-Jan-2015,
1211,Revenue,CCHD,Bed Purchasing - South,Permanent Residential,Gwendoline House,952.12, 20-Jan-2015,
1212,Revenue,CCHD,Bed Purchasing - South,Permanent Residential,Gwendoline House,1143.56, 20-Jan-2015,
1213,Revenue,CCHD,Bed Purchasing - South,Permanent Residential,Gwendoline House,2293.64, 20-Jan-2015,
1214,Revenue,CCHD,Bed Purchasing - Southmead Hospital,Permanent Residential,Gwendoline House,1620.20, 20-Jan-2015,
1215,Revenue,CCHD,Supporting People Programme,Grants to Voluntary Bodies,Habinteg Housing Association,1358.58, 02-Jan-2015,
1216,Revenue,CCHD,Supporting People Programme,Grants to Voluntary Bodies,Habinteg Housing Association,1358.58, 30-Jan-2015,
1217,Revenue,CCHD,Social Lettings Agency,Fees - General,Individual,15.78, 27-Jan-2015,
1218,Revenue,CCHD,Social Lettings Agency,Other Supplies & Services,Individual,508.21, 27-Jan-2015,
1219,Revenue,CCHD,Supporting People Programme,Grants to Voluntary Bodies,Hanover Housing Association,972.33, 02-Jan-2015,
1220,Revenue,CCHD,Supporting People Programme,Grants to Voluntary Bodies,Hanover Housing Association,972.33, 30-Jan-2015,
1221,Revenue,CCHD,Bed Purchasing - South,Permanent Residential,Harefield Hall,1203.20, 20-Jan-2015,
1222,Revenue,CCHD,Bed Purchasing - South,Permanent Residential,Harefield Hall,1831.12, 20-Jan-2015,
1223,Revenue,CCHD,Bed Purchasing - South,Permanent Residential,Harefield Hall,1140.08, 20-Jan-2015,
1224,Revenue,CCHD,Bed Purchasing - South,Permanent Residential,Harefield Hall,1036.40, 20-Jan-2015,
1225,Revenue,CCHD,Bed Purchasing - South,Permanent Residential,Harefield Hall,1304.48, 20-Jan-2015,
1226,Revenue,CCHD,Bed Purchasing - South,Permanent Residential,Harefield Hall,881.52, 20-Jan-2015,
1227,Revenue,CCHD,Bed Purchasing - North,Permanent Nursing,Hc-One Ltd,1492.36, 20-Jan-2015,
1228,Revenue,CCHD,Bed Purchasing - North,Permanent Residential,Hc-One Ltd,1006.84, 20-Jan-2015,
1229,Revenue,CCHD,Bed Purchasing - North,Permanent Nursing,Hc-One Ltd,1518.60, 20-Jan-2015,
1230,Revenue,CCHD,Bed Purchasing - South,Permanent Nursing,Hc-One Ltd,542.10, 20-Jan-2015,
1231,Revenue,CCHD,Bed Purchasing - North,Permanent Nursing,Hc-One Ltd,1496.20, 20-Jan-2015,
1232,Revenue,CCHD,Bed Purchasing - North,Permanent Nursing,Hc-One Ltd,1496.20, 20-Jan-2015,
1233,Revenue,CCHD,Bed Purchasing - South,Permanent Nursing,Hc-One Ltd,1152.48, 20-Jan-2015,
1234,Revenue,CCHD,Bed Purchasing - Elderly S117- North,Permanent Nursing,Hc-One Ltd,1976.56, 20-Jan-2015,
1235,Revenue,CCHD,Bed Purchasing - South,Permanent Residential,Heathwood Rest Home,1009.80, 20-Jan-2015,
1236,Revenue,CCHD,Bed Purchasing - Southmead Hospital,Permanent Residential,Heathwood Rest Home,1009.80, 20-Jan-2015,
1237,Revenue,CCHD,Home Care - Elderly - South,Day Care / Social Activities,Helping Hands Homecare,82.11, 08-Jan-2015,
1238,Revenue,CCHD,Home Care - Elderly - South,Other Small Contracts,Helping Hands Homecare,1309.85, 08-Jan-2015,
1239,Revenue,CCHD,Home Care - Elderly - North,Day Care / Social Activities,Helping Hands Homecare,140.76, 08-Jan-2015,
1240,Revenue,CCHD,Home Care - Elderly - North,Other Small Contracts,Helping Hands Homecare,2119.22, 08-Jan-2015,
1241,Revenue,CCHD,Day Care - North,Day Care / Social Activities,Helping Hands Homecare,93.84, 08-Jan-2015,
1242,Revenue,CCHD,Under 65s -MH  Home Care Purch,Other Small Contracts,Helping Hands Homecare,31.28, 08-Jan-2015,
1243,Revenue,CCHD,Home care - Elderly MH - North,Other Small Contracts,Helping Hands Homecare,62.56, 08-Jan-2015,
1244,Revenue,CCHD,Home Care - Elderly - South,Day Care / Social Activities,Helping Hands Homecare,78.20, 08-Jan-2015,
1245,Revenue,CCHD,Home Care - Elderly - South,Other Small Contracts,Helping Hands Homecare,1145.63, 08-Jan-2015,
1246,Revenue,CCHD,Home Care - Elderly - North,Day Care / Social Activities,Helping Hands Homecare,144.67, 08-Jan-2015,
1247,Revenue,CCHD,Home Care - Elderly - North,Other Small Contracts,Helping Hands Homecare,2275.62, 08-Jan-2015,
1248,Revenue,CCHD,Day Care - North,Day Care / Social Activities,Helping Hands Homecare,93.84, 08-Jan-2015,
1249,Revenue,CCHD,Under 65s -MH  Home Care Purch,Other Small Contracts,Helping Hands Homecare,31.28, 08-Jan-2015,
1250,Revenue,CCHD,Home care - Elderly MH - North,Other Small Contracts,Helping Hands Homecare,62.56, 08-Jan-2015,
1251,Revenue,CCHD,Home Care - Elderly - South,Day Care / Social Activities,Helping Hands Homecare,187.68, 16-Jan-2015,
1252,Revenue,CCHD,Home Care - Elderly - South,Other Small Contracts,Helping Hands Homecare,1567.91, 16-Jan-2015,
1253,Revenue,CCHD,Home Care - Elderly - North,Day Care / Social Activities,Helping Hands Homecare,344.08, 16-Jan-2015,
1254,Revenue,CCHD,Home Care - Elderly - North,Other Small Contracts,Helping Hands Homecare,2091.85, 16-Jan-2015,
1255,Revenue,CCHD,Day Care - North,Day Care / Social Activities,Helping Hands Homecare,93.84, 16-Jan-2015,
1256,Revenue,CCHD,Under 65s -MH  Home Care Purch,Other Small Contracts,Helping Hands Homecare,31.28, 16-Jan-2015,
1257,Revenue,CCHD,Home care - Elderly MH - North,Other Small Contracts,Helping Hands Homecare,62.56, 16-Jan-2015,
1258,Revenue,CCHD,Home Care - Elderly - South,Day Care / Social Activities,Helping Hands Homecare,183.77, 16-Jan-2015,
1259,Revenue,CCHD,Home Care - Elderly - South,Other Small Contracts,Helping Hands Homecare,1583.55, 16-Jan-2015,
1260,Revenue,CCHD,Home Care - Elderly - North,Day Care / Social Activities,Helping Hands Homecare,805.46, 16-Jan-2015,
1261,Revenue,CCHD,Home Care - Elderly - North,Other Small Contracts,Helping Hands Homecare,1970.64, 16-Jan-2015,
1262,Revenue,CCHD,Day Care - North,Day Care / Social Activities,Helping Hands Homecare,86.02, 16-Jan-2015,
1263,Revenue,CCHD,Under 65s -MH  Home Care Purch,Other Small Contracts,Helping Hands Homecare,31.28, 16-Jan-2015,
1264,Revenue,CCHD,Home care - Elderly MH - North,Other Small Contracts,Helping Hands Homecare,62.56, 16-Jan-2015,
1265,Revenue,CCHD,Home Care - Elderly - South,Day Care / Social Activities,Helping Hands Homecare,93.84, 30-Jan-2015,
1266,Revenue,CCHD,Home Care - Elderly - South,Other Small Contracts,Helping Hands Homecare,1141.72, 30-Jan-2015,
1267,Revenue,CCHD,Home Care - Elderly - North,Day Care / Social Activities,Helping Hands Homecare,312.80, 30-Jan-2015,
1268,Revenue,CCHD,Home Care - Elderly - North,Other Small Contracts,Helping Hands Homecare,1403.69, 30-Jan-2015,
1269,Revenue,CCHD,Day Care - North,Day Care / Social Activities,Helping Hands Homecare,31.28, 30-Jan-2015,
1270,Revenue,CCHD,Under 65s -MH  Home Care Purch,Other Small Contracts,Helping Hands Homecare,23.46, 30-Jan-2015,
1271,Revenue,CCHD,Home care - Elderly MH - North,Other Small Contracts,Helping Hands Homecare,31.28, 30-Jan-2015,
1272,Revenue,CCHD,S117 Placements PCT,Permanent Residential,Individual,18209.52, 20-Jan-2015,
1273,Revenue,CCHD,Bed Purchasing - Southmead Hospital,Permanent Residential,High Border Lodge,1442.96, 20-Jan-2015,
1274,Revenue,CCHD,Bed Purchasing - Southmead Hospital,Permanent Residential,Highfield House,1227.52, 20-Jan-2015,
1275,Revenue,CCHD,Bed Purchasing - North,Permanent Residential,Holmleigh Care Homes Ltd,4059.84, 20-Jan-2015,
1276,Revenue,CCHD,Bed Purchasing - South,Permanent Residential,Holmleigh Care Homes Ltd,5102.60, 20-Jan-2015,
1277,Revenue,CCHD,Bed Purchasing - North,Permanent Residential,Home Farm Trust Ltd  5-6 Brook Office Pa,2852.08, 20-Jan-2015,
1278,Revenue,CCHD,Bed Purchasing - South,Permanent Residential,Home Farm Trust Ltd  5-6 Brook Office Pa,5126.28, 20-Jan-2015,
1279,Revenue,CCHD,Bed Purchasing - North,Permanent Residential,Home Farm Trust Ltd  5-6 Brook Office Pa,3442.72, 20-Jan-2015,
1280,Revenue,CCHD,Bed Purchasing - South,Permanent Residential,Home Farm Trust Ltd  5-6 Brook Office Pa,5550.52, 20-Jan-2015,
1281,Revenue,CCHD,18-25 Year Olds,Permanent Residential,Home From Home Care Ltd,8988.20, 20-Jan-2015,
1282,Revenue,CCHD,Bed Purchasing - North,Permanent Residential,Homes Caring For Autism Ltd  Churchill H,9907.24, 20-Jan-2015,
1283,Revenue,CCHD,18-25 Year Olds,Permanent Residential,Homes Caring For Autism Ltd  Churchill H,12903.72, 20-Jan-2015,
1284,Revenue,CCHD,Bed Purchasing - Southmead Hospital,Permanent Nursing,Horfield Care Limited,1717.67, 28-Jan-2015,
1285,Revenue,CCHD,Bed Purchasing - Southmead Hospital,Permanent Nursing,Horfield Care Limited,2223.93, 28-Jan-2015,
1286,Revenue,CCHD,Bed Purchasing - Southmead Hospital,Permanent Nursing,Horfield Care Limited,1716.91, 28-Jan-2015,
1287,Revenue,CCHD,Bed Purchasing - Southmead Hospital,Permanent Nursing,Horfield Care Limited,1470.15, 28-Jan-2015,
1288,Revenue,CCHD,Bed Purchasing - Southmead Hospital,Permanent Nursing,Horfield Care Limited,1023.62, 28-Jan-2015,
1289,Revenue,CCHD,Bed Purchasing - Southmead Hospital,Permanent Nursing,Horfield Care Limited,1512.27, 28-Jan-2015,
1290,Revenue,CCHD,Bed Purchasing - Southmead Hospital,Permanent Nursing,Horfield Care Limited,1912.97, 28-Jan-2015,
1291,Revenue,CCHD,Bed Purchasing - North,Permanent Nursing,Horfield Care Limited,1189.60, 28-Jan-2015,
1292,Revenue,CCHD,Bed Purchasing - South,Permanent Nursing,Horfield Care Limited,1357.09, 28-Jan-2015,
1293,Revenue,CCHD,Bed Purchasing - Southmead Hospital,Permanent Nursing,Horfield Care Limited,2757.67, 28-Jan-2015,
1294,Revenue,CCHD,Bed Purchasing - North,Respite Emergency - Nursing,Horfield Care Limited,1957.06, 28-Jan-2015,
1295,Revenue,CCHD,Bed Purchasing - North,Permanent Nursing,Horfield Care Limited,1156.44, 28-Jan-2015,
1296,Revenue,CCHD,Bed Purchasing - South,Permanent Nursing,Horfield Care Limited,1606.85, 28-Jan-2015,
1297,Revenue,CCHD,Bed Purchasing - Southmead Hospital,Respite Planned - Nursing,Horfield Care Limited,658.04, 28-Jan-2015,
1298,Revenue,CCHD,Bed Purchasing - Southmead Hospital,Permanent Nursing,Horfield Care Limited,1662.26, 02-Jan-2015,
1299,Revenue,CCHD,Bed Purchasing - Southmead Hospital,Permanent Nursing,Horfield Care Limited,1333.97, 02-Jan-2015,
1300,Revenue,CCHD,Bed Purchasing - Southmead Hospital,Permanent Nursing,Horfield Care Limited,1661.53, 02-Jan-2015,
1301,Revenue,CCHD,Bed Purchasing - Southmead Hospital,Permanent Nursing,Horfield Care Limited,1422.73, 02-Jan-2015,
1302,Revenue,CCHD,Bed Purchasing - Southmead Hospital,Permanent Nursing,Horfield Care Limited,2193.47, 02-Jan-2015,
1303,Revenue,CCHD,Bed Purchasing - North,Permanent Nursing,Horfield Care Limited,949.23, 02-Jan-2015,
1304,Revenue,CCHD,Bed Purchasing - Southmead Hospital,Permanent Nursing,Horfield Care Limited,1851.23, 02-Jan-2015,
1305,Revenue,CCHD,Bed Purchasing - North,Permanent Nursing,Horfield Care Limited,1151.31, 02-Jan-2015,
1306,Revenue,CCHD,Bed Purchasing - South,Permanent Nursing,Horfield Care Limited,1313.31, 02-Jan-2015,
1307,Revenue,CCHD,Bed Purchasing - Southmead Hospital,Permanent Nursing,Horfield Care Limited,2668.71, 02-Jan-2015,
1308,Revenue,CCHD,Bed Purchasing - North,Respite Emergency - Nursing,Horfield Care Limited,2668.71, 02-Jan-2015,
1309,Revenue,CCHD,Supporting People Programme,Grants to Voluntary Bodies,Housing 21,616.42, 02-Jan-2015,
1310,Revenue,CCHD,Supporting People Programme,Grants to Voluntary Bodies,Housing 21,935.00, 02-Jan-2015,
1311,Revenue,CCHD,Supporting People Programme,Grants to Voluntary Bodies,Housing 21,616.42, 30-Jan-2015,
1312,Revenue,CCHD,Supporting People Programme,Grants to Voluntary Bodies,Housing 21,935.00, 30-Jan-2015,
1313,Revenue,CCHD,Home Care - Elderly - North,Private & Voluntary Home Care,Housing 21,37580.45, 09-Jan-2015,
1314,Revenue,CCHD,Home Care - Elderly - South,Private & Voluntary Home Care,Housing 21,24011.00, 02-Jan-2015,
1315,Revenue,CCHD,Home Care - Elderly - South,Private & Voluntary Home Care,Housing 21,24011.00, 30-Jan-2015,
1316,Revenue,CCHD,Care Management Team - South,Agency Staff (Operational)/PCT Pay,IPE,1421.89, 02-Jan-2015,
1317,Revenue,CCHD,Social Lettings Agency,Fees - General,Individual,11.60, 09-Jan-2015,
1318,Revenue,CCHD,Social Lettings Agency,Other Supplies & Services,Individual,655.41, 09-Jan-2015,
1319,Revenue,CCHD,Homeless - Private Sector Leasing,Other Supplies & Services,Individual,594.00, 15-Jan-2015,
1320,Revenue,CCHD,Home Care - Elderly - South,Supported Living,Julia Simone- Supp. Ind.,1165.80, 20-Jan-2015,
1321,Revenue,CCHD,Younger MH non-res purchasing,Supported Living,Julia Simone- Supp. Ind.,1165.80, 20-Jan-2015,
1322,Revenue,CCHD,Younger MH non-res purchasing,Supported Living,Julia Simone- Supp. Ind.,1165.80, 20-Jan-2015,
1323,Revenue,CCHD,Bed Purchasing - South,Permanent Residential,Julia Simone- Supp. Ind.,3960.52, 20-Jan-2015,
1324,Revenue,CCHD,Bed purchasing -S28A  Under 65 - North,Permanent Residential,Julia Simone- Supp. Ind.,3494.52, 20-Jan-2015,
1325,Revenue,CCHD,Bed Purchasing - South,Permanent Residential,Karenza Ltd,1756.00, 20-Jan-2015,
1326,Revenue,CCHD,Community Support - North,Preventative Assistance,KCC Cleaning Services Ltd,580.00, 08-Jan-2015,
1327,Revenue,CCHD,Minor Adaptations Service,Prop.Serv. General Repairs,KCC Cleaning Services Ltd,470.00, 12-Jan-2015,
1328,Revenue,CCHD,Bed Purchasing - Southmead Hospital,Permanent Residential,Kenver House Residential Home,1119.36, 20-Jan-2015,
1329,Revenue,CCHD,Bed Purchasing - Southmead Hospital,Permanent Residential,Kenver House Residential Home,1643.72, 20-Jan-2015,
1330,Revenue,CCHD,Bed Purchasing - Southmead Hospital,Permanent Residential,Kenver House Residential Home,1671.08, 20-Jan-2015,
1331,Revenue,CCHD,Bed Purchasing - South,Permanent Residential,Kenver House Residential Home,1527.68, 20-Jan-2015,
1332,Revenue,CCHD,Bed Purchasing - South,Permanent Residential,Kenver House Residential Home,1136.68, 20-Jan-2015,
1333,Revenue,CCHD,Bed Purchasing - South,Permanent Residential,Kenver House Residential Home,1370.92, 20-Jan-2015,
1334,Revenue,CCHD,Bed Purchasing - South,Permanent Residential,Kenver House Residential Home,1691.08, 20-Jan-2015,
1335,Revenue,CCHD,Bed Purchasing - South,Respite Planned - Residential,Kenver House Residential Home,1470.38, 20-Jan-2015,
1336,Revenue,CCHD,Bed Purchasing - South,Respite Planned - Residential,Kenver House Residential Home,696.50, 20-Jan-2015,
1337,Revenue,CCHD,Bed Purchasing - South,Respite Emergency - Residential,Kenver House Residential Home,610.08, 20-Jan-2015,
1338,Revenue,CCHD,Bed Purchasing - South,Permanent Residential,Kenver House Residential Home,2166.88, 20-Jan-2015,
1339,Revenue,CCHD,Bed Purchasing - South,Permanent Residential,Kenver House Residential Home,1631.08, 20-Jan-2015,
1340,Revenue,CCHD,Bed Purchasing - Southmead Hospital,Permanent Residential,Kenver House Residential Home,1671.00, 20-Jan-2015,
1341,Revenue,CCHD,Bed Purchasing - South,Permanent Residential,Kenver House Residential Home,1414.64, 20-Jan-2015,
1342,Revenue,CCHD,Bed Purchasing - North,Permanent Residential,Kenver House Residential Home,1659.44, 20-Jan-2015,
1343,Revenue,CCHD,Bed Purchasing - Southmead Hospital,Permanent Residential,Kenver House Residential Home,1562.40, 20-Jan-2015,
1344,Revenue,CCHD,Supporting People Programme,Grants to Voluntary Bodies,Keyring Living Support Networks,2917.00, 02-Jan-2015,
1345,Revenue,CCHD,Supporting People Programme,Grants to Voluntary Bodies,Keyring Living Support Networks,2917.00, 30-Jan-2015,
1346,Revenue,CCHD,Bed Purchasing - North,Permanent Nursing,Kingfisher Lodge Care Centre,2514.24, 20-Jan-2015,
1347,Revenue,CCHD,Supporting People Programme,Grants to Voluntary Bodies,Kingswood Young Homeless Project,16943.67, 02-Jan-2015,
1348,Revenue,CCHD,Supporting People Programme,Grants to Voluntary Bodies,Kingswood Young Homeless Project,16943.67, 30-Jan-2015,
1349,Revenue,CCHD,Bed Purchasing - North,Permanent Residential,Kisimul Group,11388.88, 20-Jan-2015,
1350,Revenue,CCHD,Supporting People Programme,Grants to Voluntary Bodies,Knightstone Housing Association Limited,13513.75, 02-Jan-2015,
1351,Revenue,CCHD,Supporting People Programme,Grants to Voluntary Bodies,Knightstone Housing Association Limited,8537.92, 02-Jan-2015,
1352,Revenue,CCHD,Supporting People Programme,Grants to Voluntary Bodies,Knightstone Housing Association Limited,7602.50, 02-Jan-2015,
1353,Revenue,CCHD,Supporting People Programme,Grants to Voluntary Bodies,Knightstone Housing Association Limited,1789.75, 02-Jan-2015,
1354,Revenue,CCHD,Supporting People Programme,Grants to Voluntary Bodies,Knightstone Housing Association Limited,2482.75, 02-Jan-2015,
1355,Revenue,CCHD,Supporting People Programme,Grants to Voluntary Bodies,Knightstone Housing Association Limited,2483.33, 02-Jan-2015,
1356,Revenue,CCHD,Supporting People Programme,Grants to Voluntary Bodies,Knightstone Housing Association Limited,844.58, 02-Jan-2015,
1357,Revenue,CCHD,Supporting People Programme,Grants to Voluntary Bodies,Knightstone Housing Association Limited,13513.75, 30-Jan-2015,
1358,Revenue,CCHD,Supporting People Programme,Grants to Voluntary Bodies,Knightstone Housing Association Limited,8537.92, 30-Jan-2015,
1359,Revenue,CCHD,Supporting People Programme,Grants to Voluntary Bodies,Knightstone Housing Association Limited,7602.50, 30-Jan-2015,
1360,Revenue,CCHD,Supporting People Programme,Grants to Voluntary Bodies,Knightstone Housing Association Limited,1789.75, 30-Jan-2015,
1361,Revenue,CCHD,Supporting People Programme,Grants to Voluntary Bodies,Knightstone Housing Association Limited,2482.75, 30-Jan-2015,
1362,Revenue,CCHD,Supporting People Programme,Grants to Voluntary Bodies,Knightstone Housing Association Limited,2483.33, 30-Jan-2015,
1363,Revenue,CCHD,Supporting People Programme,Grants to Voluntary Bodies,Knightstone Housing Association Limited,844.58, 30-Jan-2015,
1364,Revenue,CCHD,Home Care - Elderly - South,Other Small Contracts,Kumari Care Limited,3076.42, 02-Jan-2015,
1365,Revenue,CCHD,Home Care - Elderly - North,Other Small Contracts,Kumari Care Limited,833.86, 02-Jan-2015,
1366,Revenue,CCHD,Day Care - South,Day Care / Social Activities,Kumari Care Limited,96.50, 02-Jan-2015,
1367,Revenue,CCHD,Home Care - Elderly - South,Other Small Contracts,Kumari Care Limited,3111.16, 14-Jan-2015,
1368,Revenue,CCHD,Home Care - Elderly - North,Other Small Contracts,Kumari Care Limited,833.86, 14-Jan-2015,
1369,Revenue,CCHD,Day Care - South,Day Care / Social Activities,Kumari Care Limited,92.64, 14-Jan-2015,
1370,Revenue,CCHD,Home Care - Elderly - South,Other Small Contracts,Kumari Care Limited,2849.78, 19-Jan-2015,
1371,Revenue,CCHD,Home Care - Elderly - North,Other Small Contracts,Kumari Care Limited,361.09, 19-Jan-2015,
1372,Revenue,CCHD,Day Care - South,Day Care / Social Activities,Kumari Care Limited,46.32, 19-Jan-2015,
1373,Revenue,CCHD,Home Care - Elderly - South,Other Small Contracts,Kumari Care Limited,2983.78, 26-Jan-2015,
1374,Revenue,CCHD,Home Care - Elderly - North,Other Small Contracts,Kumari Care Limited,833.86, 26-Jan-2015,
1375,Revenue,CCHD,Day Care - South,Day Care / Social Activities,Kumari Care Limited,73.34, 26-Jan-2015,
1376,Revenue,CCHD,Home Care - Elderly - South,Other Small Contracts,Kumari Care Limited,3027.34, 26-Jan-2015,
1377,Revenue,CCHD,Home Care - Elderly - North,Other Small Contracts,Kumari Care Limited,833.86, 26-Jan-2015,
1378,Revenue,CCHD,Day Care - South,Day Care / Social Activities,Kumari Care Limited,92.64, 26-Jan-2015,
1379,Revenue,CCHD,Learning Difficulties Development Fund,Other Supplies & Services,L D Awareness,1577.63, 13-Jan-2015,
1380,Revenue,CCHD,Bed Purchasing - North,Permanent Residential,Leonard Cheshire  National Account Centr,5959.48, 20-Jan-2015,
1381,Revenue,CCHD,Bed Purchasing - North,Permanent Residential,Leonard Cheshire  National Account Centr,5957.92, 20-Jan-2015,
1382,Revenue,CCHD,Bed Purchasing - South,Permanent Residential,Leonard Cheshire  National Account Centr,4492.08, 20-Jan-2015,
1383,Revenue,CCHD,Bed Purchasing - North,Permanent Nursing,Leonard Cheshire  National Account Centr,2881.12, 20-Jan-2015,
1384,Revenue,CCHD,Bed Purchasing - North,Permanent Nursing,Leonard Cheshire  National Account Centr,3869.32, 20-Jan-2015,
1385,Revenue,CCHD,Bed Purchasing - North,Permanent Residential,Leonard Cheshire  National Account Centr,2932.64, 20-Jan-2015,
1386,Revenue,CCHD,Bed Purchasing - North,Permanent Nursing,Leonard Cheshire  National Account Centr,3271.52, 20-Jan-2015,
1387,Revenue,CCHD,Bed Purchasing - North,Permanent Nursing,Leonard Cheshire  National Account Centr,5603.08, 20-Jan-2015,
1388,Revenue,CCHD,Bed Purchasing - South,Permanent Nursing,Leonard Cheshire  National Account Centr,2908.60, 20-Jan-2015,
1389,Revenue,CCHD,Bed Purchasing - Southmead Hospital,Permanent Nursing,Leonard Cheshire  National Account Centr,3041.76, 20-Jan-2015,
1390,Revenue,CCHD,South Glos Users in all other LA Homes,Permanent Nursing,Leonard Cheshire  National Account Centr,610.44, 20-Jan-2015,
1391,Revenue,CCHD,Bed Purchasing - North,Permanent Nursing,Leonard Cheshire  National Account Centr,3358.64, 20-Jan-2015,
1392,Revenue,CCHD,Bed Purchasing - North,Permanent Nursing,Leonard Cheshire  National Account Centr,4127.12, 20-Jan-2015,
1393,Revenue,CCHD,Bed Purchasing - South,Permanent Nursing,Leonard Cheshire  National Account Centr,4560.88, 20-Jan-2015,
1394,Revenue,CCHD,Supported Living - North,Private & Voluntary Home Care,Lifeways Community Care (Gloucester) Ltd,11373.00, 15-Jan-2015,
1395,Revenue,CCHD,Bed Purchasing - Southmead Hospital,Permanent Residential,Little Croft,1080.92, 20-Jan-2015,
1396,Revenue,CCHD,Bed Purchasing - Southmead Hospital,Permanent Residential,Little Croft,1252.04, 20-Jan-2015,
1397,Revenue,CCHD,Bed Purchasing - Southmead Hospital,Permanent Residential,Little Croft,1268.20, 20-Jan-2015,
1398,Revenue,CCHD,Bed Purchasing - South,Permanent Residential,Little Croft,1570.60, 20-Jan-2015,
1399,Revenue,CCHD,Bed Purchasing - Southmead Hospital,Permanent Residential,Little Croft,2341.14, 20-Jan-2015,
1400,Revenue,CCHD,Bed Purchasing - Southmead Hospital,Permanent Residential,Little Croft,1563.95, 20-Jan-2015,
1401,Revenue,CCHD,Bed Purchasing - Southmead Hospital,Permanent Residential,Little Croft,1287.96, 20-Jan-2015,
1402,Revenue,CCHD,Bed Purchasing - Southmead Hospital,Respite Planned - Residential,Little Croft,3221.43, 20-Jan-2015,
1403,Revenue,CCHD,Bed Purchasing - South,Permanent Residential,Little Croft,1602.64, 20-Jan-2015,
1404,Revenue,CCHD,Bed Purchasing - South,Permanent Residential,Little Croft,903.84, 20-Jan-2015,
1405,Revenue,CCHD,Bed Purchasing - Southmead Hospital,Permanent Residential,Little Croft,1748.76, 20-Jan-2015,
1406,Revenue,CCHD,Bed Purchasing - Southmead Hospital,Permanent Residential,Little Croft,1432.20, 20-Jan-2015,
1407,Revenue,CCHD,Bed Purchasing - South,Permanent Residential,Little Croft,1050.36, 20-Jan-2015,
1408,Revenue,CCHD,Bed Purchasing - South,Permanent Residential,Little Croft,1405.40, 20-Jan-2015,
1409,Revenue,CCHD,Bed Purchasing - Southmead Hospital,Permanent Residential,Little Croft,1260.20, 20-Jan-2015,
1410,Revenue,CCHD,Bed Purchasing - Southmead Hospital,Permanent Residential,Little Croft,1296.15, 20-Jan-2015,
1411,Revenue,CCHD,Bed Purchasing - Southmead Hospital,Permanent Residential,Little Croft,1254.72, 20-Jan-2015,
1412,Revenue,CCHD,Bed Purchasing - North,Permanent Residential,Little Croft,1367.56, 20-Jan-2015,
1413,Revenue,CCHD,Bed Purchasing - Southmead Hospital,Permanent Residential,Little Croft,1260.20, 20-Jan-2015,
1414,Revenue,CCHD,Bed Purchasing - North,Permanent Residential,Littlecroft Residential Homes  Longcroft,6481.28, 20-Jan-2015,
1415,Revenue,CCHD,Home Care - Elderly - North,Day Care / Social Activities,Lloyds TSB Commercial Finance Limited,121.80, 14-Jan-2015,
1416,Revenue,CCHD,Home Care - Elderly - North,Other Small Contracts,Lloyds TSB Commercial Finance Limited,6711.60, 14-Jan-2015,
1417,Revenue,CCHD,Home Care - Elderly - North,Day Care / Social Activities,Lloyds TSB Commercial Finance Limited,260.40, 08-Jan-2015,
1418,Revenue,CCHD,Home Care - Elderly - North,Other Small Contracts,Lloyds TSB Commercial Finance Limited,6610.80, 08-Jan-2015,
1419,Revenue,CCHD,Home Care - Elderly - North,Day Care / Social Activities,Lloyds TSB Commercial Finance Limited,214.20, 28-Jan-2015,
1420,Revenue,CCHD,Home Care - Elderly - North,Other Small Contracts,Lloyds TSB Commercial Finance Limited,6476.40, 28-Jan-2015,
1421,Revenue,CCHD,Home Care - Elderly - North,Day Care / Social Activities,Lloyds TSB Commercial Finance Limited,126.00, 14-Jan-2015,
1422,Revenue,CCHD,Home Care - Elderly - North,Other Small Contracts,Lloyds TSB Commercial Finance Limited,5653.20, 14-Jan-2015,
1423,Revenue,CCHD,Supported Living - South,Private & Voluntary Home Care,Lloyds TSB Commercial Finance Limited,9506.62, 20-Jan-2015,
1424,Revenue,CCHD,Supported Living - South,Private & Voluntary Home Care,Lloyds TSB Commercial Finance Limited,9462.68, 20-Jan-2015,
1425,Revenue,CCHD,Supported Living - South,Private & Voluntary Home Care,Lloyds TSB Commercial Finance Limited,4028.86, 20-Jan-2015,
1426,Revenue,CCHD,Supported Living - South,Private & Voluntary Home Care,Lloyds TSB Commercial Finance Limited,3907.86, 20-Jan-2015,
1427,Revenue,CCHD,Supported Living - South,Private & Voluntary Home Care,Lloyds TSB Commercial Finance Limited,3638.46, 09-Jan-2015,
1428,Revenue,CCHD,Supported Living - South,Private & Voluntary Home Care,Lloyds TSB Commercial Finance Limited,3840.21, 20-Jan-2015,
1429,Revenue,CCHD,Supported Living - South,Private & Voluntary Home Care,Lloyds TSB Commercial Finance Limited,3828.75, 09-Jan-2015,
1430,Revenue,CCHD,Supported Living - South,Private & Voluntary Home Care,Lloyds TSB Commercial Finance Limited,8220.86, 09-Jan-2015,
1431,Revenue,CCHD,Supported Living - South,Private & Voluntary Home Care,Lloyds TSB Commercial Finance Limited,8000.76, 09-Jan-2015,
1432,Revenue,CCHD,Supported Living - South,Private & Voluntary Home Care,Lloyds TSB Commercial Finance Limited,8005.82, 20-Jan-2015,
1433,Revenue,CCHD,Supported Living - South,Private & Voluntary Home Care,Lloyds TSB Commercial Finance Limited,3927.19, 19-Jan-2015,
1434,Revenue,CCHD,Supported Living - South,Private & Voluntary Home Care,Lloyds TSB Commercial Finance Limited,4048.62, 13-Jan-2015,
1435,Revenue,CCHD,Supported Living - South,Private & Voluntary Home Care,Lloyds TSB Commercial Finance Limited,3878.02, 20-Jan-2015,
1436,Revenue,CCHD,Supported Living - North,Private & Voluntary Home Care,Lloyds TSB Commercial Finance Limited,9327.87, 23-Jan-2015,
1437,Revenue,CCHD,Supported Living - North,Private & Voluntary Home Care,Lloyds TSB Commercial Finance Limited,9666.52, 20-Jan-2015,
1438,Revenue,CCHD,Supported Living - South,Private & Voluntary Home Care,Lloyds TSB Commercial Finance Limited,3687.12, 20-Jan-2015,
1439,Revenue,CCHD,Supported Living - South,Private & Voluntary Home Care,Lloyds TSB Commercial Finance Limited,3280.15, 20-Jan-2015,
1440,Revenue,CCHD,Supported Living - South,Private & Voluntary Home Care,Lloyds TSB Commercial Finance Limited,6138.61, 20-Jan-2015,
1441,Revenue,CCHD,Supported Living - South,Private & Voluntary Home Care,Lloyds TSB Commercial Finance Limited,3671.91, 09-Jan-2015,
1442,Revenue,CCHD,Supported Living - South,Private & Voluntary Home Care,Lloyds TSB Commercial Finance Limited,3634.08, 20-Jan-2015,
1443,Revenue,CCHD,MH Purchasing - Younger,Independent Living,Lloyds TSB Commercial Finance Limited,12149.50, 19-Jan-2015,
1444,Revenue,CCHD,Supported Living - South,Private & Voluntary Home Care,Lloyds TSB Commercial Finance Limited,3597.49, 09-Jan-2015,
1445,Revenue,CCHD,Supported Living - South,Private & Voluntary Home Care,Lloyds TSB Commercial Finance Limited,3699.15, 20-Jan-2015,
1446,Revenue,CCHD,Supported Living - North,Private & Voluntary Home Care,Lloyds TSB Commercial Finance Limited,8291.00, 20-Jan-2015,
1447,Revenue,CCHD,Supported Living - North,Private & Voluntary Home Care,Lloyds TSB Commercial Finance Limited,8023.55, 09-Jan-2015,
1448,Revenue,CCHD,Supported Living - South,Private & Voluntary Home Care,Lloyds TSB Commercial Finance Limited,3539.22, 20-Jan-2015,
1449,Revenue,CCHD,Supported Living - South,Private & Voluntary Home Care,Loga Care Ltd (T/A Logacare),3672.90, 02-Jan-2015,
1450,Revenue,CCHD,Social Lettings Agency,Fees - General,Individual,10.00, 02-Jan-2015,
1451,Revenue,CCHD,Social Lettings Agency,Other Supplies & Services,Individual,565.00, 02-Jan-2015,
1452,Revenue,CCHD,Home Care - Elderly - North,Day Care / Social Activities,Lower Kilcott,1466.00, 20-Jan-2015,
1453,Revenue,CCHD,Home Care - Elderly - North,Day Care / Social Activities,Lower Kilcott,1405.12, 20-Jan-2015,
1454,Revenue,CCHD,Home Care - Elderly - North,Day Care / Social Activities,Lower Kilcott,560.64, 20-Jan-2015,
1455,Revenue,CCHD,Bed Purchasing - Southmead Hospital,Permanent Nursing,Majestic 3 Limited,1000.20, 20-Jan-2015,
1456,Revenue,CCHD,Bed Purchasing - Southmead Hospital,Permanent Residential,Manor Cottage,3915.62, 20-Jan-2015,
1457,Revenue,CCHD,Bed Purchasing - Southmead Hospital,Permanent Residential,Manor Cottage,1260.20, 20-Jan-2015,
1458,Revenue,CCHD,Bed Purchasing - Southmead Hospital,Permanent Residential,Manor Cottage,1032.52, 20-Jan-2015,
1459,Revenue,CCHD,Bed Purchasing - South,Permanent Residential,Manor Cottage,1456.60, 20-Jan-2015,
1460,Revenue,CCHD,Bed Purchasing - Southmead Hospital,Permanent Residential,Manor Cottage,1260.20, 20-Jan-2015,
1461,Revenue,CCHD,Bed Purchasing - North,Permanent Residential,Manton Hall Residential Home,1521.60, 20-Jan-2015,
1462,Revenue,CCHD,Younger MH non-res purchasing,Day Care / Social Activities,Maples Community Care Limited,2597.00, 13-Jan-2015,
1463,Revenue,CCHD,Supported Living - South,Private & Voluntary Home Care,Maples Community Care Limited,2889.60, 16-Jan-2015,
1464,Revenue,CCHD,Section 117 Placements MH Younger,Day Care / Social Activities,Maples Community Care Limited,798.00, 16-Jan-2015,
1465,Revenue,CCHD,Section 117 Placements MH Younger,Day Care / Social Activities,Maples Community Care Limited,2597.00, 16-Jan-2015,
1466,Revenue,CCHD,Younger MH non-res purchasing,Day Care / Social Activities,Maples Community Care Limited,2597.00, 16-Jan-2015,
1467,Revenue,CCHD,Section 117 Placements MH Younger,Day Care / Social Activities,Maples Community Care Limited,2597.00, 16-Jan-2015,
1468,Revenue,CCHD,Social Lettings Agency,Fees - General,Individual,11.60, 20-Jan-2015,
1469,Revenue,CCHD,Social Lettings Agency,Other Supplies & Services,Individual,655.41, 20-Jan-2015,
1470,Revenue,CCHD,Bed Purchasing - South,Permanent Residential,Marsden Healthcare Limited,1263.20, 16-Jan-2015,
1471,Revenue,CCHD,Bed Purchasing - South,Permanent Residential,Marsden Healthcare Limited,3247.80, 16-Jan-2015,
1472,Revenue,CCHD,Bed Purchasing - South,Permanent Residential,Marsden Healthcare Limited,1525.64, 16-Jan-2015,
1473,Revenue,CCHD,Bed Purchasing - South,Permanent Nursing,Meadow Care Home,1541.00, 20-Jan-2015,
1474,Revenue,CCHD,Home Care - Elderly - South,Day Care / Social Activities,Mears Care,88.55, 02-Jan-2015,
1475,Revenue,CCHD,Home Care - Elderly - South,Other Small Contracts,Mears Care,577.50, 02-Jan-2015,
1476,Revenue,CCHD,Home Care - Elderly - North,Other Small Contracts,Mears Care,3857.70, 02-Jan-2015,
1477,Revenue,CCHD,Day Care - North,Day Care / Social Activities,Mears Care,30.80, 02-Jan-2015,
1478,Revenue,CCHD,Under 65s -MH  Home Care Purch,Other Small Contracts,Mears Care,115.50, 02-Jan-2015,
1479,Revenue,CCHD,Home Care - Elderly - South,Day Care / Social Activities,Mears Care,92.40, 08-Jan-2015,
1480,Revenue,CCHD,Home Care - Elderly - South,Other Small Contracts,Mears Care,504.35, 08-Jan-2015,
1481,Revenue,CCHD,Home Care - Elderly - North,Other Small Contracts,Mears Care,3834.60, 08-Jan-2015,
1482,Revenue,CCHD,Day Care - North,Day Care / Social Activities,Mears Care,30.80, 08-Jan-2015,
1483,Revenue,CCHD,Under 65s -MH  Home Care Purch,Other Small Contracts,Mears Care,115.50, 08-Jan-2015,
1484,Revenue,CCHD,Home Care - Elderly - South,Day Care / Social Activities,Mears Care,96.25, 09-Jan-2015,
1485,Revenue,CCHD,Home Care - Elderly - South,Other Small Contracts,Mears Care,454.30, 09-Jan-2015,
1486,Revenue,CCHD,Home Care - Elderly - North,Other Small Contracts,Mears Care,3349.50, 09-Jan-2015,
1487,Revenue,CCHD,Day Care - North,Day Care / Social Activities,Mears Care,40.70, 09-Jan-2015,
1488,Revenue,CCHD,Under 65s -MH  Home Care Purch,Other Small Contracts,Mears Care,84.70, 09-Jan-2015,
1489,Revenue,CCHD,Home Care - Elderly - South,Day Care / Social Activities,Mears Care,88.55, 22-Jan-2015,
1490,Revenue,CCHD,Home Care - Elderly - South,Other Small Contracts,Mears Care,500.50, 22-Jan-2015,
1491,Revenue,CCHD,Home Care - Elderly - North,Other Small Contracts,Mears Care,3769.15, 22-Jan-2015,
1492,Revenue,CCHD,Day Care - North,Day Care / Social Activities,Mears Care,30.80, 22-Jan-2015,
1493,Revenue,CCHD,Under 65s -MH  Home Care Purch,Other Small Contracts,Mears Care,103.95, 22-Jan-2015,
1494,Revenue,CCHD,Home Care - Elderly - South,Day Care / Social Activities,Mears Care,92.40, 26-Jan-2015,
1495,Revenue,CCHD,Home Care - Elderly - South,Other Small Contracts,Mears Care,492.80, 26-Jan-2015,
1496,Revenue,CCHD,Home Care - Elderly - North,Other Small Contracts,Mears Care,3449.60, 26-Jan-2015,
1497,Revenue,CCHD,Day Care - North,Day Care / Social Activities,Mears Care,30.80, 26-Jan-2015,
1498,Revenue,CCHD,Under 65s -MH  Home Care Purch,Other Small Contracts,Mears Care,115.50, 26-Jan-2015,
1499,Revenue,CCHD,Home Care - Elderly - South,Day Care / Social Activities,Mears Care,84.70, 30-Jan-2015,
1500,Revenue,CCHD,Home Care - Elderly - South,Other Small Contracts,Mears Care,492.80, 30-Jan-2015,
1501,Revenue,CCHD,Home Care - Elderly - North,Other Small Contracts,Mears Care,3438.05, 30-Jan-2015,
1502,Revenue,CCHD,Day Care - North,Day Care / Social Activities,Mears Care,30.80, 30-Jan-2015,
1503,Revenue,CCHD,Under 65s -MH  Home Care Purch,Other Small Contracts,Mears Care,115.50, 30-Jan-2015,
1504,Revenue,CCHD,Home Care - Elderly - South,Private & Voluntary Home Care,Mears Care,49219.00, 28-Jan-2015,
1505,Revenue,CCHD,Home Care - Elderly - South,Other Small Contracts,Medacs Home Care,161.00, 14-Jan-2015,
1506,Revenue,CCHD,Home Care - Elderly - North,Other Small Contracts,Medacs Home Care,430.20, 14-Jan-2015,
1507,Revenue,CCHD,Home care - Elderly MH - North,Other Small Contracts,Medacs Home Care,91.00, 14-Jan-2015,
1508,Revenue,CCHD,Home Care - Elderly - South,Other Small Contracts,Medacs Home Care,126.00, 14-Jan-2015,
1509,Revenue,CCHD,Home Care - Elderly - North,Other Small Contracts,Medacs Home Care,423.50, 14-Jan-2015,
1510,Revenue,CCHD,Home care - Elderly MH - North,Other Small Contracts,Medacs Home Care,59.50, 14-Jan-2015,
1511,Revenue,CCHD,Home Care - Elderly - South,Other Small Contracts,Medacs Home Care,122.50, 14-Jan-2015,
1512,Revenue,CCHD,Home Care - Elderly - North,Other Small Contracts,Medacs Home Care,426.80, 14-Jan-2015,
1513,Revenue,CCHD,Home care - Elderly MH - North,Other Small Contracts,Medacs Home Care,70.00, 14-Jan-2015,
1514,Revenue,CCHD,Bed Purchasing - South,Permanent Residential,Mencap,2252.48, 20-Jan-2015,
1515,Revenue,CCHD,Supported Living (S28a) South,Private & Voluntary Home Care,Mencap - PS Central & Cymru,3841.88, 08-Jan-2015,
1516,Revenue,CCHD,Supported Living (S28a) South,Private & Voluntary Home Care,Mencap - PS Central & Cymru,3841.88, 19-Jan-2015,
1517,Revenue,CCHD,Supported Living (S28a) South,Private & Voluntary Home Care,Mencap - PS Central & Cymru,3841.88, 30-Jan-2015,
1518,Revenue,CCHD,Older People's Commissioned Se,Grants to Voluntary Bodies,Mencap Pathway,8979.75, 02-Jan-2015,
1519,Revenue,CCHD,Supporting People Programme,Grants to Voluntary Bodies,Merlin Housing Society,14628.50, 02-Jan-2015,
1520,Revenue,CCHD,Supporting People Programme,Grants to Voluntary Bodies,Merlin Housing Society,2458.92, 02-Jan-2015,
1521,Revenue,CCHD,Supporting People Programme,Grants to Voluntary Bodies,Merlin Housing Society,47076.50, 02-Jan-2015,
1522,Revenue,CCHD,Supporting People Programme,Grants to Voluntary Bodies,Merlin Housing Society,1041.83, 02-Jan-2015,
1523,Revenue,CCHD,Supporting People Programme,Grants to Voluntary Bodies,Merlin Housing Society,14628.50, 30-Jan-2015,
1524,Revenue,CCHD,Supporting People Programme,Grants to Voluntary Bodies,Merlin Housing Society,2458.92, 30-Jan-2015,
1525,Revenue,CCHD,Supporting People Programme,Grants to Voluntary Bodies,Merlin Housing Society,47076.50, 30-Jan-2015,
1526,Revenue,CCHD,Supporting People Programme,Grants to Voluntary Bodies,Merlin Housing Society,1041.83, 30-Jan-2015,
1527,Revenue,CCHD,Alexandra Way,Prop.Serv. General Repairs,Merlin Housing Society,250.00, 29-Jan-2015,
1528,Revenue,CCHD,Community Support - North,Preventative Assistance,Methodist Homes,2520.40, 12-Jan-2015,
1529,Revenue,CCHD,Community Support - North,Preventative Assistance,Methodist Homes,1260.20, 12-Jan-2015,
1530,Revenue,CCHD,Training - Adult Services,Training Expenses,Michael Mandelstam Ltd,1600.00, 19-Jan-2015,
1531,Revenue,CCHD,Home Care - Elderly - South,Other Small Contracts,MiHomecare,234.90, 08-Jan-2015,
1532,Revenue,CCHD,Home Care - Elderly - North,Other Small Contracts,MiHomecare,319.95, 08-Jan-2015,
1533,Revenue,CCHD,Home Care - Elderly - South,Other Small Contracts,MiHomecare,222.75, 08-Jan-2015,
1534,Revenue,CCHD,Home Care - Elderly - North,Other Small Contracts,MiHomecare,287.55, 08-Jan-2015,
1535,Revenue,CCHD,Bed Purchasing - Southmead Hospital,Permanent Residential,Milburn Finance,1055.44, 20-Jan-2015,
1536,Revenue,CCHD,Home Care - Elderly - South,Day Care / Social Activities,Milestones Homecare & Dementia Service,34.92, 08-Jan-2015,
1537,Revenue,CCHD,Home Care - Elderly - South,Other Small Contracts,Milestones Homecare & Dementia Service,1311.44, 08-Jan-2015,
1538,Revenue,CCHD,Home Care - Elderly - North,Other Small Contracts,Milestones Homecare & Dementia Service,1299.80, 08-Jan-2015,
1539,Revenue,CCHD,Home care - Elderly MH - North,Other Small Contracts,Milestones Homecare & Dementia Service,50.44, 08-Jan-2015,
1540,Revenue,CCHD,Home Care - Elderly - South,Day Care / Social Activities,Milestones Homecare & Dementia Service,31.04, 30-Jan-2015,
1541,Revenue,CCHD,Home Care - Elderly - South,Other Small Contracts,Milestones Homecare & Dementia Service,1389.04, 30-Jan-2015,
1542,Revenue,CCHD,Home Care - Elderly - North,Other Small Contracts,Milestones Homecare & Dementia Service,1183.40, 30-Jan-2015,
1543,Revenue,CCHD,Home care - Elderly MH - North,Other Small Contracts,Milestones Homecare & Dementia Service,54.32, 30-Jan-2015,
1544,Revenue,CCHD,Home Care - Elderly - South,Day Care / Social Activities,Milestones Homecare & Dementia Service,31.04, 09-Jan-2015,
1545,Revenue,CCHD,Home Care - Elderly - South,Other Small Contracts,Milestones Homecare & Dementia Service,1474.40, 09-Jan-2015,
1546,Revenue,CCHD,Home Care - Elderly - North,Other Small Contracts,Milestones Homecare & Dementia Service,1435.60, 09-Jan-2015,
1547,Revenue,CCHD,Home care - Elderly MH - North,Other Small Contracts,Milestones Homecare & Dementia Service,46.56, 09-Jan-2015,
1548,Revenue,CCHD,Home Care - Elderly - South,Day Care / Social Activities,Milestones Homecare & Dementia Service,31.04, 30-Jan-2015,
1549,Revenue,CCHD,Home Care - Elderly - South,Other Small Contracts,Milestones Homecare & Dementia Service,1462.76, 30-Jan-2015,
1550,Revenue,CCHD,Home Care - Elderly - North,Other Small Contracts,Milestones Homecare & Dementia Service,1496.19, 30-Jan-2015,
1551,Revenue,CCHD,Home care - Elderly MH - North,Other Small Contracts,Milestones Homecare & Dementia Service,42.68, 30-Jan-2015,
1552,Revenue,CCHD,Home Care - Elderly - South,Day Care / Social Activities,Milestones Homecare & Dementia Service,31.04, 30-Jan-2015,
1553,Revenue,CCHD,Home Care - Elderly - South,Other Small Contracts,Milestones Homecare & Dementia Service,1552.00, 30-Jan-2015,
1554,Revenue,CCHD,Home Care - Elderly - North,Other Small Contracts,Milestones Homecare & Dementia Service,1385.16, 30-Jan-2015,
1555,Revenue,CCHD,Home care - Elderly MH - North,Other Small Contracts,Milestones Homecare & Dementia Service,54.32, 30-Jan-2015,
1556,Revenue,CCHD,Home Care - Elderly - South,Day Care / Social Activities,Milestones Supported Living Services,6743.12, 09-Jan-2015,
1557,Revenue,CCHD,Home Care - Elderly - South,Other Small Contracts,Milestones Supported Living Services,4106.24, 09-Jan-2015,
1558,Revenue,CCHD,Home Care - Elderly - South,Supported Living,Milestones Supported Living Services,673.68, 09-Jan-2015,
1559,Revenue,CCHD,Home Care - Elderly - North,Day Care / Social Activities,Milestones Supported Living Services,3388.45, 09-Jan-2015,
1560,Revenue,CCHD,Home Care - Elderly - North,Other Small Contracts,Milestones Supported Living Services,930.32, 09-Jan-2015,
1561,Revenue,CCHD,Day Care - South,Day Care / Social Activities,Milestones Supported Living Services,88.22, 09-Jan-2015,
1562,Revenue,CCHD,Day Care - North,Day Care / Social Activities,Milestones Supported Living Services,205.29, 09-Jan-2015,
1563,Revenue,CCHD,Younger MH non-res purchasing,Day Care / Social Activities,Milestones Supported Living Services,20.05, 09-Jan-2015,
1564,Revenue,CCHD,Home care - Elderly MH - North,Other Small Contracts,Milestones Supported Living Services,64.16, 09-Jan-2015,
1565,Revenue,CCHD,Home Care - Elderly - South,Day Care / Social Activities,Milestones Supported Living Services,6625.50, 09-Jan-2015,
1566,Revenue,CCHD,Home Care - Elderly - South,Other Small Contracts,Milestones Supported Living Services,4122.28, 09-Jan-2015,
1567,Revenue,CCHD,Home Care - Elderly - South,Supported Living,Milestones Supported Living Services,673.68, 09-Jan-2015,
1568,Revenue,CCHD,Home Care - Elderly - North,Day Care / Social Activities,Milestones Supported Living Services,3404.49, 09-Jan-2015,
1569,Revenue,CCHD,Home Care - Elderly - North,Other Small Contracts,Milestones Supported Living Services,898.24, 09-Jan-2015,
1570,Revenue,CCHD,Day Care - South,Day Care / Social Activities,Milestones Supported Living Services,96.24, 09-Jan-2015,
1571,Revenue,CCHD,Day Care - North,Day Care / Social Activities,Milestones Supported Living Services,189.25, 09-Jan-2015,
1572,Revenue,CCHD,Younger MH non-res purchasing,Day Care / Social Activities,Milestones Supported Living Services,24.06, 09-Jan-2015,
1573,Revenue,CCHD,Home care - Elderly MH - North,Other Small Contracts,Milestones Supported Living Services,64.16, 09-Jan-2015,
1574,Revenue,CCHD,Home Care - Elderly - South,Day Care / Social Activities,Milestones Supported Living Services,6604.06, 09-Jan-2015,
1575,Revenue,CCHD,Home Care - Elderly - South,Other Small Contracts,Milestones Supported Living Services,3817.52, 09-Jan-2015,
1576,Revenue,CCHD,Home Care - Elderly - South,Supported Living,Milestones Supported Living Services,445.11, 09-Jan-2015,
1577,Revenue,CCHD,Home Care - Elderly - North,Day Care / Social Activities,Milestones Supported Living Services,3376.42, 09-Jan-2015,
1578,Revenue,CCHD,Home Care - Elderly - North,Other Small Contracts,Milestones Supported Living Services,946.36, 09-Jan-2015,
1579,Revenue,CCHD,Day Care - South,Day Care / Social Activities,Milestones Supported Living Services,100.25, 09-Jan-2015,
1580,Revenue,CCHD,Day Care - North,Day Care / Social Activities,Milestones Supported Living Services,185.24, 09-Jan-2015,
1581,Revenue,CCHD,Younger MH non-res purchasing,Day Care / Social Activities,Milestones Supported Living Services,24.06, 09-Jan-2015,
1582,Revenue,CCHD,Home care - Elderly MH - North,Other Small Contracts,Milestones Supported Living Services,64.15, 09-Jan-2015,
1583,Revenue,CCHD,Supported Living - South,Private & Voluntary Home Care,Milestones Trust,2188.59, 16-Jan-2015,
1584,Revenue,CCHD,Supported Living - North,Private & Voluntary Home Care,Milestones Trust,545.70, 12-Jan-2015,
1585,Revenue,CCHD,Stibbs and Fairburn,Respite Planned - Residential,Milestones Trust,127861.00, 09-Jan-2015,
1586,Revenue,CCHD,Supported Living - North,Private & Voluntary Home Care,Milestones Trust,571.38, 16-Jan-2015,
1587,Revenue,CCHD,Elderly MH Day Care North,Day Care / Social Activities,Milestones Trust,666.72, 19-Jan-2015,
1588,Revenue,CCHD,Purchase of Non-Res Care - South,Day Care / Social Activities,Milestones Trust,1328.00, 23-Jan-2015,
1589,Revenue,CCHD,SLA Grants - Support Serv,Grants to Voluntary Bodies,Mo Dymond Support Groups,500.00, 02-Jan-2015,
1590,Revenue,CCHD,SLA Grants - Support Serv,Grants to Voluntary Bodies,Mo Dymond Support Groups,500.00, 02-Jan-2015,
1591,Revenue,CCHD,SLA Grants - Support Serv,Grants to Voluntary Bodies,Mo Dymond Support Groups,500.00, 02-Jan-2015,
1592,Revenue,CCHD,Bed Purchasing - Southmead Hospital,Permanent Residential,Mostyn Lodge Residential Home,1133.48, 20-Jan-2015,
1593,Revenue,CCHD,Bed Purchasing - North,Permanent Residential,Mostyn Lodge Residential Home,1234.64, 20-Jan-2015,
1594,Revenue,CCHD,Older People's Commissioned Se,Grants to Voluntary Bodies,Mothers for Mothers,2155.25, 02-Jan-2015,
1595,Revenue,CCHD,Supported Living - South,Private & Voluntary Home Care,Moving On,3336.13, 09-Jan-2015,
1596,Revenue,CCHD,Day Care - South,Day Care / Social Activities,Moving On,1107.51, 27-Jan-2015,
1597,Revenue,CCHD,Social Lettings Agency,Fees - General,Individual,10.00, 07-Jan-2015,
1598,Revenue,CCHD,Social Lettings Agency,Other Supplies & Services,Individual,565.00, 07-Jan-2015,
1599,Revenue,CCHD,Social Lettings Agency,Fees - General,Individual,10.00, 16-Jan-2015,
1600,Revenue,CCHD,Social Lettings Agency,Other Supplies & Services,Individual,565.00, 16-Jan-2015,
1601,Revenue,CCHD,Social Lettings Agency,Fees - General,Individual,10.09, 05-Jan-2015,
1602,Revenue,CCHD,Social Lettings Agency,Other Supplies & Services,Individual,570.66, 05-Jan-2015,
1603,Revenue,CCHD,Social Lettings Agency,Fees - General,Individual,10.10, 07-Jan-2015,
1604,Revenue,CCHD,Social Lettings Agency,Other Supplies & Services,Individual,570.64, 07-Jan-2015,
1605,Revenue,CCHD,Social Lettings Agency,Fees - General,Individual,10.00, 22-Jan-2015,
1606,Revenue,CCHD,Social Lettings Agency,Other Supplies & Services,Individual,565.00, 22-Jan-2015,
1607,Revenue,CCHD,Social Lettings Agency,Fees - General,Individual,8.60, 22-Jan-2015,
1608,Revenue,CCHD,Social Lettings Agency,Other Supplies & Services,Individual,582.00, 22-Jan-2015,
1609,Revenue,CCHD,Supporting People Programme,Grants to Voluntary Bodies,Individual,998.92, 02-Jan-2015,
1610,Revenue,CCHD,Supporting People Programme,Grants to Voluntary Bodies,Individual,998.92, 30-Jan-2015,
1611,Revenue,CCHD,Social Lettings Agency,Fees - General,Individual,11.60, 02-Jan-2015,
1612,Revenue,CCHD,Social Lettings Agency,Other Supplies & Services,Individual,655.41, 02-Jan-2015,
1613,Revenue,CCHD,Social Lettings Agency,Fees - General,Individual,11.60, 30-Jan-2015,
1614,Revenue,CCHD,Social Lettings Agency,Other Supplies & Services,Individual,655.41, 30-Jan-2015,
1615,Revenue,CCHD,Homeless - Private Sector Leasing,Other Supplies & Services,Individual,565.00, 23-Jan-2015,
1616,Revenue,CCHD,Social Lettings Agency,Fees - General,Individual,11.71, 02-Jan-2015,
1617,Revenue,CCHD,Social Lettings Agency,Other Supplies & Services,Individual,661.96, 02-Jan-2015,
1618,Revenue,CCHD,Social Lettings Agency,Fees - General,Individual,10.00, 08-Jan-2015,
1619,Revenue,CCHD,Social Lettings Agency,Other Supplies & Services,Individual,518.20, 08-Jan-2015,
1620,Revenue,CCHD,Leadership and Business Support,Consultants Fees,Individual,1350.00, 19-Jan-2015,
1621,Revenue,CCHD,Tenancy Start Up Scheme,Other Supplies & Services,Individual,505.00, 26-Jan-2015,
1622,Revenue,CCHD,Social Lettings Agency,Fees - General,Individual,10.00, 08-Jan-2015,
1623,Revenue,CCHD,Social Lettings Agency,Other Supplies & Services,Individual,565.00, 08-Jan-2015,
1624,Revenue,CCHD,Social Lettings Agency,Fees - General,Individual,10.00, 02-Jan-2015,
1625,Revenue,CCHD,Social Lettings Agency,Other Supplies & Services,Individual,565.00, 02-Jan-2015,
1626,Revenue,CCHD,Social Lettings Agency,Fees - General,Individual,16.16, 21-Jan-2015,
1627,Revenue,CCHD,Social Lettings Agency,Other Supplies & Services,Individual,662.78, 21-Jan-2015,
1628,Revenue,CCHD,Social Lettings Agency,Fees - General,Individual,10.00, 30-Jan-2015,
1629,Revenue,CCHD,Social Lettings Agency,Other Supplies & Services,Individual,522.11, 30-Jan-2015,
1630,Revenue,CCHD,Social Lettings Agency,Fees - General,Individual,7.50, 05-Jan-2015,
1631,Revenue,CCHD,Social Lettings Agency,Other Supplies & Services,Individual,517.35, 05-Jan-2015,
1632,Revenue,CCHD,Home Care - Elderly - South,Day Care / Social Activities,Mrs B Kimber -  CM2000,1619.37, 08-Jan-2015,
1633,Revenue,CCHD,Home Care - Elderly - South,Other Small Contracts,Mrs B Kimber -  CM2000,10789.68, 08-Jan-2015,
1634,Revenue,CCHD,Home Care - Elderly - North,Day Care / Social Activities,Mrs B Kimber -  CM2000,526.08, 08-Jan-2015,
1635,Revenue,CCHD,Home Care - Elderly - North,Other Small Contracts,Mrs B Kimber -  CM2000,3793.53, 08-Jan-2015,
1636,Revenue,CCHD,Under 65s -MH  Home Care Purch,Other Small Contracts,Mrs B Kimber -  CM2000,65.76, 08-Jan-2015,
1637,Revenue,CCHD,Elderly MH Day Care North,Day Care / Social Activities,Mrs B Kimber -  CM2000,98.64, 08-Jan-2015,
1638,Revenue,CCHD,Home Care - Elderly - South,Day Care / Social Activities,Mrs B Kimber -  CM2000,1130.28, 08-Jan-2015,
1639,Revenue,CCHD,Home Care - Elderly - South,Other Small Contracts,Mrs B Kimber -  CM2000,11089.71, 08-Jan-2015,
1640,Revenue,CCHD,Home Care - Elderly - North,Day Care / Social Activities,Mrs B Kimber -  CM2000,447.99, 08-Jan-2015,
1641,Revenue,CCHD,Home Care - Elderly - North,Other Small Contracts,Mrs B Kimber -  CM2000,4048.35, 08-Jan-2015,
1642,Revenue,CCHD,Under 65s -MH  Home Care Purch,Other Small Contracts,Mrs B Kimber -  CM2000,65.76, 08-Jan-2015,
1643,Revenue,CCHD,Elderly MH Day Care North,Day Care / Social Activities,Mrs B Kimber -  CM2000,98.64, 08-Jan-2015,
1644,Revenue,CCHD,Home Care - Elderly - South,Day Care / Social Activities,Mrs B Kimber -  CM2000,1366.44, 09-Jan-2015,
1645,Revenue,CCHD,Home Care - Elderly - South,Other Small Contracts,Mrs B Kimber -  CM2000,9109.35, 09-Jan-2015,
1646,Revenue,CCHD,Home Care - Elderly - North,Day Care / Social Activities,Mrs B Kimber -  CM2000,267.15, 09-Jan-2015,
1647,Revenue,CCHD,Home Care - Elderly - North,Other Small Contracts,Mrs B Kimber -  CM2000,3304.44, 09-Jan-2015,
1648,Revenue,CCHD,Under 65s -MH  Home Care Purch,Other Small Contracts,Mrs B Kimber -  CM2000,32.88, 09-Jan-2015,
1649,Revenue,CCHD,Elderly MH Day Care North,Day Care / Social Activities,Mrs B Kimber -  CM2000,49.32, 09-Jan-2015,
1650,Revenue,CCHD,Home Care - Elderly - South,Day Care / Social Activities,Mrs B Kimber -  CM2000,949.44, 21-Jan-2015,
1651,Revenue,CCHD,Home Care - Elderly - South,Other Small Contracts,Mrs B Kimber -  CM2000,9937.68, 21-Jan-2015,
1652,Revenue,CCHD,Home Care - Elderly - North,Day Care / Social Activities,Mrs B Kimber -  CM2000,328.80, 21-Jan-2015,
1653,Revenue,CCHD,Home Care - Elderly - North,Other Small Contracts,Mrs B Kimber -  CM2000,3625.02, 21-Jan-2015,
1654,Revenue,CCHD,Under 65s -MH  Home Care Purch,Other Small Contracts,Mrs B Kimber -  CM2000,65.76, 21-Jan-2015,
1655,Revenue,CCHD,Elderly MH Day Care North,Day Care / Social Activities,Mrs B Kimber -  CM2000,49.32, 21-Jan-2015,
1656,Revenue,CCHD,Home Care - Elderly - South,Day Care / Social Activities,Mrs B Kimber -  CM2000,1627.59, 21-Jan-2015,
1657,Revenue,CCHD,Home Care - Elderly - South,Other Small Contracts,Mrs B Kimber -  CM2000,9663.87, 21-Jan-2015,
1658,Revenue,CCHD,Home Care - Elderly - North,Day Care / Social Activities,Mrs B Kimber -  CM2000,526.08, 21-Jan-2015,
1659,Revenue,CCHD,Home Care - Elderly - North,Other Small Contracts,Mrs B Kimber -  CM2000,4430.58, 21-Jan-2015,
1660,Revenue,CCHD,Under 65s -MH  Home Care Purch,Other Small Contracts,Mrs B Kimber -  CM2000,65.76, 21-Jan-2015,
1661,Revenue,CCHD,Elderly MH Day Care North,Day Care / Social Activities,Mrs B Kimber -  CM2000,49.32, 21-Jan-2015,
1662,Revenue,CCHD,Home Care - Elderly - South,Day Care / Social Activities,Mrs B Kimber -  CM2000,869.13, 30-Jan-2015,
1663,Revenue,CCHD,Home Care - Elderly - South,Other Small Contracts,Mrs B Kimber -  CM2000,10866.54, 30-Jan-2015,
1664,Revenue,CCHD,Home Care - Elderly - South,Supported Living,Mrs B Kimber -  CM2000,271.26, 30-Jan-2015,
1665,Revenue,CCHD,Home Care - Elderly - North,Day Care / Social Activities,Mrs B Kimber -  CM2000,427.44, 30-Jan-2015,
1666,Revenue,CCHD,Home Care - Elderly - North,Other Small Contracts,Mrs B Kimber -  CM2000,4525.11, 30-Jan-2015,
1667,Revenue,CCHD,Under 65s -MH  Home Care Purch,Other Small Contracts,Mrs B Kimber -  CM2000,65.76, 30-Jan-2015,
1668,Revenue,CCHD,Elderly MH Day Care North,Day Care / Social Activities,Mrs B Kimber -  CM2000,98.64, 30-Jan-2015,
1669,Revenue,CCHD,Social Lettings Agency,Fees - General,Individual,10.00, 16-Jan-2015,
1670,Revenue,CCHD,Social Lettings Agency,Other Supplies & Services,Individual,565.00, 16-Jan-2015,
1671,Revenue,CCHD,Social Lettings Agency,Fees - General,Individual,10.00, 14-Jan-2015,
1672,Revenue,CCHD,Social Lettings Agency,Other Supplies & Services,Individual,565.00, 14-Jan-2015,
1673,Revenue,CCHD,Social Lettings Agency,Fees - General,Individual,10.00, 23-Jan-2015,
1674,Revenue,CCHD,Social Lettings Agency,Other Supplies & Services,Individual,565.00, 23-Jan-2015,
1675,Revenue,CCHD,Social Lettings Agency,Fees - General,Individual,10.00, 02-Jan-2015,
1676,Revenue,CCHD,Social Lettings Agency,Other Supplies & Services,Individual,565.00, 02-Jan-2015,
1677,Revenue,CCHD,Social Lettings Agency,Fees - General,Individual,10.00, 30-Jan-2015,
1678,Revenue,CCHD,Social Lettings Agency,Other Supplies & Services,Individual,565.00, 30-Jan-2015,
1679,Revenue,CCHD,Supported Living - North,Permanent Residential,Individual,1389.64, 13-Jan-2015,
1680,Revenue,CCHD,Supported Living - North,Permanent Residential,Individual,880.08, 28-Jan-2015,
1681,Revenue,CCHD,Social Lettings Agency,Fees - General,Individual,10.10, 14-Jan-2015,
1682,Revenue,CCHD,Social Lettings Agency,Other Supplies & Services,Individual,570.64, 14-Jan-2015,
1683,Revenue,CCHD,Social Lettings Agency,Fees - General,Individual,10.09, 12-Jan-2015,
1684,Revenue,CCHD,Social Lettings Agency,Other Supplies & Services,Individual,570.66, 12-Jan-2015,
1685,Revenue,CCHD,Supported Living - North,Permanent Residential,Individual,1135.69, 28-Jan-2015,
1686,Revenue,CCHD,Tenancy Start Up Scheme,Other Supplies & Services,Individual,631.24, 12-Jan-2015,
1687,Revenue,CCHD,Social Lettings Agency,Fees - General,Individual,11.60, 16-Jan-2015,
1688,Revenue,CCHD,Social Lettings Agency,Other Supplies & Services,Individual,655.41, 16-Jan-2015,
1689,Revenue,CCHD,Social Lettings Agency,Fees - General,Individual,10.00, 08-Jan-2015,
1690,Revenue,CCHD,Social Lettings Agency,Other Supplies & Services,Individual,565.00, 08-Jan-2015,
1691,Revenue,CCHD,Social Lettings Agency,Fees - General,Individual,17.13, 09-Jan-2015,
1692,Revenue,CCHD,Social Lettings Agency,Other Supplies & Services,Individual,977.68, 09-Jan-2015,
1693,Revenue,CCHD,Learning Difficulties Development Fund,Other Supplies & Services,MultiMe Ltd,2313.00, 13-Jan-2015,
1694,Revenue,CCHD,Day Care - South,Day Care / Social Activities,NAS Services Limited,883.40, 19-Jan-2015,
1695,Revenue,CCHD,Day Care - North,Day Care / Social Activities,NAS Services Limited,1523.20, 09-Jan-2015,
1696,Revenue,CCHD,Younger MH non-res purchasing,Day Care / Social Activities,NAS Services Limited,948.60, 22-Jan-2015,
1697,Revenue,CCHD,Day Care - North,Day Care / Social Activities,NAS Services Limited,1126.90, 22-Jan-2015,
1698,Revenue,CCHD,Day Care - South,Day Care / Social Activities,NAS Services Limited,520.70, 22-Jan-2015,
1699,Revenue,CCHD,Day Care - South,Day Care / Social Activities,NAS Services Limited,857.20, 22-Jan-2015,
1700,Revenue,CCHD,Younger MH non-res purchasing,Day Care / Social Activities,NAS Services Limited,660.34, 22-Jan-2015,
1701,Revenue,CCHD,Tenancy Start Up Scheme,Other Supplies & Services,Individual,570.00, 28-Jan-2015,
1702,Revenue,CCHD,Training - Adult Services,Training Expenses,National Autistic Society,4837.00, 02-Jan-2015,
1703,Revenue,CCHD,Newton House,Security Systems,National Security Group,65.42, 27-Jan-2015,
1704,Revenue,CCHD,Drug/Alcohol Residential Rehab,Security Systems,National Security Group,21.67, 27-Jan-2015,
1705,Revenue,CCHD,18-25 Year Olds,Respite Planned - Residential,National Star College,26371.66, 20-Jan-2015,
1706,Revenue,CCHD,Bed Purchasing - North,Permanent Residential,National Star College,30187.33, 20-Jan-2015,
1707,Revenue,CCHD,Home Care - Elderly - South,Other Small Contracts,Nestor T/A Allied Healthcare,3207.20, 08-Jan-2015,
1708,Revenue,CCHD,Home Care - Elderly - North,Other Small Contracts,Nestor T/A Allied Healthcare,9289.66, 08-Jan-2015,
1709,Revenue,CCHD,Day Care - North,Day Care / Social Activities,Nestor T/A Allied Healthcare,190.00, 08-Jan-2015,
1710,Revenue,CCHD,Home care - Elderly MH - North,Other Small Contracts,Nestor T/A Allied Healthcare,53.20, 08-Jan-2015,
1711,Revenue,CCHD,Home Care - Elderly - South,Other Small Contracts,Nestor T/A Allied Healthcare,3161.60, 09-Jan-2015,
1712,Revenue,CCHD,Home Care - Elderly - North,Other Small Contracts,Nestor T/A Allied Healthcare,9050.12, 09-Jan-2015,
1713,Revenue,CCHD,Day Care - North,Day Care / Social Activities,Nestor T/A Allied Healthcare,193.80, 09-Jan-2015,
1714,Revenue,CCHD,Home care - Elderly MH - North,Other Small Contracts,Nestor T/A Allied Healthcare,53.20, 09-Jan-2015,
1715,Revenue,CCHD,Home Care - Elderly - South,Other Small Contracts,Nestor T/A Allied Healthcare,3218.60, 09-Jan-2015,
1716,Revenue,CCHD,Home Care - Elderly - North,Other Small Contracts,Nestor T/A Allied Healthcare,9268.52, 09-Jan-2015,
1717,Revenue,CCHD,Day Care - North,Day Care / Social Activities,Nestor T/A Allied Healthcare,190.00, 09-Jan-2015,
1718,Revenue,CCHD,Home care - Elderly MH - North,Other Small Contracts,Nestor T/A Allied Healthcare,53.20, 09-Jan-2015,
1719,Revenue,CCHD,Home Care - Elderly - South,Other Small Contracts,Nestor T/A Allied Healthcare,3207.20, 09-Jan-2015,
1720,Revenue,CCHD,Home Care - Elderly - North,Other Small Contracts,Nestor T/A Allied Healthcare,9179.33, 09-Jan-2015,
1721,Revenue,CCHD,Day Care - North,Day Care / Social Activities,Nestor T/A Allied Healthcare,190.00, 09-Jan-2015,
1722,Revenue,CCHD,Home care - Elderly MH - North,Other Small Contracts,Nestor T/A Allied Healthcare,53.20, 09-Jan-2015,
1723,Revenue,CCHD,Home Care - Elderly - South,Day Care / Social Activities,Nestor T/A Allied Healthcare,45.60, 21-Jan-2015,
1724,Revenue,CCHD,Home Care - Elderly - South,Other Small Contracts,Nestor T/A Allied Healthcare,3252.80, 21-Jan-2015,
1725,Revenue,CCHD,Home Care - Elderly - North,Other Small Contracts,Nestor T/A Allied Healthcare,9154.51, 21-Jan-2015,
1726,Revenue,CCHD,Day Care - North,Day Care / Social Activities,Nestor T/A Allied Healthcare,193.80, 21-Jan-2015,
1727,Revenue,CCHD,Home care - Elderly MH - North,Other Small Contracts,Nestor T/A Allied Healthcare,53.20, 21-Jan-2015,
1728,Revenue,CCHD,Home Care - Elderly - South,Day Care / Social Activities,Nestor T/A Allied Healthcare,49.40, 21-Jan-2015,
1729,Revenue,CCHD,Home Care - Elderly - South,Other Small Contracts,Nestor T/A Allied Healthcare,3332.60, 21-Jan-2015,
1730,Revenue,CCHD,Home Care - Elderly - North,Other Small Contracts,Nestor T/A Allied Healthcare,9209.50, 21-Jan-2015,
1731,Revenue,CCHD,Day Care - North,Day Care / Social Activities,Nestor T/A Allied Healthcare,190.00, 21-Jan-2015,
1732,Revenue,CCHD,Home care - Elderly MH - North,Other Small Contracts,Nestor T/A Allied Healthcare,53.20, 21-Jan-2015,
1733,Revenue,CCHD,Home Care - Elderly - South,Day Care / Social Activities,Nestor T/A Allied Healthcare,102.60, 28-Jan-2015,
1734,Revenue,CCHD,Home Care - Elderly - South,Other Small Contracts,Nestor T/A Allied Healthcare,3439.00, 28-Jan-2015,
1735,Revenue,CCHD,Home Care - Elderly - North,Other Small Contracts,Nestor T/A Allied Healthcare,9369.10, 28-Jan-2015,
1736,Revenue,CCHD,Day Care - North,Day Care / Social Activities,Nestor T/A Allied Healthcare,193.80, 28-Jan-2015,
1737,Revenue,CCHD,Home care - Elderly MH - North,Other Small Contracts,Nestor T/A Allied Healthcare,49.40, 28-Jan-2015,
1738,Revenue,CCHD,Social Lettings Agency,Fees - General,Individual,10.00, 02-Jan-2015,
1739,Revenue,CCHD,Social Lettings Agency,Other Supplies & Services,Individual,565.00, 02-Jan-2015,
1740,Revenue,CCHD,Mental Health and Emotional Wellbeing,Other Public Bodies,NHS South Gloucestershire CCG,15000.00, 02-Jan-2015,
1741,Revenue,CCHD,"Strategy, Advice and Public Protection",Other Supplies & Services,NHS South West CSU,2006.25, 12-Jan-2015,
1742,Revenue,CCHD,"Strategy, Advice and Public Protection",Other Supplies & Services,NHS South West CSU,2675.00, 12-Jan-2015,
1743,Revenue,CCHD,SLA Grants - Support Serv,Grants to Voluntary Bodies,North Bristol NHS Trust,4350.00, 02-Jan-2015,
1744,Revenue,CCHD,Bed Purchasing - South,Permanent Residential,Norwood   Broadway House,4972.40, 20-Jan-2015,
1745,Revenue,CCHD,Bed Purchasing - Southmead Hospital,Permanent Residential,Notaro Homes Ltd  Queensmead Court,3000.00, 20-Jan-2015,
1746,Revenue,CCHD,Bed Purchasing - South,Permanent Residential,Notaro Homes Ltd  Queensmead Court,1884.80, 20-Jan-2015,
1747,Revenue,CCHD,Bed Purchasing - Southmead Hospital,Permanent Residential,Notaro Homes Ltd  Queensmead Court,1389.00, 20-Jan-2015,
1748,Revenue,CCHD,Bed Purchasing - North,Respite Planned - Residential,Notaro Homes Ltd  Queensmead Court,1285.71, 20-Jan-2015,
1749,Revenue,CCHD,Bed Purchasing - South,Permanent Residential,Nova House Care Home,949.92, 20-Jan-2015,
1750,Revenue,CCHD,Home Care - Elderly - South,Other Small Contracts,Nursing Solutions Limited,2838.08, 08-Jan-2015,
1751,Revenue,CCHD,Home Care - Elderly - North,Other Small Contracts,Nursing Solutions Limited,638.96, 08-Jan-2015,
1752,Revenue,CCHD,Home Care - Elderly - South,Other Small Contracts,Nursing Solutions Limited,2783.20, 08-Jan-2015,
1753,Revenue,CCHD,Home Care - Elderly - North,Other Small Contracts,Nursing Solutions Limited,638.96, 08-Jan-2015,
1754,Revenue,CCHD,Home Care - Elderly - South,Other Small Contracts,Nursing Solutions Limited,2830.24, 15-Jan-2015,
1755,Revenue,CCHD,Home Care - Elderly - North,Other Small Contracts,Nursing Solutions Limited,446.88, 15-Jan-2015,
1756,Revenue,CCHD,Home Care - Elderly - South,Other Small Contracts,Nursing Solutions Limited,3026.24, 15-Jan-2015,
1757,Revenue,CCHD,Home Care - Elderly - North,Other Small Contracts,Nursing Solutions Limited,537.04, 15-Jan-2015,
1758,Revenue,CCHD,Home Care - Elderly - South,Other Small Contracts,Nursing Solutions Limited,2990.96, 30-Jan-2015,
1759,Revenue,CCHD,Home Care - Elderly - North,Other Small Contracts,Nursing Solutions Limited,627.20, 30-Jan-2015,
1760,Revenue,CCHD,Home Care - Elderly - South,Other Small Contracts,Nursing Solutions Limited,2791.04, 30-Jan-2015,
1761,Revenue,CCHD,Home Care - Elderly - North,Other Small Contracts,Nursing Solutions Limited,623.28, 30-Jan-2015,
1762,Revenue,CCHD,Section 117 Placements MH Younger,Permanent Nursing,Oaklands,6088.80, 20-Jan-2015,
1763,Revenue,CCHD,Bed Purchasing - Southmead Hospital,Permanent Residential,Oaktree Lodge,1357.02, 20-Jan-2015,
1764,Revenue,CCHD,Kingswood Centre - Maple Suite,Contract Hire & Operational Leases,OCS Group UK Ltd,514.80, 21-Jan-2015,
1765,Revenue,CCHD,Woodleaze,Refuse Collection Charges,OCS Group UK Ltd,866.58, 26-Jan-2015,
1766,Revenue,CCHD,Bed purchasing -S28A  Under 65 - North,Permanent Residential,Orchard End Limited,7562.88, 20-Jan-2015,
1767,Revenue,CCHD,Turnberries,"Provisions (Food, etc)",Origin Cafe,615.60, 26-Jan-2015,
1768,Revenue,CCHD,Turnberries,"Provisions (Food, etc)",Origin Cafe,554.80, 26-Jan-2015,
1769,Revenue,CCHD,Bed Purchasing - Southmead Hospital,Permanent Residential,Osbourne Court,2530.48, 20-Jan-2015,
1770,Revenue,CCHD,Bed Purchasing - Southmead Hospital,Permanent Residential,Osbourne Court,970.20, 20-Jan-2015,
1771,Revenue,CCHD,Bed Purchasing - North,Permanent Residential,Osbourne Court,1796.40, 20-Jan-2015,
1772,Revenue,CCHD,Bed Purchasing - North,Permanent Residential,Osbourne Court,2046.96, 20-Jan-2015,
1773,Revenue,CCHD,Bed Purchasing - Southmead Hospital,Permanent Residential,Osbourne Court,2263.60, 20-Jan-2015,
1774,Revenue,CCHD,Bed Purchasing - Southmead Hospital,Permanent Residential,Osbourne Court,1810.88, 20-Jan-2015,
1775,Revenue,CCHD,Bed Purchasing - Elderly S117- North,Permanent Residential,Osbourne Court,1928.00, 20-Jan-2015,
1776,Revenue,CCHD,Bed Purchasing - North,Permanent Residential,Osbourne Court,2557.32, 20-Jan-2015,
1777,Revenue,CCHD,Bed purchasing - S28A Under 65 - South,Permanent Residential,Osprey Court,4322.88, 20-Jan-2015,
1778,Revenue,CCHD,Bed Purchasing - South,Permanent Residential,Osprey Court,7750.24, 20-Jan-2015,
1779,Revenue,CCHD,Bed purchasing - S28A Under 65 - South,Permanent Residential,Osprey Court,6396.04, 20-Jan-2015,
1780,Revenue,CCHD,Bed purchasing - Elderly S117 - South,Permanent Residential,Osprey Court,11328.56, 20-Jan-2015,
1781,Revenue,CCHD,Breakthrough and Inclusion Work,Other Supplies & Services,P3D,2901.66, 13-Jan-2015,
1782,Revenue,CCHD,Bed Purchasing - Southmead Hospital,Permanent Nursing,Palm Court Nursing Home,1519.32, 20-Jan-2015,
1783,Revenue,CCHD,Bed Purchasing - South,Permanent Residential,Park Farm House,1344.56, 20-Jan-2015,
1784,Revenue,CCHD,Bed Purchasing - South,Permanent Residential,Park Farm House,1614.16, 20-Jan-2015,
1785,Revenue,CCHD,Bed Purchasing - South,Permanent Residential,Park Hall,5634.64, 20-Jan-2015,
1786,Revenue,CCHD,Bed Purchasing - North,Permanent Residential,Park Hall,5202.24, 20-Jan-2015,
1787,Revenue,CCHD,Bed Purchasing - South,Permanent Residential,Park Hall,5014.44, 20-Jan-2015,
1788,Revenue,CCHD,Bed Purchasing - South,Permanent Residential,Park Hall,2555.68, 20-Jan-2015,
1789,Revenue,CCHD,Bed Purchasing - North,Permanent Residential,Park Hall,4967.68, 20-Jan-2015,
1790,Revenue,CCHD,Bed purchasing - S28A Under 65 - South,Permanent Residential,Park Hall,4682.92, 20-Jan-2015,
1791,Revenue,CCHD,Bed Purchasing - South,Permanent Residential,Park Hall,4990.40, 20-Jan-2015,
1792,Revenue,CCHD,Bed Purchasing - North,Permanent Residential,Park Hall,4323.28, 20-Jan-2015,
1793,Revenue,CCHD,Bed Purchasing - South,Permanent Residential,Park Hall,10767.96, 20-Jan-2015,
1794,Revenue,CCHD,Bed purchasing -S28A  Under 65 - North,Permanent Residential,Park Hall,5931.12, 20-Jan-2015,
1795,Revenue,CCHD,Bed purchasing - S28A Under 65 - South,Permanent Residential,Park Hall,5670.16, 20-Jan-2015,
1796,Revenue,CCHD,18-25 Year Olds,Permanent Residential,Park Hall,7181.48, 20-Jan-2015,
1797,Revenue,CCHD,Bed Purchasing - North,Permanent Residential,Parker Meadows,2904.20, 20-Jan-2015,
1798,Revenue,CCHD,Social Lettings Agency,Fees - General,Individual,10.00, 27-Jan-2015,
1799,Revenue,CCHD,Social Lettings Agency,Other Supplies & Services,Individual,565.00, 27-Jan-2015,
1800,Revenue,CCHD,SLA Grants - Support Serv,Grants to Voluntary Bodies,Paul`s Place,2000.00, 02-Jan-2015,
1801,Revenue,CCHD,Home Care - Elderly - South,Day Care / Social Activities,Pauls Place,2260.48, 20-Jan-2015,
1802,Revenue,CCHD,Bed Purchasing - South,Permanent Residential,Penleigh House Care Home,4560.48, 20-Jan-2015,
1803,Revenue,CCHD,Bed Purchasing - South,Permanent Residential,Penleigh House Care Home,6430.64, 20-Jan-2015,
1804,Revenue,CCHD,Bed Purchasing - South,Permanent Residential,Penleigh House Care Home,4318.88, 20-Jan-2015,
1805,Revenue,CCHD,Bed purchasing - S28A Under 65 - South,Permanent Residential,Penleigh House Care Home,5497.68, 20-Jan-2015,
1806,Revenue,CCHD,Bed Purchasing - South,Permanent Residential,Penleigh House Care Home,4966.16, 20-Jan-2015,
1807,Revenue,CCHD,Home Care - Elderly - North,Day Care / Social Activities,Premier Homecare Limited,91.20, 08-Jan-2015,
1808,Revenue,CCHD,Home Care - Elderly - North,Other Small Contracts,Premier Homecare Limited,12736.08, 08-Jan-2015,
1809,Revenue,CCHD,Home care - Elderly MH - North,Other Small Contracts,Premier Homecare Limited,127.68, 08-Jan-2015,
1810,Revenue,CCHD,Elderly MH Day Care North,Day Care / Social Activities,Premier Homecare Limited,72.96, 08-Jan-2015,
1811,Revenue,CCHD,Home Care - Elderly - North,Day Care / Social Activities,Premier Homecare Limited,45.60, 08-Jan-2015,
1812,Revenue,CCHD,Home Care - Elderly - North,Other Small Contracts,Premier Homecare Limited,11465.55, 08-Jan-2015,
